Workbook

Sheet 1
A1: PADRON Y LISTA NOMINAL
A2: CORTE: | B2: DEFINITIVO
A3: DISTRITO LOCAL I PACHUCA PONIENTE
A6: CLAVE | B6: NOMBRE | C6: Seccion | D6: L N | E6: Basicas | F6: Contiguas | G6: Extras | H6: Especiales | I6: TOTAL
A7: 047 | B7: PACHUCA DE SOTO PONIENTE | C7: 832 | D7: 1046 | E7: 1 | F7: 1 | I7: =SUM(E7:H7) -> 2
A8: 047 | B8: PACHUCA DE SOTO PONIENTE | C8: 833 | D8: 885 | E8: 1 | F8: 1 | I8: =SUM(E8:H8) -> 2
A9: 047 | B9: PACHUCA DE SOTO PONIENTE | C9: 834 | D9: 423 | E9: 1 | F9: 0 | I9: 1
A10: 047 | B10: PACHUCA DE SOTO PONIENTE | C10: 835 | D10: 623 | E10: 1 | F10: 0 | I10: 1
A11: 047 | B11: PACHUCA DE SOTO PONIENTE | C11: 836 | D11: 546 | E11: 1 | F11: 0 | I11: 1
A12: 047 | B12: PACHUCA DE SOTO PONIENTE | C12: 839 | D12: 570 | E12: 1 | F12: 0 | I12: 1
A13: 047 | B13: PACHUCA DE SOTO PONIENTE | C13: 840 | D13: 894 | E13: 1 | F13: 1 | I13: 2
A14: 047 | B14: PACHUCA DE SOTO PONIENTE | C14: 841 | D14: 570 | E14: 1 | F14: 0 | I14: 1
A15: 047 | B15: PACHUCA DE SOTO PONIENTE | C15: 842 | D15: 686 | E15: 1 | F15: 0 | I15: 1
A16: 047 | B16: PACHUCA DE SOTO PONIENTE | C16: 846 | D16: 725 | E16: 1 | F16: 0 | I16: 1
A17: 047 | B17: PACHUCA DE SOTO PONIENTE | C17: 847 | D17: 800 | E17: 1 | F17: 1 | I17: 2
A18: 047 | B18: PACHUCA DE SOTO PONIENTE | C18: 848 | D18: 1484 | E18: 1 | F18: 1 | I18: 2
A19: 047 | B19: PACHUCA DE SOTO PONIENTE | C19: 849 | D19: 494 | E19: 1 | F19: 0 | I19: 1
A20: 047 | B20: PACHUCA DE SOTO PONIENTE | C20: 850 | D20: 1515 | E20: 1 | F20: 2 | I20: 3
A21: 047 | B21: PACHUCA DE SOTO PONIENTE | C21: 851 | D21: 1275 | E21: 1 | F21: 1 | I21: 2
A22: 047 | B22: PACHUCA DE SOTO PONIENTE | C22: 852 | D22: 7887 | E22: 1 | F22: 10 | I22: 11
A23: 047 | B23: PACHUCA DE SOTO PONIENTE | C23: 853 | D23: 1491 | E23: 1 | F23: 1 | I23: 2
A24: 047 | B24: PACHUCA DE SOTO PONIENTE | C24: 854 | D24: 1481 | E24: 1 | F24: 1 | I24: 2
A25: 047 | B25: PACHUCA DE SOTO PONIENTE | C25: 855 | D25: 1349 | E25: 1 | F25: 1 | I25: 2
A26: 047 | B26: PACHUCA DE SOTO PONIENTE | C26: 856 | D26: 1443 | E26: 1 | F26: 1 | I26: 2
A27: 047 | B27: PACHUCA DE SOTO PONIENTE | C27: 857 | D27: 1052 | E27: 1 | F27: 1 | I27: 2
A28: 047 | B28: PACHUCA DE SOTO PONIENTE | C28: 858 | D28: 563 | E28: 1 | F28: 0 | I28: 1
A29: 047 | B29: PACHUCA DE SOTO PONIENTE | C29: 859 | D29: 598 | E29: 1 | F29: 0 | I29: 1
A30: 047 | B30: PACHUCA DE SOTO PONIENTE | C30: 860 | D30: 828 | E30: 1 | F30: 1 | I30: 2
A31: 047 | B31: PACHUCA DE SOTO PONIENTE | C31: 861 | D31: 565 | E31: 1 | F31: 0 | H31: 1 | I31: 2
A32: 047 | B32: PACHUCA DE SOTO PONIENTE | C32: 872 | D32: 595 | E32: 1 | F32: 0 | I32: 1
A33: 047 | B33: PACHUCA DE SOTO PONIENTE | C33: 873 | D33: 1015 | E33: 1 | F33: 1 | I33: 2
A34: 047 | B34: PACHUCA DE SOTO PONIENTE | C34: 874 | D34: 741 | E34: 1 | F34: 0 | I34: 1
A35: 047 | B35: PACHUCA DE SOTO PONIENTE | C35: 875 | D35: 815 | E35: 1 | F35: 1 | I35: 2
A36: 047 | B36: PACHUCA DE SOTO PONIENTE | C36: 876 | D36: 1401 | E36: 1 | F36: 1 | I36: 2
A37: 047 | B37: PACHUCA DE SOTO PONIENTE | C37: 877 | D37: 1184 | E37: 1 | F37: 1 | I37: 2
A38: 047 | B38: PACHUCA DE SOTO PONIENTE | C38: 878 | D38: 2078 | E38: 1 | F38: 2 | I38: 3
A39: 047 | B39: PACHUCA DE SOTO PONIENTE | C39: 879 | D39: 3975 | E39: 1 | F39: 5 | I39: 6
A40: 047 | B40: PACHUCA DE SOTO PONIENTE | C40: 880 | D40: 8624 | E40: 1 | F40: 4 | G40: 7 | I40: 12
A41: 047 | B41: PACHUCA DE SOTO PONIENTE | C41: 881 | D41: 1302 | E41: 1 | F41: 1 | I41: 2
A42: 047 | B42: PACHUCA DE SOTO PONIENTE | C42: 882 | D42: 1161 | E42: 1 | F42: 1 | I42: 2
A43: 047 | B43: PACHUCA DE SOTO PONIENTE | C43: 883 | D43: 747 | E43: 1 | F43: 0 | I43: 1
A44: 047 | B44: PACHUCA DE SOTO PONIENTE | C44: 884 | D44: 760 | E44: 1 | F44: 1 | I44: 2
A45: 047 | B45: PACHUCA DE SOTO PONIENTE | C45: 885 | D45: 1159 | E45: 1 | F45: 1 | I45: 2
A46: 047 | B46: PACHUCA DE SOTO PONIENTE | C46: 886 | D46: 729 | E46: 1 | F46: 0 | I46: 1
A47: 047 | B47: PACHUCA DE SOTO PONIENTE | C47: 887 | D47: 1227 | E47: 1 | F47: 1 | I47: 2
A48: 047 | B48: PACHUCA DE SOTO PONIENTE | C48: 888 | D48: 1040 | E48: 1 | F48: 1 | I48: 2
A49: 047 | B49: PACHUCA DE SOTO PONIENTE | C49: 889 | D49: 721 | E49: 1 | F49: 0 | I49: 1
A50: 047 | B50: PACHUCA DE SOTO PONIENTE | C50: 890 | D50: 867 | E50: 1 | F50: 1 | I50: 2
A51: 047 | B51: PACHUCA DE SOTO PONIENTE | C51: 891 | D51: 804 | E51: 1 | F51: 1 | I51: 2
A52: 047 | B52: PACHUCA DE SOTO PONIENTE | C52: 892 | D52: 485 | E52: 1 | F52: 0 | I52: 1
A53: 047 | B53: PACHUCA DE SOTO PONIENTE | C53: 893 | D53: 328 | E53: 1 | F53: 0 | I53: 1
A54: 047 | B54: PACHUCA DE SOTO PONIENTE | C54: 905 | D54: 591 | E54: 1 | F54: 0 | I54: 1
A55: 047 | B55: PACHUCA DE SOTO PONIENTE | C55: 906 | D55: 589 | E55: 1 | F55: 0 | I55: 1
A56: 047 | B56: PACHUCA DE SOTO PONIENTE | C56: 907 | D56: 791 | E56: 1 | F56: 1 | I56: 2
A57: 047 | B57: PACHUCA DE SOTO PONIENTE | C57: 908 | D57: 816 | E57: 1 | F57: 1 | I57: 2
A58: 047 | B58: PACHUCA DE SOTO PONIENTE | C58: 909 | D58: 1463 | E58: 1 | F58: 1 | I58: 2
A59: 047 | B59: PACHUCA DE SOTO PONIENTE | C59: 910 | D59: 1597 | E59: 1 | F59: 2 | I59: 3
A60: 047 | B60: PACHUCA DE SOTO PONIENTE | C60: 911 | D60: 1942 | E60: 1 | F60: 2 | I60: 3
A61: 047 | B61: PACHUCA DE SOTO PONIENTE | C61: 912 | D61: 1593 | E61: 1 | F61: 2 | I61: 3
A62: 047 | B62: PACHUCA DE SOTO PONIENTE | C62: 913 | D62: 1780 | E62: 1 | F62: 2 | I62: 3
A63: 047 | B63: PACHUCA DE SOTO PONIENTE | C63: 914 | D63: 2166 | E63: 1 | F63: 2 | I63: 3
A64: 047 | B64: PACHUCA DE SOTO PONIENTE | C64: 915 | D64: 1669 | E64: 1 | F64: 2 | I64: 3
A65: 047 | B65: PACHUCA DE SOTO PONIENTE | C65: 916 | D65: 1802 | E65: 1 | F65: 2 | I65: 3
A66: 047 | B66: PACHUCA DE SOTO PONIENTE | C66: 917 | D66: 9949 | E66: 1 | F66: 3 | G66: 10 | I66: 14
A67: 047 | B67: PACHUCA DE SOTO PONIENTE | C67: 918 | D67: 2432 | E67: 1 | F67: 3 | I67: 4
A68: 047 | B68: PACHUCA DE SOTO PONIENTE | C68: 919 | D68: 1954 | E68: 1 | F68: 2 | I68: 3
A69: 047 | B69: PACHUCA DE SOTO PONIENTE | C69: 920 | D69: 1156 | E69: 1 | F69: 1 | I69: 2
A70: 047 | B70: PACHUCA DE SOTO PONIENTE | C70: 940 | D70: 2380 | E70: 1 | F70: 3 | I70: 4
A71: 047 | B71: PACHUCA DE SOTO PONIENTE | C71: 941 | D71: 1024 | E71: 1 | F71: 1 | I71: 2
A72: 047 | B72: PACHUCA DE SOTO PONIENTE | C72: 942 | D72: 1038 | E72: 1 | F72: 1 | I72: =SUM(E72:H72) -> 2
A73: 047 | B73: PACHUCA DE SOTO PONIENTE | C73: 944 | D73: 2056 | E73: 1 | F73: 2 | I73: 3
A74: 047 | B74: PACHUCA DE SOTO PONIENTE | C74: 954 | D74: 6105 | E74: 1 | F74: 8 | I74: 9
A75: 047 | B75: PACHUCA DE SOTO PONIENTE | C75: 956 | D75: 2606 | E75: 1 | F75: 1 | G75: 2 | I75: 4
A76: 047 | B76: PACHUCA DE SOTO PONIENTE | C76: 957 | D76: 4081 | E76: 1 | F76: 5 | I76: 6
A77: 047 | B77: PACHUCA DE SOTO PONIENTE | C77: 958 | D77: 2034 | E77: 1 | F77: 2 | I77: 3
A78: 047 | B78: PACHUCA DE SOTO PONIENTE | C78: 959 | D78: 3574 | E78: 1 | F78: 4 | I78: 5
A79: PACHUCA DE SOTO PONIENTE | D79: =SUM(D7:D78) -> 118739 | E79: 72 | F79: 100 | G79: 19 | H79: 1 | I79: 192
A81: 039 | B81: MINERAL DEL MONTE | C81: 713 | D81: 967 | E81: 1 | F81: 1 | I81: =SUM(E81:H81) -> 2
A82: 039 | B82: MINERAL DEL MONTE | C82: 714 | D82: 1034 | E82: 1 | F82: 1 | I82: =SUM(E82:H82) -> 2
A83: 039 | B83: MINERAL DEL MONTE | C83: 715 | D83: 1341 | E83: 1 | F83: 1 | I83: 2
A84: 039 | B84: MINERAL DEL MONTE | C84: 716 | D84: 1112 | E84: 1 | F84: 1 | I84: 2
A85: 039 | B85: MINERAL DEL MONTE | C85: 717 | D85: 777 | E85: 1 | F85: 1 | I85: 2
A86: 039 | B86: MINERAL DEL MONTE | C86: 718 | D86: 1144 | E86: 1 | F86: 1 | I86: 2
A87: 039 | B87: MINERAL DEL MONTE | C87: 719 | D87: 1071 | E87: 1 | F87: 1 | I87: 2
A88: 039 | B88: MINERAL DEL MONTE | C88: 720 | D88: 1470 | E88: 1 | F88: 1 | I88: 2
A89: 039 | B89: MINERAL DEL MONTE | C89: 721 | D89: 563 | E89: 1 | F89: 0 | I89: 1
A90: 039 | B90: MINERAL DEL MONTE | C90: 722 | D90: 222 | E90: 1 | F90: 0 | I90: 1
A91: 039 | B91: MINERAL DEL MONTE | C91: 723 | D91: 923 | E91: 1 | F91: 1 | I91: 2
A92: 039 | B92: MINERAL DEL MONTE | C92: 724 | D92: 223 | E92: 1 | F92: 0 | I92: 1
A93: MINERAL DEL MONTE | D93: =SUM(D81:D92) -> 10847 | E93: =SUM(E81:E92) -> 12 | F93: =SUM(F81:F92) -> 9 | G93: =SUM(G81:G92) -> 0 | H93: 0 | I93: =SUM(I81:I92) -> 21
A96: 051 | B96: SAN AGUSTIN TLAXIACA | C96: 1008 | D96: 2036 | E96: 1 | F96: 2 | I96: =SUM(E96:H96) -> 3
A97: 051 | B97: SAN AGUSTIN TLAXIACA | C97: 1009 | D97: 1571 | E97: 1 | F97: 2 | I97: =SUM(E97:H97) -> 3
A98: 051 | B98: SAN AGUSTIN TLAXIACA | C98: 1010 | D98: 2196 | E98: 1 | F98: 2 | I98: 3
A99: 051 | B99: SAN AGUSTIN TLAXIACA | C99: 1011 | D99: 1948 | E99: 1 | F99: 2 | I99: 3
A100: 051 | B100: SAN AGUSTIN TLAXIACA | C100: 1012 | D100: 646 | E100: 1 | F100: 0 | I100: 1
A101: 051 | B101: SAN AGUSTIN TLAXIACA | C101: 1013 | D101: 1843 | E101: 1 | F101: 2 | I101: 3
A102: 051 | B102: SAN AGUSTIN TLAXIACA | C102: 1014 | D102: 1486 | E102: 1 | F102: 1 | I102: 2
A103: 051 | B103: SAN AGUSTIN TLAXIACA | C103: 1015 | D103: 1437 | E103: 1 | F103: 1 | I103: 2
A104: 051 | B104: SAN AGUSTIN TLAXIACA | C104: 1016 | D104: 2018 | E104: 1 | F104: 2 | I104: 3
A105: 051 | B105: SAN AGUSTIN TLAXIACA | C105: 1017 | D105: 738 | E105: 1 | F105: 0 | I105: 1
A106: 051 | B106: SAN AGUSTIN TLAXIACA | C106: 1018 | D106: 271 | E106: 1 | F106: 0 | I106: 1
A107: 051 | B107: SAN AGUSTIN TLAXIACA | C107: 1019 | D107: 362 | E107: 1 | F107: 0 | I107: 1
A108: 051 | B108: SAN AGUSTIN TLAXIACA | C108: 1020 | D108: 1306 | E108: 1 | F108: 1 | I108: 2
A109: 051 | B109: SAN AGUSTIN TLAXIACA | C109: 1021 | D109: 1109 | E109: 1 | F109: 1 | I109: 2
A110: 051 | B110: SAN AGUSTIN TLAXIACA | C110: 1022 | D110: 622 | E110: 1 | F110: 0 | I110: 1
A111: 051 | B111: SAN AGUSTIN TLAXIACA | C111: 1023 | D111: 731 | E111: 1 | F111: 0 | G111: 1 | I111: 2
A112: 051 | B112: SAN AGUSTIN TLAXIACA | C112: 1024 | D112: 365 | E112: 1 | F112: 0 | I112: 1
A113: 051 | B113: SAN AGUSTIN TLAXIACA | C113: 1025 | D113: 539 | E113: 1 | F113: 0 | I113: 1
A114: SAN AGUSTIN TLAXIACA | D114: =SUM(D96:D113) -> 21224 | E114: =SUM(E96:E113) -> 18 | F114: =SUM(F96:F113) -> 16 | G114: =SUM(G96:G113) -> 1 | H114: 0 | I114: =SUM(I96:I113) -> 35
A116: TOTAL DISITRITAL | D116: =SUM(D114,D93,D79) -> 150810 | E116: =SUM(E114,E93,E79) -> 102 | F116: =SUM(F114,F93,F79) -> 125 | G116: =SUM(G114,G93,G79) -> 20 | H116: 1 | I116: =SUM(E116:H116) -> 248

Sheet 2
A1: PADRON Y LISTA NOMINAL
A2: CORTE: | B2: DEFINITIVO
A3: DISTRITO LOCAL II PACHUCA ORIENTE
A6: CLAVE | B6: NOMBRE | C6: Seccion | D6: L N | E6: Basicas | F6: Contiguas | G6: Extras | H6: Especiales | I6: TOTAL
A7: 047 | B7: PACHUCA DE SOTO DE ORIENTE | C7: 742 | D7: 923 | E7: 1 | F7: 1 | I7: =SUM(E7:H7) -> 2
A8: 047 | B8: PACHUCA DE SOTO DE ORIENTE | C8: 837 | D8: 904 | E8: 1 | F8: 1 | I8: =SUM(E8:H8) -> 2
A9: 047 | B9: PACHUCA DE SOTO DE ORIENTE | C9: 838 | D9: 341 | E9: 1 | F9: 0 | I9: 1
A10: 047 | B10: PACHUCA DE SOTO DE ORIENTE | C10: 843 | D10: 914 | E10: 1 | F10: 1 | I10: 2
A11: 047 | B11: PACHUCA DE SOTO DE ORIENTE | C11: 844 | D11: 901 | E11: 1 | F11: 1 | I11: 2
A12: 047 | B12: PACHUCA DE SOTO DE ORIENTE | C12: 845 | D12: 496 | E12: 1 | F12: 0 | I12: 1
A13: 047 | B13: PACHUCA DE SOTO DE ORIENTE | C13: 862 | D13: 664 | E13: 1 | F13: 0 | H13: 1 | I13: 2
A14: 047 | B14: PACHUCA DE SOTO DE ORIENTE | C14: 863 | D14: 1646 | E14: 1 | F14: 2 | I14: 3
A15: 047 | B15: PACHUCA DE SOTO DE ORIENTE | C15: 864 | D15: 799 | E15: 1 | F15: 1 | I15: 2
A16: 047 | B16: PACHUCA DE SOTO DE ORIENTE | C16: 865 | D16: 1316 | E16: 1 | F16: 1 | I16: 2
A17: 047 | B17: PACHUCA DE SOTO DE ORIENTE | C17: 866 | D17: 1292 | E17: 1 | F17: 1 | I17: 2
A18: 047 | B18: PACHUCA DE SOTO DE ORIENTE | C18: 867 | D18: 1087 | E18: 1 | F18: 1 | I18: 2
A19: 047 | B19: PACHUCA DE SOTO DE ORIENTE | C19: 868 | D19: 1161 | E19: 1 | F19: 1 | I19: 2
A20: 047 | B20: PACHUCA DE SOTO DE ORIENTE | C20: 869 | D20: 582 | E20: 1 | F20: 0 | I20: 1
A21: 047 | B21: PACHUCA DE SOTO DE ORIENTE | C21: 870 | D21: 596 | E21: 1 | F21: 0 | I21: 1
A22: 047 | B22: PACHUCA DE SOTO DE ORIENTE | C22: 871 | D22: 838 | E22: 1 | F22: 1 | I22: 2
A23: 047 | B23: PACHUCA DE SOTO DE ORIENTE | C23: 894 | D23: 739 | E23: 1 | F23: 0 | I23: 1
A24: 047 | B24: PACHUCA DE SOTO DE ORIENTE | C24: 895 | D24: 943 | E24: 1 | F24: 1 | I24: 2
A25: 047 | B25: PACHUCA DE SOTO DE ORIENTE | C25: 896 | D25: 984 | E25: 1 | F25: 1 | I25: 2
A26: 047 | B26: PACHUCA DE SOTO DE ORIENTE | C26: 897 | D26: 1475 | E26: 1 | F26: 1 | I26: 2
A27: 047 | B27: PACHUCA DE SOTO DE ORIENTE | C27: 898 | D27: 1472 | E27: 1 | F27: 1 | I27: 2
A28: 047 | B28: PACHUCA DE SOTO DE ORIENTE | C28: 899 | D28: 988 | E28: 1 | F28: 1 | I28: 2
A29: 047 | B29: PACHUCA DE SOTO DE ORIENTE | C29: 900 | D29: 1543 | E29: 1 | F29: 2 | I29: 3
A30: 047 | B30: PACHUCA DE SOTO DE ORIENTE | C30: 901 | D30: 1015 | E30: 1 | F30: 1 | I30: 2
A31: 047 | B31: PACHUCA DE SOTO DE ORIENTE | C31: 902 | D31: 1518 | E31: 1 | F31: 2 | I31: 3
A32: 047 | B32: PACHUCA DE SOTO DE ORIENTE | C32: 903 | D32: 951 | E32: 1 | F32: 1 | I32: 2
A33: 047 | B33: PACHUCA DE SOTO DE ORIENTE | C33: 904 | D33: 1096 | E33: 1 | F33: 1 | I33: 2
A34: 047 | B34: PACHUCA DE SOTO DE ORIENTE | C34: 921 | D34: 1082 | E34: 1 | F34: 1 | I34: 2
A35: 047 | B35: PACHUCA DE SOTO DE ORIENTE | C35: 922 | D35: 1729 | E35: 1 | F35: 2 | I35: 3
A36: 047 | B36: PACHUCA DE SOTO DE ORIENTE | C36: 923 | D36: 1449 | E36: 1 | F36: 1 | I36: 2
A37: 047 | B37: PACHUCA DE SOTO DE ORIENTE | C37: 924 | D37: 906 | E37: 1 | F37: 1 | I37: 2
A38: 047 | B38: PACHUCA DE SOTO DE ORIENTE | C38: 925 | D38: 1161 | E38: 1 | F38: 1 | I38: 2
A39: 047 | B39: PACHUCA DE SOTO DE ORIENTE | C39: 926 | D39: 855 | E39: 1 | F39: 1 | I39: 2
A40: 047 | B40: PACHUCA DE SOTO DE ORIENTE | C40: 927 | D40: 565 | E40: 1 | F40: 0 | I40: 1
A41: 047 | B41: PACHUCA DE SOTO DE ORIENTE | C41: 928 | D41: 1176 | E41: 1 | F41: 1 | I41: 2
A42: 047 | B42: PACHUCA DE SOTO DE ORIENTE | C42: 930 | D42: 1948 | E42: 1 | F42: 2 | I42: 3
A43: 047 | B43: PACHUCA DE SOTO DE ORIENTE | C43: 931 | D43: 1410 | E43: 1 | F43: 1 | I43: 2
A44: 047 | B44: PACHUCA DE SOTO DE ORIENTE | C44: 932 | D44: 2636 | E44: 1 | F44: 3 | I44: 4
A45: 047 | B45: PACHUCA DE SOTO DE ORIENTE | C45: 933 | D45: 2687 | E45: 1 | F45: 3 | I45: 4
A46: 047 | B46: PACHUCA DE SOTO DE ORIENTE | C46: 934 | D46: 7595 | E46: 1 | F46: 6 | G46: 4 | I46: 11
A47: 047 | B47: PACHUCA DE SOTO DE ORIENTE | C47: 935 | D47: 4299 | E47: 1 | F47: 5 | I47: 6
A48: 047 | B48: PACHUCA DE SOTO DE ORIENTE | C48: 936 | D48: 680 | E48: 1 | F48: 0 | I48: 1
A49: 047 | B49: PACHUCA DE SOTO DE ORIENTE | C49: 939 | D49: 2624 | E49: 1 | F49: 3 | I49: 4
A50: 047 | B50: PACHUCA DE SOTO DE ORIENTE | C50: 943 | D50: 1169 | E50: 1 | F50: 1 | I50: 2
A51: 047 | B51: PACHUCA DE SOTO DE ORIENTE | C51: 945 | D51: 678 | E51: 1 | F51: 0 | I51: 1
A52: 047 | B52: PACHUCA DE SOTO DE ORIENTE | C52: 946 | D52: 825 | E52: 1 | F52: 1 | I52: 2
A53: 047 | B53: PACHUCA DE SOTO DE ORIENTE | C53: 947 | D53: 779 | E53: 1 | F53: 1 | I53: 2
A54: 047 | B54: PACHUCA DE SOTO DE ORIENTE | C54: 948 | D54: 2890 | E54: 1 | F54: 3 | I54: 4
A55: 047 | B55: PACHUCA DE SOTO DE ORIENTE | C55: 949 | D55: 1029 | E55: 1 | F55: 1 | I55: 2
A56: 047 | B56: PACHUCA DE SOTO DE ORIENTE | C56: 950 | D56: 1128 | E56: 1 | F56: 1 | I56: 2
A57: 047 | B57: PACHUCA DE SOTO DE ORIENTE | C57: 951 | D57: 2842 | E57: 1 | F57: 3 | I57: 4
A58: 047 | B58: PACHUCA DE SOTO DE ORIENTE | C58: 952 | D58: 3368 | E58: 1 | F58: 4 | I58: 5
A59: 047 | B59: PACHUCA DE SOTO DE ORIENTE | C59: 953 | D59: 1484 | E59: 1 | F59: 1 | I59: 2
A60: 047 | B60: PACHUCA DE SOTO DE ORIENTE | C60: 955 | D60: 4492 | E60: 1 | F60: 5 | I60: 6
A61: 047 | B61: PACHUCA DE SOTO DE ORIENTE | C61: 960 | D61: 4101 | E61: 1 | F61: 5 | I61: 6
A62: 047 | B62: PACHUCA DE SOTO DE ORIENTE | C62: 961 | D62: 1308 | E62: 1 | F62: 1 | I62: 2
A63: 047 | B63: PACHUCA DE SOTO DE ORIENTE | C63: 1718 | D63: 723 | E63: 1 | F63: 0 | I63: 1
A64: PACHUCA DE SOTO ORIENTE | D64: =SUM(D7:D63) -> 86802 | E64: =SUM(E7:E63) -> 57 | F64: =SUM(F7:F63) -> 82 | G64: =SUM(G7:G63) -> 4 | H64: 1 | I64: 144
A66: 40 | B66: MINERAL DE LA REFORMA | C66: 725 | D66: 13116 | E66: 1 | F66: 3 | G66: 14 | I66: =SUM(E66:H66) -> 18
A67: 40 | B67: MINERAL DE LA REFORMA | C67: 726 | D67: 2230 | E67: 1 | F67: 2 | I67: =SUM(E67:H67) -> 3
A68: 40 | B68: MINERAL DE LA REFORMA | C68: 727 | D68: 3663 | E68: 1 | F68: 4 | I68: 5
A69: 40 | B69: MINERAL DE LA REFORMA | C69: 728 | D69: 2569 | E69: 1 | F69: 3 | I69: 4
A70: 40 | B70: MINERAL DE LA REFORMA | C70: 729 | D70: 2408 | E70: 1 | F70: 3 | I70: 4
A71: 40 | B71: MINERAL DE LA REFORMA | C71: 730 | D71: 2007 | E71: 1 | F71: 2 | I71: 3
A72: 40 | B72: MINERAL DE LA REFORMA | C72: 731 | D72: 9477 | E72: 1 | F72: 2 | G72: 10 | I72: 13
A73: 40 | B73: MINERAL DE LA REFORMA | C73: 732 | D73: 1516 | E73: 1 | F73: 2 | I73: 3
A74: 40 | B74: MINERAL DE LA REFORMA | C74: 733 | D74: 798 | E74: 1 | F74: 1 | I74: 2
A75: 40 | B75: MINERAL DE LA REFORMA | C75: 734 | D75: 4637 | E75: 1 | F75: 6 | I75: 7
A76: 40 | B76: MINERAL DE LA REFORMA | C76: 735 | D76: 974 | E76: 1 | F76: 1 | I76: 2
A77: 40 | B77: MINERAL DE LA REFORMA | C77: 736 | D77: 1268 | E77: 1 | F77: 1 | I77: 2
A78: 40 | B78: MINERAL DE LA REFORMA | C78: 737 | D78: 5698 | E78: 1 | F78: 7 | I78: 8
A79: 40 | B79: MINERAL DE LA REFORMA | C79: 738 | D79: 960 | E79: 1 | F79: 1 | I79: 2
A80: 40 | B80: MINERAL DE LA REFORMA | C80: 740 | D80: 4718 | E80: 1 | F80: 6 | I80: 7
A81: 40 | B81: MINERAL DE LA REFORMA | C81: 741 | D81: 1121 | E81: 1 | F81: 1 | I81: 2
A82: 40 | B82: MINERAL DE LA REFORMA | C82: 929 | D82: 1168 | E82: 1 | F82: 1 | I82: 2
A83: 40 | B83: MINERAL DE LA REFORMA | C83: 937 | D83: 777 | E83: 1 | F83: 1 | I83: 2
A84: 40 | B84: MINERAL DE LA REFORMA | C84: 938 | D84: 536 | E84: 1 | F84: 0 | I84: 1
A85: 40 | B85: MINERAL DE LA REFORMA | C85: 1708 | D85: 531 | E85: 1 | F85: 0 | I85: 1
A86: 40 | B86: MINERAL DE LA REFORMA | C86: 1709 | D86: 1008 | E86: 1 | F86: 1 | I86: 2
A87: 40 | B87: MINERAL DE LA REFORMA | C87: 1710 | D87: 1684 | E87: 1 | F87: 2 | I87: 3
A88: 40 | B88: MINERAL DE LA REFORMA | C88: 1711 | D88: 862 | E88: 1 | F88: 1 | I88: 2
A89: 40 | B89: MINERAL DE LA REFORMA | C89: 1712 | D89: 1028 | E89: 1 | F89: 1 | I89: 2
A90: 40 | B90: MINERAL DE LA REFORMA | C90: 1713 | D90: 913 | E90: 1 | F90: 1 | I90: 2
A91: 40 | B91: MINERAL DE LA REFORMA | C91: 1714 | D91: 539 | E91: 1 | F91: 0 | I91: 1
A92: 40 | B92: MINERAL DE LA REFORMA | C92: 1715 | D92: 519 | E92: 1 | F92: 0 | I92: 1
A93: 40 | B93: MINERAL DE LA REFORMA | C93: 1716 | D93: 1354 | E93: 1 | F93: 1 | I93: 2
A94: 40 | B94: MINERAL DE LA REFORMA | C94: 1717 | D94: 1777 | E94: 1 | F94: 2 | I94: 3
A95: 40 | B95: MINERAL DE LA REFORMA | C95: 1719 | D95: 553 | E95: 1 | F95: 0 | I95: 1
A96: 40 | B96: MINERAL DE LA REFORMA | C96: 1720 | D96: 356 | E96: 1 | F96: 0 | I96: 1
A97: 40 | B97: MINERAL DE LA REFORMA | C97: 1721 | D97: 493 | E97: 1 | F97: 0 | I97: 1
A98: 40 | B98: MINERAL DE LA REFORMA | C98: 1722 | D98: 486 | E98: 1 | F98: 0 | I98: 1
A99: 40 | B99: MINERAL DE LA REFORMA | C99: 1723 | D99: 498 | E99: 1 | F99: 0 | I99: 1
A100: 40 | B100: MINERAL DE LA REFORMA | C100: 1724 | D100: 554 | E100: 1 | F100: 0 | I100: 1
A101: 40 | B101: MINERAL DE LA REFORMA | C101: 1725 | D101: 466 | E101: 1 | F101: 0 | I101: 1
A102: 40 | B102: MINERAL DE LA REFORMA | C102: 1726 | D102: 361 | E102: 1 | F102: 0 | I102: 1
A103: 40 | B103: MINERAL DE LA REFORMA | C103: 1727 | D103: 622 | E103: 1 | F103: 0 | I103: 1
A104: 40 | B104: MINERAL DE LA REFORMA | C104: 1728 | D104: 594 | E104: 1 | F104: 0 | I104: 1
A105: 40 | B105: MINERAL DE LA REFORMA | C105: 1729 | D105: 570 | E105: 1 | F105: 0 | I105: 1
A106: 40 | B106: MINERAL DE LA REFORMA | C106: 1730 | D106: 331 | E106: 1 | F106: 0 | I106: 1
A107: 40 | B107: MINERAL DE LA REFORMA | C107: 1731 | D107: 321 | E107: 1 | F107: 0 | I107: 1
A108: 40 | B108: MINERAL DE LA REFORMA | C108: 1732 | D108: 388 | E108: 1 | F108: 0 | I108: 1
A109: 40 | B109: MINERAL DE LA REFORMA | C109: 1733 | D109: 632 | E109: 1 | F109: 0 | I109: 1
A110: 40 | B110: MINERAL DE LA REFORMA | C110: 1734 | D110: 364 | E110: 1 | F110: 0 | I110: 1
A111: 40 | B111: MINERAL DE LA REFORMA | C111: 1735 | D111: 534 | E111: 1 | F111: 0 | I111: 1
A112: 40 | B112: MINERAL DE LA REFORMA | C112: 1736 | D112: 618 | E112: 1 | F112: 0 | I112: 1
A113: 40 | B113: MINERAL DE LA REFORMA | C113: 1737 | D113: 594 | E113: 1 | F113: 0 | I113: 1
A114: 40 | B114: MINERAL DE LA REFORMA | C114: 1738 | D114: 583 | E114: 1 | F114: 0 | I114: 1
A115: 40 | B115: MINERAL DE LA REFORMA | C115: 1739 | D115: 422 | E115: 1 | F115: 0 | I115: 1
A116: 40 | B116: MINERAL DE LA REFORMA | C116: 1740 | D116: 522 | E116: 1 | F116: 0 | I116: 1
A117: 40 | B117: MINERAL DE LA REFORMA | C117: 1741 | D117: 623 | E117: 1 | F117: 0 | I117: 1
A118: 40 | B118: MINERAL DE LA REFORMA | C118: 1742 | D118: 508 | E118: 1 | F118: 0 | I118: 1
A119: 40 | B119: MINERAL DE LA REFORMA | C119: 1743 | D119: 422 | E119: 1 | F119: 0 | I119: 1
A120: 40 | B120: MINERAL DE LA REFORMA | C120: 1744 | D120: 600 | E120: 1 | F120: 0 | I120: 1
A121: 40 | B121: MINERAL DE LA REFORMA | C121: 1745 | D121: 546 | E121: 1 | F121: 0 | I121: 1
A122: 40 | B122: MINERAL DE LA REFORMA | C122: 1746 | D122: 355 | E122: 1 | F122: 0 | I122: 1
A123: 40 | B123: MINERAL DE LA REFORMA | C123: 1747 | D123: 523 | E123: 1 | F123: 0 | I123: 1
A124: 40 | B124: MINERAL DE LA REFORMA | C124: 1748 | D124: 489 | E124: 1 | F124: 0 | I124: 1
A125: 40 | B125: MINERAL DE LA REFORMA | C125: 1749 | D125: 376 | E125: 1 | F125: 0 | I125: 1
A126: MINERAL DE LA REFORMA | D126: =SUM(D66:D125) -> 85160 | E126: =SUM(E66:E125) -> 60 | F126: =SUM(F66:F125) -> 56 | G126: =SUM(G66:G125) -> 24 | H126: 0 | I126: 140
A128: 022 | B128: EPAZOYUCAN | C128: 358 | D128: 1416 | E128: 1 | F128: 1 | I128: =SUM(E128:H128) -> 2
A129: 022 | B129: EPAZOYUCAN | C129: 359 | D129: 1119 | E129: 1 | F129: 1 | I129: =SUM(E129:H129) -> 2
A130: 022 | B130: EPAZOYUCAN | C130: 360 | D130: 1215 | E130: 1 | F130: 1 | I130: 2
A131: 022 | B131: EPAZOYUCAN | C131: 361 | D131: 809 | E131: 1 | F131: 1 | I131: 2
A132: 022 | B132: EPAZOYUCAN | C132: 362 | D132: 381 | E132: 1 | F132: 0 | I132: 1
A133: 022 | B133: EPAZOYUCAN | C133: 363 | D133: 1676 | E133: 1 | F133: 2 | I133: 3
A134: 022 | B134: EPAZOYUCAN | C134: 364 | D134: 423 | E134: 1 | F134: 0 | I134: 1
A135: 022 | B135: EPAZOYUCAN | C135: 365 | D135: 454 | E135: 1 | F135: 0 | I135: 1
A136: 022 | B136: EPAZOYUCAN | C136: 366 | D136: 114 | E136: 1 | F136: 0 | I136: 1
A137: 022 | B137: EPAZOYUCAN | C137: 367 | D137: 1095 | E137: 1 | F137: 1 | I137: 2
A138: 022 | B138: EPAZOYUCAN | C138: 368 | D138: 1634 | E138: 1 | F138: 2 | I138: 3
A139: EPAZOYUCAN | D139: =SUM(D128:D138) -> 10336 | E139: =SUM(E128:E138) -> 11 | F139: =SUM(F128:F138) -> 9 | G139: =SUM(G128:G138) -> 0 | H139: 0 | I139: 20
A142: TOTAL DISITRITAL | D142: =SUM(D139,D126,D64) -> 182298 | E142: =SUM(E139,E126,E64) -> 128 | F142: =SUM(F139,F126,F64) -> 147 | G142: =SUM(G139,G126,G64) -> 28 | H142: 1 | I142: =SUM(E142:H142) -> 304

Sheet 3
A1: PADRON Y LISTA NOMINAL
A2: CORTE: | B2: DEFINITIVO
A3: DISTRITO LOCAL III TULANCINGO
A6: CLAVE | B6: NOMBRE | C6: Seccion | D6: L N | E6: Basicas | F6: Contiguas | G6: Extras | H6: Especiales | I6: TOTAL
A7: 076 | B7: TULANCINGO DE BRAVO | C7: 1502 | D7: 7153 | E7: 1 | F7: 4 | G7: 5 | I7: =SUM(E7:H7) -> 10
A8: 076 | B8: TULANCINGO DE BRAVO | C8: 1503 | D8: 3835 | E8: 1 | F8: 5 | I8: =SUM(E8:H8) -> 6
A9: 076 | B9: TULANCINGO DE BRAVO | C9: 1504 | D9: 4534 | E9: 1 | F9: 6 | I9: 7
A10: 076 | B10: TULANCINGO DE BRAVO | C10: 1505 | D10: 3591 | E10: 1 | F10: 4 | I10: 5
A11: 076 | B11: TULANCINGO DE BRAVO | C11: 1506 | D11: 2594 | E11: 1 | F11: 3 | I11: 4
A12: 076 | B12: TULANCINGO DE BRAVO | C12: 1507 | D12: 2049 | E12: 1 | F12: 2 | I12: 3
A13: 076 | B13: TULANCINGO DE BRAVO | C13: 1508 | D13: 1348 | E13: 1 | F13: 1 | I13: 2
A14: 076 | B14: TULANCINGO DE BRAVO | C14: 1509 | D14: 1844 | E14: 1 | F14: 2 | I14: 3
A15: 076 | B15: TULANCINGO DE BRAVO | C15: 1510 | D15: 2945 | E15: 1 | F15: 3 | I15: 4
A16: 076 | B16: TULANCINGO DE BRAVO | C16: 1511 | D16: 5292 | E16: 1 | F16: 4 | G16: 3 | I16: 8
A17: 076 | B17: TULANCINGO DE BRAVO | C17: 1512 | D17: 2435 | E17: 1 | F17: 3 | I17: 4
A18: 076 | B18: TULANCINGO DE BRAVO | C18: 1513 | D18: 2276 | E18: 1 | F18: 3 | I18: 4
A19: 076 | B19: TULANCINGO DE BRAVO | C19: 1514 | D19: 1906 | E19: 1 | F19: 2 | I19: 3
A20: 076 | B20: TULANCINGO DE BRAVO | C20: 1515 | D20: 1854 | E20: 1 | F20: 2 | I20: 3
A21: 076 | B21: TULANCINGO DE BRAVO | C21: 1516 | D21: 1653 | E21: 1 | F21: 2 | I21: 3
A22: 076 | B22: TULANCINGO DE BRAVO | C22: 1517 | D22: 1434 | E22: 1 | F22: 1 | I22: 2
A23: 076 | B23: TULANCINGO DE BRAVO | C23: 1518 | D23: 1175 | E23: 1 | F23: 1 | I23: 2
A24: 076 | B24: TULANCINGO DE BRAVO | C24: 1519 | D24: 897 | E24: 1 | F24: 1 | I24: 2
A25: 076 | B25: TULANCINGO DE BRAVO | C25: 1520 | D25: 1827 | E25: 1 | F25: 2 | I25: 3
A26: 076 | B26: TULANCINGO DE BRAVO | C26: 1521 | D26: 764 | E26: 1 | F26: 1 | H26: 1 | I26: 3
A27: 076 | B27: TULANCINGO DE BRAVO | C27: 1522 | D27: 1009 | E27: 1 | F27: 1 | I27: 2
A28: 076 | B28: TULANCINGO DE BRAVO | C28: 1523 | D28: 942 | E28: 1 | F28: 1 | I28: 2
A29: 076 | B29: TULANCINGO DE BRAVO | C29: 1524 | D29: 1357 | E29: 1 | F29: 1 | I29: 2
A30: 076 | B30: TULANCINGO DE BRAVO | C30: 1525 | D30: 2007 | E30: 1 | F30: 2 | I30: 3
A31: 076 | B31: TULANCINGO DE BRAVO | C31: 1526 | D31: 2218 | E31: 1 | F31: 2 | I31: 3
A32: 076 | B32: TULANCINGO DE BRAVO | C32: 1527 | D32: 1053 | E32: 1 | F32: 1 | I32: 2
A33: 076 | B33: TULANCINGO DE BRAVO | C33: 1528 | D33: 3879 | E33: 1 | F33: 5 | I33: 6
A34: 076 | B34: TULANCINGO DE BRAVO | C34: 1529 | D34: 2416 | E34: 1 | F34: 3 | I34: 4
A35: 076 | B35: TULANCINGO DE BRAVO | C35: 1530 | D35: 2058 | E35: 1 | F35: 2 | I35: 3
A36: 076 | B36: TULANCINGO DE BRAVO | C36: 1531 | D36: 980 | E36: 1 | F36: 1 | I36: 2
A37: 076 | B37: TULANCINGO DE BRAVO | C37: 1532 | D37: 1237 | E37: 1 | F37: 1 | I37: 2
A38: 076 | B38: TULANCINGO DE BRAVO | C38: 1533 | D38: 1068 | E38: 1 | F38: 1 | I38: 2
A39: 076 | B39: TULANCINGO DE BRAVO | C39: 1534 | D39: 1374 | E39: 1 | F39: 1 | I39: 2
A40: 076 | B40: TULANCINGO DE BRAVO | C40: 1535 | D40: 1668 | E40: 1 | F40: 2 | I40: 3
A41: 076 | B41: TULANCINGO DE BRAVO | C41: 1536 | D41: 3603 | E41: 1 | F41: 0 | G41: 4 | I41: 5
A42: 076 | B42: TULANCINGO DE BRAVO | C42: 1537 | D42: 1851 | E42: 1 | F42: 2 | I42: 3
A43: 076 | B43: TULANCINGO DE BRAVO | C43: 1538 | D43: 2421 | E43: 1 | F43: 3 | I43: 4
A44: 076 | B44: TULANCINGO DE BRAVO | C44: 1539 | D44: 3476 | E44: 1 | F44: 4 | I44: 5
A45: 076 | B45: TULANCINGO DE BRAVO | C45: 1540 | D45: 603 | E45: 1 | F45: 0 | I45: 1
A46: 076 | B46: TULANCINGO DE BRAVO | C46: 1541 | D46: 530 | E46: 1 | F46: 0 | I46: 1
A47: 076 | B47: TULANCINGO DE BRAVO | C47: 1542 | D47: 922 | E47: 1 | F47: 1 | I47: 2
A48: 076 | B48: TULANCINGO DE BRAVO | C48: 1543 | D48: 1669 | E48: 1 | F48: 2 | I48: 3
A49: 076 | B49: TULANCINGO DE BRAVO | C49: 1544 | D49: 3167 | E49: 1 | F49: 4 | I49: 5
A50: 076 | B50: TULANCINGO DE BRAVO | C50: 1545 | D50: 2146 | E50: 1 | F50: 2 | I50: 3
A51: 076 | B51: TULANCINGO DE BRAVO | C51: 1546 | D51: 668 | E51: 1 | F51: 0 | I51: 1
A52: 076 | B52: TULANCINGO DE BRAVO | C52: 1547 | D52: 223 | E52: 1 | F52: 0 | I52: 1
A53: 076 | B53: TULANCINGO DE BRAVO | C53: 1548 | D53: 3599 | E53: 1 | F53: 4 | I53: 5
A54: 076 | B54: TULANCINGO DE BRAVO | C54: 1549 | D54: 2521 | E54: 1 | F54: 3 | I54: 4
A55: 076 | B55: TULANCINGO DE BRAVO | C55: 1550 | D55: 904 | E55: 1 | F55: 1 | I55: 2
A56: 076 | B56: TULANCINGO DE BRAVO | C56: 1551 | D56: 1511 | E56: 1 | F56: 2 | I56: 3
A57: 076 | B57: TULANCINGO DE BRAVO | C57: 1552 | D57: 404 | E57: 1 | F57: 0 | I57: 1
A58: 076 | B58: TULANCINGO DE BRAVO | C58: 1553 | D58: 1044 | E58: 1 | F58: 1 | I58: 2
A59: 076 | B59: TULANCINGO DE BRAVO | C59: 1554 | D59: 5872 | E59: 1 | F59: 7 | I59: 8
A60: 076 | B60: TULANCINGO DE BRAVO | C60: 1555 | D60: 911 | E60: 1 | F60: 1 | I60: =SUM(E60:F60) -> 2
A61: TULANCINGO DE BRAVO | D61: =SUM(D7:D60) -> 112717 | E61: =SUM(E7:E60) -> 54 | F61: =SUM(F7:F60) -> 113 | G61: =SUM(G7:G60) -> 12 | H61: 1 | I61: =SUM(I7:I60) -> 180
A63: 015 | B63: CUAUTEPEC DE HINOJOSA | C63: 257 | D63: 2715 | E63: 1 | F63: 3 | I63: =SUM(E63:H63) -> 4
A64: 015 | B64: CUAUTEPEC DE HINOJOSA | C64: 258 | D64: 2695 | E64: 1 | F64: 3 | I64: =SUM(E64:H64) -> 4
A65: 015 | B65: CUAUTEPEC DE HINOJOSA | C65: 259 | D65: 1572 | E65: 1 | F65: 2 | I65: 3
A66: 015 | B66: CUAUTEPEC DE HINOJOSA | C66: 260 | D66: 811 | E66: 1 | F66: 1 | I66: 2
A67: 015 | B67: CUAUTEPEC DE HINOJOSA | C67: 261 | D67: 1383 | E67: 1 | F67: 1 | I67: 2
A68: 015 | B68: CUAUTEPEC DE HINOJOSA | C68: 262 | D68: 2198 | E68: 1 | F68: 2 | I68: 3
A69: 015 | B69: CUAUTEPEC DE HINOJOSA | C69: 263 | D69: 1020 | E69: 1 | F69: 1 | I69: 2
A70: 015 | B70: CUAUTEPEC DE HINOJOSA | C70: 264 | D70: 2807 | E70: 1 | F70: 3 | I70: 4
A71: 015 | B71: CUAUTEPEC DE HINOJOSA | C71: 265 | D71: 2314 | E71: 1 | F71: 3 | I71: 4
A72: 015 | B72: CUAUTEPEC DE HINOJOSA | C72: 266 | D72: 1069 | E72: 1 | F72: 1 | I72: 2
A73: 015 | B73: CUAUTEPEC DE HINOJOSA | C73: 267 | D73: 751 | E73: 1 | F73: 1 | I73: 2
A74: 015 | B74: CUAUTEPEC DE HINOJOSA | C74: 268 | D74: 447 | E74: 1 | F74: 0 | I74: 1
A75: 015 | B75: CUAUTEPEC DE HINOJOSA | C75: 269 | D75: 2617 | E75: 1 | F75: 3 | I75: 4
A76: 015 | B76: CUAUTEPEC DE HINOJOSA | C76: 270 | D76: 1801 | E76: 1 | F76: 2 | I76: 3
A77: 015 | B77: CUAUTEPEC DE HINOJOSA | C77: 271 | D77: 2774 | E77: 1 | F77: 3 | I77: 4
A78: 015 | B78: CUAUTEPEC DE HINOJOSA | C78: 272 | D78: 808 | E78: 1 | F78: 1 | I78: 2
A79: 015 | B79: CUAUTEPEC DE HINOJOSA | C79: 273 | D79: 3204 | E79: 1 | F79: 4 | I79: 5
A80: 015 | B80: CUAUTEPEC DE HINOJOSA | C80: 274 | D80: 3226 | E80: 1 | F80: 4 | I80: 5
A81: 015 | B81: CUAUTEPEC DE HINOJOSA | C81: 275 | D81: 798 | E81: 1 | F81: 1 | I81: 2
A82: 015 | B82: CUAUTEPEC DE HINOJOSA | C82: 276 | D82: 750 | E82: 1 | F82: 0 | I82: 1
A83: 015 | B83: CUAUTEPEC DE HINOJOSA | C83: 277 | D83: 646 | E83: 1 | F83: 0 | I83: 1
A84: 015 | B84: CUAUTEPEC DE HINOJOSA | C84: 278 | D84: 770 | E84: 1 | F84: 1 | I84: 2
A85: 015 | B85: CUAUTEPEC DE HINOJOSA | C85: 279 | D85: 517 | E85: 1 | F85: 0 | I85: 1
A86: 015 | B86: CUAUTEPEC DE HINOJOSA | C86: 280 | D86: 1188 | E86: 1 | F86: 1 | I86: 2
A87: CUAUTEPEC DE HINOJOSA | D87: =SUM(D63:D86) -> 38881 | E87: =SUM(E63:E86) -> 24 | F87: =SUM(F63:F86) -> 41 | G87: =SUM(G63:G86) -> 0 | H87: 0 | I87: 65
A89: 056 | B89: SANTIAGO TULANTEPEC DE LUGO GRO | C89: 1110 | D89: 2760 | E89: 1 | F89: 3 | I89: =SUM(E89:H89) -> 4
A90: 056 | B90: SANTIAGO TULANTEPEC DE LUGO GRO | C90: 1111 | D90: 1972 | E90: 1 | F90: 2 | I90: =SUM(E90:H90) -> 3
A91: 056 | B91: SANTIAGO TULANTEPEC DE LUGO GRO | C91: 1112 | D91: 1962 | E91: 1 | F91: 2 | I91: 3
A92: 056 | B92: SANTIAGO TULANTEPEC DE LUGO GRO | C92: 1113 | D92: 1814 | E92: 1 | F92: 2 | I92: 3
A93: 056 | B93: SANTIAGO TULANTEPEC DE LUGO GRO | C93: 1114 | D93: 4409 | E93: 1 | F93: 5 | I93: 6
A94: 056 | B94: SANTIAGO TULANTEPEC DE LUGO GRO | C94: 1115 | D94: 368 | E94: 1 | F94: 0 | I94: 1
A95: 056 | B95: SANTIAGO TULANTEPEC DE LUGO GRO | C95: 1116 | D95: 4905 | E95: 1 | F95: 4 | G95: 2 | I95: 7
A96: 056 | B96: SANTIAGO TULANTEPEC DE LUGO GRO | C96: 1117 | D96: 937 | E96: 1 | F96: 1 | I96: 2
A97: 056 | B97: SANTIAGO TULANTEPEC DE LUGO GRO | C97: 1118 | D97: 2327 | E97: 1 | F97: 3 | I97: 4
A98: 056 | B98: SANTIAGO TULANTEPEC DE LUGO GRO | C98: 1119 | D98: 381 | E98: 1 | F98: 0 | I98: 1
A99: 056 | B99: SANTIAGO TULANTEPEC DE LUGO GRO | C99: 1120 | D99: 747 | E99: 1 | F99: 0 | I99: 1
A100: SANTIAGO TULANTEPEC DE LUGO GRO | D100: =SUM(D89:D99) -> 22582 | E100: =SUM(E89:E99) -> 11 | F100: =SUM(F89:F99) -> 22 | G100: =SUM(G89:G99) -> 2 | H100: 0 | I100: 35
A104: 057 | B104: SINGUILUCAN | C104: 1121 | D104: 2667 | E104: 1 | F104: 3 | I104: =SUM(E104:H104) -> 4
A105: 057 | B105: SINGUILUCAN | C105: 1122 | D105: 1479 | E105: 1 | F105: 1 | I105: =SUM(E105:H105) -> 2
A106: 057 | B106: SINGUILUCAN | C106: 1123 | D106: 1794 | E106: 1 | F106: 2 | I106: 3
A107: 057 | B107: SINGUILUCAN | C107: 1124 | D107: 664 | E107: 1 | F107: 0 | I107: 1
A108: 057 | B108: SINGUILUCAN | C108: 1125 | D108: 1267 | E108: 1 | F108: 1 | I108: 2
A109: 057 | B109: SINGUILUCAN | C109: 1126 | D109: 540 | E109: 1 | F109: 0 | I109: 1
A110: 057 | B110: SINGUILUCAN | C110: 1127 | D110: 444 | E110: 1 | F110: 0 | I110: 1
A111: 057 | B111: SINGUILUCAN | C111: 1128 | D111: 691 | E111: 1 | F111: 0 | I111: 1
A112: 057 | B112: SINGUILUCAN | C112: 1129 | D112: 560 | E112: 1 | F112: 0 | I112: 1
A113: 057 | B113: SINGUILUCAN | C113: 1130 | D113: 708 | E113: 1 | F113: 0 | I113: 1
A114: 057 | B114: SINGUILUCAN | C114: 1131 | D114: 571 | E114: 1 | F114: 0 | I114: 1
A115: SINGUILUCAN | D115: =SUM(D104:D114) -> 11385 | E115: =SUM(E104:E114) -> 11 | F115: =SUM(F104:F114) -> 7 | G115: =SUM(G104:G114) -> 0 | H115: 0 | I115: 18
A118: TOTAL DISITRITAL | D118: =SUM(D115,D100,D87,D61) -> 185565 | E118: =SUM(E115,E100,E87,E61) -> 100 | F118: =SUM(F115,F100,F87,F61) -> 183 | G118: =SUM(G115,G100,G87,G61) -> 14 | H118: 1 | I118: 298

Sheet 4
A1: PADRON Y LISTA NOMINAL
A2: CORTE: | B2: DEFINITIVO
A3: DISTRITO LOCAL IV TULA
A6: CLAVE | B6: NOMBRE | C6: Seccion | D6: L N | E6: Basicas | F6: Contiguas | G6: Extras | H6: Especiales | I6: TOTAL
A7: 075 | B7: TULA DE ALLENDE | C7: 1449 | D7: 1615 | E7: 1 | F7: 2 | I7: =SUM(E7:H7) -> 3
A8: 075 | B8: TULA DE ALLENDE | C8: 1450 | D8: 1510 | E8: 1 | F8: 2 | I8: =SUM(E8:H8) -> 3
A9: 075 | B9: TULA DE ALLENDE | C9: 1451 | D9: 1267 | E9: 1 | F9: 1 | I9: 2
A10: 075 | B10: TULA DE ALLENDE | C10: 1452 | D10: 1894 | E10: 1 | F10: 2 | I10: 3
A11: 075 | B11: TULA DE ALLENDE | C11: 1453 | D11: 2003 | E11: 1 | F11: 2 | H11: 1 | I11: 4
A12: 075 | B12: TULA DE ALLENDE | C12: 1454 | D12: 1214 | E12: 1 | F12: 1 | I12: 2
A13: 075 | B13: TULA DE ALLENDE | C13: 1455 | D13: 958 | E13: 1 | F13: 1 | I13: 2
A14: 075 | B14: TULA DE ALLENDE | C14: 1456 | D14: 2547 | E14: 1 | F14: 3 | I14: 4
A15: 075 | B15: TULA DE ALLENDE | C15: 1457 | D15: 1714 | E15: 1 | F15: 2 | I15: 3
A16: 075 | B16: TULA DE ALLENDE | C16: 1458 | D16: 1905 | E16: 1 | F16: 2 | I16: 3
A17: 075 | B17: TULA DE ALLENDE | C17: 1459 | D17: 1624 | E17: 1 | F17: 2 | I17: 3
A18: 075 | B18: TULA DE ALLENDE | C18: 1460 | D18: 1907 | E18: 1 | F18: 2 | I18: 3
A19: 075 | B19: TULA DE ALLENDE | C19: 1461 | D19: 2002 | E19: 1 | F19: 2 | I19: 3
A20: 075 | B20: TULA DE ALLENDE | C20: 1462 | D20: 1728 | E20: 1 | F20: 2 | I20: 3
A21: 075 | B21: TULA DE ALLENDE | C21: 1463 | D21: 473 | E21: 1 | F21: 0 | I21: 1
A22: 075 | B22: TULA DE ALLENDE | C22: 1464 | D22: 1822 | E22: 1 | F22: 2 | I22: 3
A23: 075 | B23: TULA DE ALLENDE | C23: 1465 | D23: 236 | E23: 1 | F23: 0 | I23: 1
A24: 075 | B24: TULA DE ALLENDE | C24: 1466 | D24: 2319 | E24: 1 | F24: 3 | I24: 4
A25: 075 | B25: TULA DE ALLENDE | C25: 1467 | D25: 322 | E25: 1 | F25: 0 | I25: 1
A26: 075 | B26: TULA DE ALLENDE | C26: 1468 | D26: 848 | E26: 1 | F26: 1 | I26: 2
A27: 075 | B27: TULA DE ALLENDE | C27: 1469 | D27: 496 | E27: 1 | F27: 0 | I27: 1
A28: 075 | B28: TULA DE ALLENDE | C28: 1470 | D28: 312 | E28: 1 | F28: 0 | I28: 1
A29: 075 | B29: TULA DE ALLENDE | C29: 1471 | D29: 73 | E29: 1 | F29: 0 | I29: 1
A30: 075 | B30: TULA DE ALLENDE | C30: 1472 | D30: 1232 | E30: 1 | F30: 1 | I30: 2
A31: 075 | B31: TULA DE ALLENDE | C31: 1473 | D31: 693 | E31: 1 | F31: 0 | I31: 1
A32: 075 | B32: TULA DE ALLENDE | C32: 1474 | D32: 1816 | E32: 1 | F32: 2 | I32: 3
A33: 075 | B33: TULA DE ALLENDE | C33: 1475 | D33: 459 | E33: 1 | F33: 0 | I33: 1
A34: 075 | B34: TULA DE ALLENDE | C34: 1476 | D34: 2203 | E34: 1 | F34: 2 | I34: 3
A35: 075 | B35: TULA DE ALLENDE | C35: 1477 | D35: 1771 | E35: 1 | F35: 2 | I35: 3
A36: 075 | B36: TULA DE ALLENDE | C36: 1478 | D36: 2434 | E36: 1 | F36: 3 | I36: 4
A37: 075 | B37: TULA DE ALLENDE | C37: 1479 | D37: 1292 | E37: 1 | F37: 1 | I37: 2
A38: 075 | B38: TULA DE ALLENDE | C38: 1480 | D38: 2903 | E38: 1 | F38: 3 | I38: 4
A39: 075 | B39: TULA DE ALLENDE | C39: 1481 | D39: 1248 | E39: 1 | F39: 1 | I39: 2
A40: 075 | B40: TULA DE ALLENDE | C40: 1482 | D40: 1154 | E40: 1 | F40: 1 | I40: 2
A41: 075 | B41: TULA DE ALLENDE | C41: 1483 | D41: 1090 | E41: 1 | F41: 1 | I41: 2
A42: 075 | B42: TULA DE ALLENDE | C42: 1484 | D42: 1281 | E42: 1 | F42: 1 | I42: 2
A43: 075 | B43: TULA DE ALLENDE | C43: 1485 | D43: 3231 | E43: 1 | F43: 4 | I43: 5
A44: 075 | B44: TULA DE ALLENDE | C44: 1486 | D44: 1156 | E44: 1 | F44: 1 | I44: 2
A45: 075 | B45: TULA DE ALLENDE | C45: 1487 | D45: 1432 | E45: 1 | F45: 1 | I45: 2
A46: 075 | B46: TULA DE ALLENDE | C46: 1488 | D46: 1867 | E46: 1 | F46: 2 | I46: 3
A47: 075 | B47: TULA DE ALLENDE | C47: 1489 | D47: 810 | E47: 1 | F47: 1 | I47: 2
A48: 075 | B48: TULA DE ALLENDE | C48: 1490 | D48: 242 | E48: 1 | F48: 0 | I48: 1
A49: 075 | B49: TULA DE ALLENDE | C49: 1491 | D49: 1463 | E49: 1 | F49: 1 | I49: 2
A50: 075 | B50: TULA DE ALLENDE | C50: 1492 | D50: 2631 | E50: 1 | F50: 3 | I50: 4
A51: 075 | B51: TULA DE ALLENDE | C51: 1493 | D51: 2799 | E51: 1 | F51: 3 | I51: 4
A52: 075 | B52: TULA DE ALLENDE | C52: 1494 | D52: 1755 | E52: 1 | F52: 2 | I52: 3
A53: 075 | B53: TULA DE ALLENDE | C53: 1495 | D53: 1637 | E53: 1 | F53: 2 | I53: 3
A54: 075 | B54: TULA DE ALLENDE | C54: 1496 | D54: 932 | E54: 1 | F54: 1 | I54: 2
A55: 075 | B55: TULA DE ALLENDE | C55: 1497 | D55: 2235 | E55: 1 | F55: 2 | I55: 3
A56: 075 | B56: TULA DE ALLENDE | C56: 1498 | D56: 2634 | E56: 1 | F56: 3 | I56: 4
A57: 075 | B57: TULA DE ALLENDE | C57: 1499 | D57: 725 | E57: 1 | F57: 0 | I57: 1
A58: 075 | B58: TULA DE ALLENDE | C58: 1500 | D58: 1471 | E58: 1 | F58: 1 | I58: 2
A59: 075 | B59: TULA DE ALLENDE | C59: 1501 | D59: 165 | E59: 1 | F59: 0 | I59: 1
A60: TULA DE ALLEDNDE | D60: =SUM(D7:D59) -> 77550 | E60: =SUM(E7:E59) -> 53 | F60: =SUM(F7:F59) -> 77 | G60: =SUM(G7:G59) -> 0 | H60: 1 | I60: 131
A62: 069 | B62: TLAHUELILPAN | C62: 1369 | D62: 836 | E62: 1 | F62: 1 | I62: =SUM(E62:H62) -> 2
A63: 069 | B63: TLAHUELILPAN | C63: 1370 | D63: 1140 | E63: 1 | F63: 1 | I63: =SUM(E63:H63) -> 2
A64: 069 | B64: TLAHUELILPAN | C64: 1371 | D64: 603 | E64: 1 | F64: 0 | I64: 1
A65: 069 | B65: TLAHUELILPAN | C65: 1372 | D65: 647 | E65: 1 | F65: 0 | I65: 1
A66: 069 | B66: TLAHUELILPAN | C66: 1373 | D66: 1339 | E66: 1 | F66: 1 | I66: 2
A67: 069 | B67: TLAHUELILPAN | C67: 1374 | D67: 1740 | E67: 1 | F67: 2 | I67: 3
A68: 069 | B68: TLAHUELILPAN | C68: 1375 | D68: 1479 | E68: 1 | F68: 1 | I68: 2
A69: 069 | B69: TLAHUELILPAN | C69: 1376 | D69: 2388 | E69: 1 | F69: 3 | I69: 4
A70: 069 | B70: TLAHUELILPAN | C70: 1377 | D70: 1798 | E70: 1 | F70: 2 | I70: 3
A71: TLAHUELILPAN | D71: =SUM(D62:D70) -> 11970 | E71: =SUM(E62:E70) -> 9 | F71: =SUM(F62:F70) -> 11 | G71: =SUM(G62:G70) -> 0 | H71: 0 | I71: 20
A73: 064 | B73: TEPETITLAN | C73: 1295 | D73: 1527 | E73: 1 | F73: 2 | I73: =SUM(E73:H73) -> 3
A74: 064 | B74: TEPETITLAN | C74: 1296 | D74: 806 | E74: 1 | F74: 1 | I74: =SUM(E74:H74) -> 2
A75: 064 | B75: TEPETITLAN | C75: 1297 | D75: 194 | E75: 1 | F75: 0 | I75: 1
A76: 064 | B76: TEPETITLAN | C76: 1298 | D76: 187 | E76: 1 | F76: 0 | I76: 1
A77: 064 | B77: TEPETITLAN | C77: 1299 | D77: 1176 | E77: 1 | F77: 1 | I77: 2
A78: 064 | B78: TEPETITLAN | C78: 1300 | D78: 859 | E78: 1 | F78: 1 | I78: 2
A79: 064 | B79: TEPETITLAN | C79: 1301 | D79: 1555 | E79: 1 | F79: 2 | I79: 3
A80: 064 | B80: TEPETITLAN | C80: 1302 | D80: 1222 | E80: 1 | F80: 1 | I80: 2
A81: TEPETITLAN | D81: =SUM(D73:D80) -> 7526 | E81: =SUM(E73:E80) -> 8 | F81: =SUM(F73:F80) -> 8 | G81: =SUM(G73:G80) -> 0 | H81: 0 | I81: 16
A98: 066 | B98: TEZONTEPEC DE ALDAMA | C98: 1310 | D98: 2646 | E98: 1 | F98: 3 | I98: =SUM(E98:H98) -> 4
A99: 066 | B99: TEZONTEPEC DE ALDAMA | C99: 1311 | D99: 1902 | E99: 1 | F99: 2 | I99: =SUM(E99:H99) -> 3
A100: 066 | B100: TEZONTEPEC DE ALDAMA | C100: 1312 | D100: 889 | E100: 1 | F100: 1 | I100: 2
A101: 066 | B101: TEZONTEPEC DE ALDAMA | C101: 1313 | D101: 1837 | E101: 1 | F101: 2 | I101: 3
A102: 066 | B102: TEZONTEPEC DE ALDAMA | C102: 1314 | D102: 1949 | E102: 1 | F102: 2 | I102: 3
A103: 066 | B103: TEZONTEPEC DE ALDAMA | C103: 1315 | D103: 564 | E103: 1 | F103: 0 | I103: 1
A104: 066 | B104: TEZONTEPEC DE ALDAMA | C104: 1316 | D104: 2152 | E104: 1 | F104: 2 | I104: 3
A105: 066 | B105: TEZONTEPEC DE ALDAMA | C105: 1317 | D105: 2489 | E105: 1 | F105: 3 | I105: 4
A106: 066 | B106: TEZONTEPEC DE ALDAMA | C106: 1318 | D106: 1421 | E106: 1 | F106: 1 | I106: 2
A107: 066 | B107: TEZONTEPEC DE ALDAMA | C107: 1319 | D107: 2376 | E107: 1 | F107: 3 | I107: 4
A108: 066 | B108: TEZONTEPEC DE ALDAMA | C108: 1320 | D108: 1120 | E108: 1 | F108: 1 | I108: 2
A109: 066 | B109: TEZONTEPEC DE ALDAMA | C109: 1321 | D109: 963 | E109: 1 | F109: 1 | I109: 2
A110: 066 | B110: TEZONTEPEC DE ALDAMA | C110: 1322 | D110: 1307 | E110: 1 | F110: 1 | I110: 2
A111: 066 | B111: TEZONTEPEC DE ALDAMA | C111: 1323 | D111: 654 | E111: 1 | F111: 0 | I111: 1
A112: 066 | B112: TEZONTEPEC DE ALDAMA | C112: 1324 | D112: 1162 | E112: 1 | F112: 1 | I112: 2
A113: 066 | B113: TEZONTEPEC DE ALDAMA | C113: 1325 | D113: 1422 | E113: 1 | F113: 1 | I113: 2
A114: 066 | B114: TEZONTEPEC DE ALDAMA | C114: 1326 | D114: 1373 | E114: 1 | F114: 1 | I114: 2
A115: 066 | B115: TEZONTEPEC DE ALDAMA | C115: 1327 | D115: 1415 | E115: 1 | F115: 1 | I115: 2
A116: 066 | B116: TEZONTEPEC DE ALDAMA | C116: 1328 | D116: 2131 | E116: 1 | F116: 2 | I116: 3
A117: 066 | B117: TEZONTEPEC DE ALDAMA | C117: 1329 | D117: 976 | E117: 1 | F117: 1 | I117: 2
A118: 066 | B118: TEZONTEPEC DE ALDAMA | C118: 1330 | D118: 453 | E118: 1 | F118: 0 | I118: 1
A119: 066 | B119: TEZONTEPEC DE ALDAMA | C119: 1331 | D119: 470 | E119: 1 | F119: 0 | I119: 1
A120: 066 | B120: TEZONTEPEC DE ALDAMA | C120: 1332 | D120: 1120 | E120: 1 | F120: 1 | I120: 2
A121: TEZONTEPEC DE ALDAMA | D121: =SUM(D98:D120) -> 32791 | E121: =SUM(E98:E120) -> 23 | F121: =SUM(F98:F120) -> 30 | G121: =SUM(G98:G120) -> 0 | H121: 0 | I121: 53
A124: TOTAL DISITRITAL | D124: =SUM(D121,D81,D71,D60) -> 129837 | E124: =SUM(E121,E81,E71,E60) -> 93 | F124: =SUM(F121,F81,F71,F60) -> 126 | G124: =SUM(G121,G81,G71,G60) -> 0 | H124: 1 | I124: 220

Sheet 5
A1: PADRON Y LISTA NOMINAL
A2: CORTE: | B2: DEFINITIVO
A3: DISTRITO LOCAL V TEPEJI DEL RIO
A6: CLAVE | B6: NOMBRE | C6: Seccion | D6: L N | E6: Basicas | F6: Contiguas | G6: Extras | H6: Especiales | I6: TOTAL
A7: 063 | B7: TEPEJI DEL RIO DE OCAMPO | C7: 1262 | D7: 1855 | E7: 1 | F7: 2 | I7: =SUM(E7:H7) -> 3
A8: 063 | B8: TEPEJI DEL RIO DE OCAMPO | C8: 1263 | D8: 2211 | E8: 1 | F8: 2 | I8: =SUM(E8:H8) -> 3
A9: 063 | B9: TEPEJI DEL RIO DE OCAMPO | C9: 1264 | D9: 1289 | E9: 1 | F9: 1 | I9: 2
A10: 063 | B10: TEPEJI DEL RIO DE OCAMPO | C10: 1265 | D10: 1255 | E10: 1 | F10: 1 | I10: 2
A11: 063 | B11: TEPEJI DEL RIO DE OCAMPO | C11: 1266 | D11: 1473 | E11: 1 | F11: 1 | I11: 2
A12: 063 | B12: TEPEJI DEL RIO DE OCAMPO | C12: 1267 | D12: 1853 | E12: 1 | F12: 2 | I12: 3
A13: 063 | B13: TEPEJI DEL RIO DE OCAMPO | C13: 1268 | D13: 902 | E13: 1 | F13: 1 | I13: 2
A14: 063 | B14: TEPEJI DEL RIO DE OCAMPO | C14: 1269 | D14: 1754 | E14: 1 | F14: 2 | I14: 3
A15: 063 | B15: TEPEJI DEL RIO DE OCAMPO | C15: 1270 | D15: 3553 | E15: 1 | F15: 4 | I15: 5
A16: 063 | B16: TEPEJI DEL RIO DE OCAMPO | C16: 1271 | D16: 1573 | E16: 1 | F16: 2 | I16: 3
A17: 063 | B17: TEPEJI DEL RIO DE OCAMPO | C17: 1272 | D17: 3402 | E17: 1 | F17: 4 | I17: 5
A18: 063 | B18: TEPEJI DEL RIO DE OCAMPO | C18: 1273 | D18: 1154 | E18: 1 | F18: 1 | I18: 2
A19: 063 | B19: TEPEJI DEL RIO DE OCAMPO | C19: 1274 | D19: 1724 | E19: 1 | F19: 2 | H19: 1 | I19: 4
A20: 063 | B20: TEPEJI DEL RIO DE OCAMPO | C20: 1275 | D20: 1730 | E20: 1 | F20: 2 | I20: 3
A21: 063 | B21: TEPEJI DEL RIO DE OCAMPO | C21: 1276 | D21: 1900 | E21: 1 | F21: 2 | I21: 3
A22: 063 | B22: TEPEJI DEL RIO DE OCAMPO | C22: 1277 | D22: 936 | E22: 1 | F22: 1 | I22: 2
A23: 063 | B23: TEPEJI DEL RIO DE OCAMPO | C23: 1278 | D23: 3042 | E23: 1 | F23: 4 | I23: 5
A24: 063 | B24: TEPEJI DEL RIO DE OCAMPO | C24: 1279 | D24: 1472 | E24: 1 | F24: 1 | I24: 2
A25: 063 | B25: TEPEJI DEL RIO DE OCAMPO | C25: 1280 | D25: 1463 | E25: 1 | F25: 1 | I25: 2
A26: 063 | B26: TEPEJI DEL RIO DE OCAMPO | C26: 1281 | D26: 1581 | E26: 1 | F26: 2 | I26: 3
A27: 063 | B27: TEPEJI DEL RIO DE OCAMPO | C27: 1282 | D27: 1761 | E27: 1 | F27: 2 | I27: 3
A28: 063 | B28: TEPEJI DEL RIO DE OCAMPO | C28: 1283 | D28: 1171 | E28: 1 | F28: 1 | I28: 2
A29: 063 | B29: TEPEJI DEL RIO DE OCAMPO | C29: 1284 | D29: 2188 | E29: 1 | F29: 2 | I29: 3
A30: 063 | B30: TEPEJI DEL RIO DE OCAMPO | C30: 1285 | D30: 909 | E30: 1 | F30: 1 | I30: 2
A31: 063 | B31: TEPEJI DEL RIO DE OCAMPO | C31: 1286 | D31: 1099 | E31: 1 | F31: 1 | I31: 2
A32: 063 | B32: TEPEJI DEL RIO DE OCAMPO | C32: 1287 | D32: 2998 | E32: 1 | F32: 3 | I32: 4
A33: 063 | B33: TEPEJI DEL RIO DE OCAMPO | C33: 1288 | D33: 470 | E33: 1 | F33: 0 | I33: 1
A34: 063 | B34: TEPEJI DEL RIO DE OCAMPO | C34: 1289 | D34: 1343 | E34: 1 | F34: 1 | I34: 2
A35: 063 | B35: TEPEJI DEL RIO DE OCAMPO | C35: 1290 | D35: 1224 | E35: 1 | F35: 1 | I35: 2
A36: 063 | B36: TEPEJI DEL RIO DE OCAMPO | C36: 1291 | D36: 1493 | E36: 1 | F36: 1 | I36: 2
A37: 063 | B37: TEPEJI DEL RIO DE OCAMPO | C37: 1292 | D37: 1567 | E37: 1 | F37: 2 | I37: 3
A38: 063 | B38: TEPEJI DEL RIO DE OCAMPO | C38: 1293 | D38: 1818 | E38: 1 | F38: 2 | I38: 3
A39: 063 | B39: TEPEJI DEL RIO DE OCAMPO | C39: 1294 | D39: 1240 | E39: 1 | F39: 1 | I39: 2
A40: TEPEJI DEL RIO DE OCAMPO | D40: =SUM(D7:D39) -> 55403 | E40: =SUM(E7:E39) -> 33 | F40: =SUM(F7:F39) -> 56 | G40: =SUM(G7:G39) -> 0 | H40: 1 | I40: 90
A42: 065 | B42: TETEPANGO | C42: 1303 | D42: 1556 | E42: 1 | F42: 2 | I42: =SUM(E42:H42) -> 3
A43: 065 | B43: TETEPANGO | C43: 1304 | D43: 1066 | E43: 1 | F43: 1 | I43: =SUM(E43:H43) -> 2
A44: 065 | B44: TETEPANGO | C44: 1305 | D44: 1016 | E44: 1 | F44: 1 | I44: 2
A45: 065 | B45: TETEPANGO | C45: 1306 | D45: 1451 | E45: 1 | F45: 1 | I45: 2
A46: 065 | B46: TETEPANGO | C46: 1307 | D46: 1187 | E46: 1 | F46: 1 | I46: 2
A47: 065 | B47: TETEPANGO | C47: 1308 | D47: 560 | E47: 1 | F47: 0 | I47: 1
A48: 065 | B48: TETEPANGO | C48: 1309 | D48: 1154 | E48: 1 | F48: 1 | I48: 2
A49: TETEPANGO | D49: =SUM(D42:D48) -> 7990 | E49: =SUM(E42:E48) -> 7 | F49: =SUM(F42:F48) -> 7 | G49: =SUM(G42:G48) -> 0 | H49: 0 | I49: 14
A51: 012 | B51: ATOTONILCO DE TULA | C51: 206 | D51: 1771 | E51: 1 | F51: 2 | I51: =SUM(E51:H51) -> 3
A52: 012 | B52: ATOTONILCO DE TULA | C52: 207 | D52: 1388 | E52: 1 | F52: 1 | I52: =SUM(E52:H52) -> 2
A53: 012 | B53: ATOTONILCO DE TULA | C53: 208 | D53: 1697 | E53: 1 | F53: 2 | I53: 3
A54: 012 | B54: ATOTONILCO DE TULA | C54: 209 | D54: 2073 | E54: 1 | F54: 2 | I54: 3
A55: 012 | B55: ATOTONILCO DE TULA | C55: 210 | D55: 669 | E55: 1 | F55: 0 | I55: 1
A56: 012 | B56: ATOTONILCO DE TULA | C56: 211 | D56: 1309 | E56: 1 | F56: 1 | I56: 2
A57: 012 | B57: ATOTONILCO DE TULA | C57: 212 | D57: 767 | E57: 1 | F57: 1 | I57: 2
A58: 012 | B58: ATOTONILCO DE TULA | C58: 213 | D58: 794 | E58: 1 | F58: 1 | I58: 2
A59: 012 | B59: ATOTONILCO DE TULA | C59: 214 | D59: 1130 | E59: 1 | F59: 1 | I59: 2
A60: 012 | B60: ATOTONILCO DE TULA | C60: 215 | D60: 1881 | E60: 1 | F60: 2 | I60: 3
A61: 012 | B61: ATOTONILCO DE TULA | C61: 216 | D61: 3113 | E61: 1 | F61: 4 | I61: 5
A62: 012 | B62: ATOTONILCO DE TULA | C62: 217 | D62: 423 | E62: 1 | F62: 0 | I62: 1
A63: 012 | B63: ATOTONILCO DE TULA | C63: 218 | D63: 542 | E63: 1 | F63: 0 | I63: 1
A64: 012 | B64: ATOTONILCO DE TULA | C64: 219 | D64: 257 | E64: 1 | F64: 0 | I64: 1
A65: 012 | B65: ATOTONILCO DE TULA | C65: 220 | D65: 915 | E65: 1 | F65: 1 | I65: 2
A66: 012 | B66: ATOTONILCO DE TULA | C66: 221 | D66: 1865 | E66: 1 | F66: 2 | I66: 3
A67: 012 | B67: ATOTONILCO DE TULA | C67: 222 | D67: 1328 | E67: 1 | F67: 1 | I67: 2
A68: 012 | B68: ATOTONILCO DE TULA | C68: 223 | D68: 1049 | E68: 1 | F68: 1 | I68: 2
A69: ATOTONILCO DE TULA | D69: =SUM(D51:D68) -> 22971 | E69: =SUM(E51:E68) -> 18 | F69: =SUM(F51:F68) -> 22 | G69: =SUM(G51:G68) -> 0 | H69: 0 | I69: 40
A71: 009 | B71: ATITALAQUIA | C71: 152 | D71: 1923 | E71: 1 | F71: 2 | I71: =SUM(E71:F71) -> 3
A72: 009 | B72: ATITALAQUIA | C72: 153 | D72: 2527 | E72: 1 | F72: 3 | I72: =SUM(E72:F72) -> 4
A73: 009 | B73: ATITALAQUIA | C73: 154 | D73: 1747 | E73: 1 | F73: 2 | I73: 3
A74: 009 | B74: ATITALAQUIA | C74: 155 | D74: 1560 | E74: 1 | F74: 2 | I74: 3
A75: 009 | B75: ATITALAQUIA | C75: 156 | D75: 1756 | E75: 1 | F75: 2 | I75: 3
A76: 009 | B76: ATITALAQUIA | C76: 157 | D76: 2814 | E76: 1 | F76: 3 | I76: 4
A77: 009 | B77: ATITALAQUIA | C77: 158 | D77: 2124 | E77: 1 | F77: 2 | I77: 3
A78: 009 | B78: ATITALAQUIA | C78: 159 | D78: 859 | E78: 1 | F78: 1 | I78: 2
A79: 009 | B79: ATITALAQUIA | C79: 160 | D79: 800 | E79: 1 | F79: 1 | I79: 2
A80: 009 | B80: ATITALAQUIA | C80: 161 | D80: 2175 | E80: 1 | F80: 2 | I80: 3
A81: ATITALAQUIA | D81: =SUM(D71:D80) -> 18285 | E81: =SUM(E71:E80) -> 10 | F81: =SUM(F71:F80) -> 20 | G81: =SUM(G71:G80) -> 0 | H81: 0 | I81: 30
A83: 005 | B83: AJACUBA | C83: 81 | D83: 1440 | E83: 1 | F83: 1 | I83: =SUM(E83:H83) -> 2
A84: 005 | B84: AJACUBA | C84: 82 | D84: 1564 | E84: 1 | F84: 2 | I84: =SUM(E84:H84) -> 3
A85: 005 | B85: AJACUBA | C85: 83 | D85: 1200 | E85: 1 | F85: 1 | I85: 2
A86: 005 | B86: AJACUBA | C86: 84 | D86: 1267 | E86: 1 | F86: 1 | I86: 2
A87: 005 | B87: AJACUBA | C87: 85 | D87: 1334 | E87: 1 | F87: 1 | I87: 2
A88: 005 | B88: AJACUBA | C88: 86 | D88: 1958 | E88: 1 | F88: 2 | I88: 3
A89: 005 | B89: AJACUBA | C89: 87 | D89: 196 | E89: 1 | F89: 0 | I89: 1
A90: 005 | B90: AJACUBA | C90: 88 | D90: 1901 | E90: 1 | F90: 2 | I90: 3
A91: 005 | B91: AJACUBA | C91: 89 | D91: 1331 | E91: 1 | F91: 1 | I91: 2
A92: 005 | B92: AJACUBA | C92: 90 | D92: 331 | E92: 1 | F92: 0 | I92: 1
A93: 005 | B93: AJACUBA | C93: 91 | D93: 236 | E93: 1 | F93: 0 | I93: 1
A94: AJACUBA | D94: =SUM(D83:D93) -> 12758 | E94: =SUM(E83:E93) -> 11 | F94: =SUM(F83:F93) -> 11 | G94: =SUM(G83:G93) -> 0 | H94: 0 | I94: 22
A99: 073 | B99: TLAXCOAPAN | C99: 1429 | D99: 1704 | E99: 1 | F99: 2 | I99: =SUM(E99:H99) -> 3
A100: 073 | B100: TLAXCOAPAN | C100: 1430 | D100: 2590 | E100: 1 | F100: 3 | I100: =SUM(E100:H100) -> 4
A101: 073 | B101: TLAXCOAPAN | C101: 1431 | D101: 1712 | E101: 1 | F101: 2 | I101: 3
A102: 073 | B102: TLAXCOAPAN | C102: 1432 | D102: 1507 | E102: 1 | F102: 2 | I102: 3
A103: 073 | B103: TLAXCOAPAN | C103: 1433 | D103: 1391 | E103: 1 | F103: 1 | I103: 2
A104: 073 | B104: TLAXCOAPAN | C104: 1434 | D104: 1600 | E104: 1 | F104: 2 | I104: 3
A105: 073 | B105: TLAXCOAPAN | C105: 1435 | D105: 1424 | E105: 1 | F105: 1 | I105: 2
A106: 073 | B106: TLAXCOAPAN | C106: 1436 | D106: 1605 | E106: 1 | F106: 2 | I106: 3
A107: 073 | B107: TLAXCOAPAN | C107: 1437 | D107: 1684 | E107: 1 | F107: 2 | I107: 3
A108: 073 | B108: TLAXCOAPAN | C108: 1438 | D108: 2097 | E108: 1 | F108: 2 | I108: 3
A109: 073 | B109: TLAXCOAPAN | C109: 1439 | D109: 1256 | E109: 1 | F109: 1 | I109: 2
A110: 073 | B110: TLAXCOAPAN | C110: 1440 | D110: 747 | E110: 1 | F110: 0 | I110: 1
A111: TLAXCOAPAN | D111: =SUM(D99:D110) -> 19317 | E111: =SUM(E99:E110) -> 12 | F111: =SUM(F99:F110) -> 20 | G111: =SUM(G99:G110) -> 0 | H111: 0 | I111: 32
A114: TOTAL DISITRITAL | D114: =SUM(D111,D94,D81,D69,D49,D40) -> 136724 | E114: =SUM(E111,E94,E81,E69,E49,E40) -> 91 | F114: =SUM(F111,F94,F81,F69,F49,F40) -> 136 | G114: =SUM(G111,G94,G81,G69,G49,G40) -> 0 | H114: 1 | I114: 228

Sheet 6
A1: PADRON Y LISTA NOMINAL
A2: CORTE: | B2: DEFINITIVO
A3: DISTRITO LOCAL VI HUICHAPAN
A6: CLAVE | B6: NOMBRE | C6: Seccion | D6: L N | E6: Basicas | F6: Contiguas | G6: Extras | H6: Especiales | I6: TOTAL
A7: 029 | B7: HUICHAPAN | C7: 510 | D7: 1924 | E7: 1 | F7: 2 | I7: =SUM(E7:H7) -> 3
A8: 029 | B8: HUICHAPAN | C8: 511 | D8: 1596 | E8: 1 | F8: 2 | H8: 1 | I8: =SUM(E8:H8) -> 4
A9: 029 | B9: HUICHAPAN | C9: 512 | D9: 1204 | E9: 1 | F9: 1 | I9: 2
A10: 029 | B10: HUICHAPAN | C10: 513 | D10: 1730 | E10: 1 | F10: 2 | I10: 3
A11: 029 | B11: HUICHAPAN | C11: 514 | D11: 410 | E11: 1 | F11: 0 | I11: 1
A12: 029 | B12: HUICHAPAN | C12: 515 | D12: 220 | E12: 1 | F12: 0 | I12: 1
A13: 029 | B13: HUICHAPAN | C13: 516 | D13: 458 | E13: 1 | F13: 0 | I13: 1
A14: 029 | B14: HUICHAPAN | C14: 517 | D14: 991 | E14: 1 | F14: 1 | I14: 2
A15: 029 | B15: HUICHAPAN | C15: 518 | D15: 1361 | E15: 1 | F15: 1 | I15: 2
A16: 029 | B16: HUICHAPAN | C16: 519 | D16: 702 | E16: 1 | F16: 0 | I16: 1
A17: 029 | B17: HUICHAPAN | C17: 520 | D17: 1286 | E17: 1 | F17: 1 | I17: 2
A18: 029 | B18: HUICHAPAN | C18: 521 | D18: 594 | E18: 1 | F18: 0 | I18: 1
A19: 029 | B19: HUICHAPAN | C19: 522 | D19: 723 | E19: 1 | F19: 0 | I19: 1
A20: 029 | B20: HUICHAPAN | C20: 523 | D20: 1553 | E20: 1 | F20: 2 | I20: 3
A21: 029 | B21: HUICHAPAN | C21: 524 | D21: 380 | E21: 1 | F21: 0 | I21: 1
A22: 029 | B22: HUICHAPAN | C22: 525 | D22: 586 | E22: 1 | F22: 0 | I22: 1
A23: 029 | B23: HUICHAPAN | C23: 526 | D23: 448 | E23: 1 | F23: 0 | I23: 1
A24: 029 | B24: HUICHAPAN | C24: 527 | D24: 431 | E24: 1 | F24: 0 | I24: 1
A25: 029 | B25: HUICHAPAN | C25: 528 | D25: 1723 | E25: 1 | F25: 2 | I25: 3
A26: 029 | B26: HUICHAPAN | C26: 529 | D26: 178 | E26: 1 | F26: 0 | I26: 1
A27: 029 | B27: HUICHAPAN | C27: 530 | D27: 697 | E27: 1 | F27: 0 | I27: 1
A28: 029 | B28: HUICHAPAN | C28: 531 | D28: 768 | E28: 1 | F28: 1 | I28: 2
A29: 029 | B29: HUICHAPAN | C29: 532 | D29: 495 | E29: 1 | F29: 0 | I29: 1
A30: 029 | B30: HUICHAPAN | C30: 533 | D30: 654 | E30: 1 | F30: 0 | I30: 1
A31: 029 | B31: HUICHAPAN | C31: 534 | D31: 1362 | E31: 1 | F31: 1 | I31: 2
A32: 029 | B32: HUICHAPAN | C32: 535 | D32: 1259 | E32: 1 | F32: 1 | I32: 2
A33: 029 | B33: HUICHAPAN | C33: 536 | D33: 583 | E33: 1 | F33: 0 | I33: 1
A34: 029 | B34: HUICHAPAN | C34: 537 | D34: 1069 | E34: 1 | F34: 1 | I34: 2
A35: 029 | B35: HUICHAPAN | C35: 538 | D35: 368 | E35: 1 | F35: 0 | I35: 1
A36: 029 | B36: HUICHAPAN | C36: 539 | D36: 802 | E36: 1 | F36: 1 | I36: 2
A37: 029 | B37: HUICHAPAN | C37: 540 | D37: 1386 | E37: 1 | F37: 1 | I37: 2
A38: 029 | B38: HUICHAPAN | C38: 541 | D38: 229 | E38: 1 | F38: 0 | I38: 1
A39: 029 | B39: HUICHAPAN | C39: 542 | D39: 310 | E39: 1 | F39: 0 | I39: 1
A40: 029 | B40: HUICHAPAN | C40: 543 | D40: 675 | E40: 1 | F40: 0 | I40: 1
A41: 029 | B41: HUICHAPAN | C41: 544 | D41: 1699 | E41: 1 | F41: 2 | I41: 3
A42: 029 | B42: HUICHAPAN | C42: 545 | D42: 811 | E42: 1 | F42: 1 | I42: 2
A43: 029 | B43: HUICHAPAN | C43: 546 | D43: 300 | E43: 1 | F43: 0 | I43: 1
A44: HUICHAPAN | D44: =SUM(D7:D43) -> 31965 | E44: =SUM(E7:E43) -> 37 | F44: =SUM(F7:F43) -> 23 | G44: =SUM(G7:G43) -> 0 | H44: 1 | I44: 61
A51: 059 | B51: TECOZAUTLA | C51: 1152 | D51: 2472 | E51: 1 | F51: 3 | I51: =SUM(E51:H51) -> 4
A52: 059 | B52: TECOZAUTLA | C52: 1153 | D52: 2489 | E52: 1 | F52: 3 | I52: =SUM(E52:H52) -> 4
A53: 059 | B53: TECOZAUTLA | C53: 1154 | D53: 715 | E53: 1 | F53: 0 | I53: 1
A54: 059 | B54: TECOZAUTLA | C54: 1155 | D54: 642 | E54: 1 | F54: 0 | I54: 1
A55: 059 | B55: TECOZAUTLA | C55: 1156 | D55: 670 | E55: 1 | F55: 0 | I55: 1
A56: 059 | B56: TECOZAUTLA | C56: 1157 | D56: 1482 | E56: 1 | F56: 1 | I56: 2
A57: 059 | B57: TECOZAUTLA | C57: 1158 | D57: 881 | E57: 1 | F57: 1 | I57: 2
A58: 059 | B58: TECOZAUTLA | C58: 1159 | D58: 1809 | E58: 1 | F58: 2 | I58: 3
A59: 059 | B59: TECOZAUTLA | C59: 1160 | D59: 901 | E59: 1 | F59: 1 | I59: 2
A60: 059 | B60: TECOZAUTLA | C60: 1161 | D60: 1167 | E60: 1 | F60: 1 | I60: 2
A61: 059 | B61: TECOZAUTLA | C61: 1162 | D61: 1844 | E61: 1 | F61: 2 | I61: 3
A62: 059 | B62: TECOZAUTLA | C62: 1163 | D62: 1261 | E62: 1 | F62: 1 | I62: 2
A63: 059 | B63: TECOZAUTLA | C63: 1164 | D63: 411 | E63: 1 | F63: 0 | I63: 1
A64: 059 | B64: TECOZAUTLA | C64: 1165 | D64: 505 | E64: 1 | F64: 0 | I64: 1
A65: 059 | B65: TECOZAUTLA | C65: 1166 | D65: 385 | E65: 1 | F65: 0 | I65: 1
A66: 059 | B66: TECOZAUTLA | C66: 1167 | D66: 296 | E66: 1 | F66: 0 | I66: 1
A67: 059 | B67: TECOZAUTLA | C67: 1168 | D67: 656 | E67: 1 | F67: 0 | I67: 1
A68: 059 | B68: TECOZAUTLA | C68: 1169 | D68: 266 | E68: 1 | F68: 0 | I68: 1
A69: 059 | B69: TECOZAUTLA | C69: 1170 | D69: 975 | E69: 1 | F69: 1 | I69: 2
A70: 059 | B70: TECOZAUTLA | C70: 1171 | D70: 1110 | E70: 1 | F70: 1 | I70: 2
A71: 059 | B71: TECOZAUTLA | C71: 1172 | D71: 313 | E71: 1 | F71: 0 | I71: 1
A72: 059 | B72: TECOZAUTLA | C72: 1173 | D72: 1005 | E72: 1 | F72: 1 | I72: 2
A73: 059 | B73: TECOZAUTLA | C73: 1174 | D73: 1722 | E73: 1 | F73: 2 | I73: 3
A74: 059 | B74: TECOZAUTLA | C74: 1175 | D74: 758 | E74: 1 | F74: 1 | I74: 2
A75: 059 | B75: TECOZAUTLA | C75: 1176 | D75: 236 | E75: 1 | F75: 0 | I75: 1
A76: TECOZAUTLA | D76: =SUM(D51:D75) -> 24971 | E76: =SUM(E51:E75) -> 25 | F76: =SUM(F51:F75) -> 21 | G76: =SUM(G51:G75) -> 0 | H76: 0 | I76: 46
A82: 044 | B82: NOPALA DE VILLAGRAN | C82: 802 | D82: 2346 | E82: 1 | F82: 3 | I82: =SUM(E82:H82) -> 4
A83: 044 | B83: NOPALA DE VILLAGRAN | C83: 803 | D83: 1616 | E83: 1 | F83: 2 | I83: =SUM(E83:H83) -> 3
A84: 044 | B84: NOPALA DE VILLAGRAN | C84: 804 | D84: 873 | E84: 1 | F84: 1 | I84: 2
A85: 044 | B85: NOPALA DE VILLAGRAN | C85: 805 | D85: 774 | E85: 1 | F85: 1 | I85: 2
A86: 044 | B86: NOPALA DE VILLAGRAN | C86: 806 | D86: 1280 | E86: 1 | F86: 1 | I86: 2
A87: 044 | B87: NOPALA DE VILLAGRAN | C87: 807 | D87: 1616 | E87: 1 | F87: 2 | I87: 3
A88: 044 | B88: NOPALA DE VILLAGRAN | C88: 808 | D88: 484 | E88: 1 | F88: 0 | I88: 1
A89: 044 | B89: NOPALA DE VILLAGRAN | C89: 809 | D89: 549 | E89: 1 | F89: 0 | I89: 1
A90: 044 | B90: NOPALA DE VILLAGRAN | C90: 810 | D90: 703 | E90: 1 | F90: 0 | I90: 1
A91: 044 | B91: NOPALA DE VILLAGRAN | C91: 811 | D91: 681 | E91: 1 | F91: 0 | I91: 1
A92: NOPALA DE VILLAGRAN | D92: =SUM(D82:D91) -> 10922 | E92: =SUM(E82:E91) -> 10 | F92: =SUM(F82:F91) -> 10 | G92: =SUM(G82:G91) -> 0 | H92: 0 | I92: 20
A100: 016 | B100: CHAPANTONGO | C100: 281 | D100: 1397 | E100: 1 | F100: 1 | I100: =SUM(E100:H100) -> 2
A101: 016 | B101: CHAPANTONGO | C101: 282 | D101: 1046 | E101: 1 | F101: 1 | I101: =SUM(E101:H101) -> 2
A102: 016 | B102: CHAPANTONGO | C102: 283 | D102: 659 | E102: 1 | F102: 0 | I102: 1
A103: 016 | B103: CHAPANTONGO | C103: 284 | D103: 436 | E103: 1 | F103: 0 | I103: 1
A104: 016 | B104: CHAPANTONGO | C104: 285 | D104: 433 | E104: 1 | F104: 0 | I104: 1
A105: 016 | B105: CHAPANTONGO | C105: 286 | D105: 1185 | E105: 1 | F105: 1 | I105: 2
A106: 016 | B106: CHAPANTONGO | C106: 287 | D106: 554 | E106: 1 | F106: 0 | I106: 1
A107: 016 | B107: CHAPANTONGO | C107: 288 | D107: 1153 | E107: 1 | F107: 1 | I107: 2
A108: 016 | B108: CHAPANTONGO | C108: 289 | D108: 1641 | E108: 1 | F108: 2 | I108: 3
A109: 016 | B109: CHAPANTONGO | C109: 290 | D109: 692 | E109: 1 | F109: 0 | I109: 1
A110: CHAPANTONGO | D110: =SUM(D100:D109) -> 9196 | E110: =SUM(E100:E109) -> 10 | F110: =SUM(F100:F109) -> 6 | G110: =SUM(G100:G109) -> 0 | H110: 0 | I110: 16
A113: TOTAL DISITRITAL | D113: =SUM(D110,D92,D76,D44) -> 77054 | E113: 82 | F113: 60 | G113: 0 | H113: 1 | I113: 143

Sheet 7
A1: PADRON Y LISTA NOMINAL
A2: CORTE: | B2: DEFINITIVO
A3: DISTRITO LOCAL VII ZIMAPAN
A6: CLAVE | B6: NOMBRE | C6: Seccion | D6: L N | E6: Basicas | F6: Contiguas | G6: Extras | H6: Especiales | I6: TOTAL
A7: 084 | B7: ZIMAPAN | C7: 1644 | D7: 1767 | E7: 1 | F7: 2 | I7: =SUM(E7:H7) -> 3
A8: 084 | B8: ZIMAPAN | C8: 1645 | D8: 1282 | E8: 1 | F8: 1 | I8: =SUM(E8:H8) -> 2
A9: 084 | B9: ZIMAPAN | C9: 1646 | D9: 684 | E9: 1 | F9: 0 | I9: 1
A10: 084 | B10: ZIMAPAN | C10: 1647 | D10: 993 | E10: 1 | F10: 1 | I10: 2
A11: 084 | B11: ZIMAPAN | C11: 1648 | D11: 806 | E11: 1 | F11: 1 | I11: 2
A12: 084 | B12: ZIMAPAN | C12: 1649 | D12: 992 | E12: 1 | F12: 1 | H12: 1 | I12: 3
A13: 084 | B13: ZIMAPAN | C13: 1650 | D13: 1652 | E13: 1 | F13: 2 | I13: 3
A14: 084 | B14: ZIMAPAN | C14: 1651 | D14: 122 | E14: 1 | F14: 0 | I14: 1
A15: 084 | B15: ZIMAPAN | C15: 1652 | D15: 119 | E15: 1 | F15: 0 | I15: 1
A16: 084 | B16: ZIMAPAN | C16: 1653 | D16: 505 | E16: 1 | F16: 0 | I16: 1
A17: 084 | B17: ZIMAPAN | C17: 1654 | D17: 124 | E17: 1 | F17: 0 | I17: 1
A18: 084 | B18: ZIMAPAN | C18: 1655 | D18: 170 | E18: 1 | F18: 0 | I18: 1
A19: 084 | B19: ZIMAPAN | C19: 1656 | D19: 166 | E19: 1 | F19: 0 | I19: 1
A20: 084 | B20: ZIMAPAN | C20: 1657 | D20: 200 | E20: 1 | F20: 0 | I20: 1
A21: 084 | B21: ZIMAPAN | C21: 1659 | D21: 126 | E21: 1 | F21: 0 | I21: 1
A22: 084 | B22: ZIMAPAN | C22: 1660 | D22: 272 | E22: 1 | F22: 0 | I22: 1
A23: 084 | B23: ZIMAPAN | C23: 1661 | D23: 161 | E23: 1 | F23: 0 | I23: 1
A24: 084 | B24: ZIMAPAN | C24: 1662 | D24: 383 | E24: 1 | F24: 0 | I24: 1
A25: 084 | B25: ZIMAPAN | C25: 1663 | D25: 264 | E25: 1 | F25: 0 | I25: 1
A26: 084 | B26: ZIMAPAN | C26: 1664 | D26: 309 | E26: 1 | F26: 0 | I26: 1
A27: 084 | B27: ZIMAPAN | C27: 1665 | D27: 125 | E27: 1 | F27: 0 | I27: 1
A28: 084 | B28: ZIMAPAN | C28: 1666 | D28: 60 | E28: 1 | F28: 0 | I28: 1
A29: 084 | B29: ZIMAPAN | C29: 1667 | D29: 159 | E29: 1 | F29: 0 | I29: 1
A30: 084 | B30: ZIMAPAN | C30: 1668 | D30: 832 | E30: 1 | F30: 1 | I30: 2
A31: 084 | B31: ZIMAPAN | C31: 1669 | D31: 166 | E31: 1 | F31: 0 | I31: 1
A32: 084 | B32: ZIMAPAN | C32: 1670 | D32: 199 | E32: 1 | F32: 0 | I32: 1
A33: 084 | B33: ZIMAPAN | C33: 1671 | D33: 119 | E33: 1 | F33: 0 | I33: 1
A34: 084 | B34: ZIMAPAN | C34: 1672 | D34: 86 | E34: 1 | F34: 0 | I34: 1
A35: 084 | B35: ZIMAPAN | C35: 1673 | D35: 150 | E35: 1 | F35: 0 | I35: 1
A36: 084 | B36: ZIMAPAN | C36: 1674 | D36: 103 | E36: 1 | F36: 0 | I36: 1
A37: 084 | B37: ZIMAPAN | C37: 1675 | D37: 905 | E37: 1 | F37: 1 | I37: 2
A38: 084 | B38: ZIMAPAN | C38: 1676 | D38: 819 | E38: 1 | F38: 1 | I38: 2
A39: 084 | B39: ZIMAPAN | C39: 1677 | D39: 66 | E39: 1 | F39: 0 | I39: 1
A40: 084 | B40: ZIMAPAN | C40: 1678 | D40: 1522 | E40: 1 | F40: 2 | I40: 3
A41: 084 | B41: ZIMAPAN | C41: 1679 | D41: 1529 | E41: 1 | F41: 2 | I41: 3
A42: 084 | B42: ZIMAPAN | C42: 1680 | D42: 1260 | E42: 1 | F42: 1 | I42: 2
A43: 084 | B43: ZIMAPAN | C43: 1681 | D43: 294 | E43: 1 | F43: 0 | I43: 1
A44: 084 | B44: ZIMAPAN | C44: 1682 | D44: 655 | E44: 1 | F44: 0 | I44: 1
A45: 084 | B45: ZIMAPAN | C45: 1683 | D45: 1232 | E45: 1 | F45: 1 | I45: 2
A46: 084 | B46: ZIMAPAN | C46: 1684 | D46: 856 | E46: 1 | F46: 1 | I46: 2
A47: 084 | B47: ZIMAPAN | C47: 1685 | D47: 67 | E47: 1 | F47: 0 | I47: 1
A48: 084 | B48: ZIMAPAN | C48: 1686 | D48: 267 | E48: 1 | F48: 0 | I48: 1
A49: 084 | B49: ZIMAPAN | C49: 1687 | D49: 481 | E49: 1 | F49: 0 | I49: 1
A50: 084 | B50: ZIMAPAN | C50: 1688 | D50: 490 | E50: 1 | F50: 0 | I50: 1
A51: 084 | B51: ZIMAPAN | C51: 1689 | D51: 117 | E51: 1 | F51: 0 | I51: 1
A52: 084 | B52: ZIMAPAN | C52: 1690 | D52: 72 | E52: 1 | F52: 0 | I52: 1
A53: 084 | B53: ZIMAPAN | C53: 1691 | D53: 118 | E53: 1 | F53: 0 | I53: 1
A54: 084 | B54: ZIMAPAN | C54: 1692 | D54: 368 | E54: 1 | F54: 0 | I54: 1
A55: 084 | B55: ZIMAPAN | C55: 1693 | D55: 269 | E55: 1 | F55: 0 | I55: 1
A56: 084 | B56: ZIMAPAN | C56: 1694 | D56: 1913 | E56: 1 | F56: 2 | I56: 3
A57: 084 | B57: ZIMAPAN | C57: 1695 | D57: 125 | E57: 1 | F57: 0 | I57: 1
A58: 084 | B58: ZIMAPAN | C58: 1696 | D58: 336 | E58: 1 | F58: 0 | I58: 1
A59: 084 | B59: ZIMAPAN | C59: 1697 | D59: 144 | E59: 1 | F59: 0 | I59: 1
A60: 084 | B60: ZIMAPAN | C60: 1698 | D60: 185 | E60: 1 | F60: 0 | I60: 1
A61: 084 | B61: ZIMAPAN | C61: 1699 | D61: 472 | E61: 1 | F61: 0 | I61: 1
A62: 084 | B62: ZIMAPAN | C62: 1700 | D62: 453 | E62: 1 | F62: 0 | I62: 1
A63: 084 | B63: ZIMAPAN | C63: 1701 | D63: 193 | E63: 1 | F63: 0 | I63: 1
A64: 084 | B64: ZIMAPAN | C64: 1702 | D64: 497 | E64: 1 | F64: 0 | I64: 1
A65: 084 | B65: ZIMAPAN | C65: 1703 | D65: 509 | E65: 1 | F65: 0 | I65: 1
A66: 084 | B66: ZIMAPAN | C66: 1704 | D66: 258 | E66: 1 | F66: 0 | I66: 1
A67: 084 | B67: ZIMAPAN | C67: 1705 | D67: 77 | E67: 1 | F67: 0 | I67: 1
A68: 084 | B68: ZIMAPAN | C68: 1706 | D68: 397 | E68: 1 | F68: 0 | I68: 1
A69: 084 | B69: ZIMAPAN | C69: 1707 | D69: 154 | E69: 1 | F69: 0 | I69: 1
A70: ZIMAPAN | D70: =SUM(D7:D69) -> 30196 | E70: =SUM(E7:E69) -> 63 | F70: =SUM(F7:F69) -> 20 | G70: =SUM(G7:G69) -> 0 | H70: 1 | I70: 84
A72: 058 | B72: TASQUILLO | C72: 1132 | D72: 669 | E72: 1 | F72: 0 | I72: =SUM(E72:H72) -> 1
A73: 058 | B73: TASQUILLO | C73: 1133 | D73: 1339 | E73: 1 | F73: 1 | I73: =SUM(E73:H73) -> 2
A74: 058 | B74: TASQUILLO | C74: 1134 | D74: 1835 | E74: 1 | F74: 2 | I74: 3
A75: 058 | B75: TASQUILLO | C75: 1135 | D75: 540 | E75: 1 | F75: 0 | I75: 1
A76: 058 | B76: TASQUILLO | C76: 1136 | D76: 136 | E76: 1 | F76: 0 | I76: 1
A77: 058 | B77: TASQUILLO | C77: 1137 | D77: 704 | E77: 1 | F77: 0 | I77: 1
A78: 058 | B78: TASQUILLO | C78: 1138 | D78: 714 | E78: 1 | F78: 0 | I78: 1
A79: 058 | B79: TASQUILLO | C79: 1139 | D79: 457 | E79: 1 | F79: 0 | I79: 1
A80: 058 | B80: TASQUILLO | C80: 1140 | D80: 111 | E80: 1 | F80: 0 | I80: 1
A81: 058 | B81: TASQUILLO | C81: 1141 | D81: 350 | E81: 1 | F81: 0 | I81: 1
A82: 058 | B82: TASQUILLO | C82: 1142 | D82: 770 | E82: 1 | F82: 1 | I82: 2
A83: 058 | B83: TASQUILLO | C83: 1143 | D83: 309 | E83: 1 | F83: 0 | I83: 1
A84: 058 | B84: TASQUILLO | C84: 1144 | D84: 441 | E84: 1 | F84: 0 | I84: 1
A85: 058 | B85: TASQUILLO | C85: 1145 | D85: 398 | E85: 1 | F85: 0 | I85: 1
A86: 058 | B86: TASQUILLO | C86: 1146 | D86: 801 | E86: 1 | F86: 1 | I86: 2
A87: 058 | B87: TASQUILLO | C87: 1147 | D87: 410 | E87: 1 | F87: 0 | I87: 1
A88: 058 | B88: TASQUILLO | C88: 1148 | D88: 674 | E88: 1 | F88: 0 | I88: 1
A89: 058 | B89: TASQUILLO | C89: 1149 | D89: 602 | E89: 1 | F89: 0 | I89: 1
A90: 058 | B90: TASQUILLO | C90: 1150 | D90: 1466 | E90: 1 | F90: 1 | I90: 2
A91: 058 | B91: TASQUILLO | C91: 1151 | D91: 1708 | E91: 1 | F91: 2 | I91: 3
A92: TASQUILLO | D92: =SUM(D72:D91) -> 14434 | E92: =SUM(E72:E91) -> 20 | F92: =SUM(F72:F91) -> 8 | G92: =SUM(G72:G91) -> 0 | H92: 0 | I92: 28
A94: 043 | B94: NICOLAS FLORES | C94: 780 | D94: 746 | E94: 1 | F94: 0 | I94: =SUM(E94:H94) -> 1
A95: 043 | B95: NICOLAS FLORES | C95: 781 | D95: 209 | E95: 1 | F95: 0 | I95: =SUM(E95:H95) -> 1
A96: 043 | B96: NICOLAS FLORES | C96: 782 | D96: 270 | E96: 1 | F96: 0 | I96: 1
A97: 043 | B97: NICOLAS FLORES | C97: 783 | D97: 139 | E97: 1 | F97: 0 | I97: 1
A98: 043 | B98: NICOLAS FLORES | C98: 784 | D98: 321 | E98: 1 | F98: 0 | I98: 1
A99: 043 | B99: NICOLAS FLORES | C99: 785 | D99: 141 | E99: 1 | F99: 0 | I99: 1
A100: 043 | B100: NICOLAS FLORES | C100: 786 | D100: 133 | E100: 1 | F100: 0 | I100: 1
A101: 043 | B101: NICOLAS FLORES | C101: 787 | D101: 91 | E101: 1 | F101: 0 | I101: 1
A102: 043 | B102: NICOLAS FLORES | C102: 788 | D102: 336 | E102: 1 | F102: 0 | I102: 1
A103: 043 | B103: NICOLAS FLORES | C103: 789 | D103: 163 | E103: 1 | F103: 0 | I103: 1
A104: 043 | B104: NICOLAS FLORES | C104: 790 | D104: 256 | E104: 1 | F104: 0 | I104: 1
A105: 043 | B105: NICOLAS FLORES | C105: 791 | D105: 146 | E105: 1 | F105: 0 | I105: 1
A106: 043 | B106: NICOLAS FLORES | C106: 792 | D106: 108 | E106: 1 | F106: 0 | I106: 1
A107: 043 | B107: NICOLAS FLORES | C107: 793 | D107: 240 | E107: 1 | F107: 0 | I107: 1
A108: 043 | B108: NICOLAS FLORES | C108: 794 | D108: 87 | E108: 1 | F108: 0 | I108: 1
A109: 043 | B109: NICOLAS FLORES | C109: 795 | D109: 333 | E109: 1 | F109: 0 | I109: 1
A110: 043 | B110: NICOLAS FLORES | C110: 796 | D110: 273 | E110: 1 | F110: 0 | I110: 1
A111: 043 | B111: NICOLAS FLORES | C111: 797 | D111: 215 | E111: 1 | F111: 0 | I111: 1
A112: 043 | B112: NICOLAS FLORES | C112: 798 | D112: 152 | E112: 1 | F112: 0 | I112: 1
A113: 043 | B113: NICOLAS FLORES | C113: 799 | D113: 354 | E113: 1 | F113: 0 | I113: 1
A114: 043 | B114: NICOLAS FLORES | C114: 800 | D114: 279 | E114: 1 | F114: 0 | I114: 1
A115: 043 | B115: NICOLAS FLORES | C115: 801 | D115: 128 | E115: 1 | F115: 0 | I115: 1
A116: NICOLAS FLORES | D116: =SUM(D94:D115) -> 5120 | E116: =SUM(E94:E115) -> 22 | F116: =SUM(F94:F115) -> 0 | G116: =SUM(G94:G115) -> 0 | H116: 0 | I116: 22
A118: 046 | B118: PACULA | C118: 822 | D118: 524 | E118: 1 | F118: 0 | I118: =SUM(E118:H118) -> 1
A119: 046 | B119: PACULA | C119: 823 | D119: 566 | E119: 1 | F119: 0 | I119: =SUM(E119:H119) -> 1
A120: 046 | B120: PACULA | C120: 824 | D120: 964 | E120: 1 | F120: 1 | I120: 2
A121: 046 | B121: PACULA | C121: 825 | D121: 438 | E121: 1 | F121: 0 | I121: 1
A122: 046 | B122: PACULA | C122: 826 | D122: 276 | E122: 1 | F122: 0 | I122: 1
A123: 046 | B123: PACULA | C123: 827 | D123: 243 | E123: 1 | F123: 0 | I123: 1
A124: 046 | B124: PACULA | C124: 828 | D124: 348 | E124: 1 | F124: 0 | I124: 1
A125: 046 | B125: PACULA | C125: 829 | D125: 446 | E125: 1 | F125: 0 | I125: 1
A126: 046 | B126: PACULA | C126: 830 | D126: 169 | E126: 1 | F126: 0 | I126: 1
A127: 046 | B127: PACULA | C127: 831 | D127: 312 | E127: 1 | F127: 0 | I127: 1
A128: PACULA | D128: =SUM(D118:D127) -> 4286 | E128: =SUM(E118:E127) -> 10 | F128: =SUM(F118:F127) -> 1 | G128: =SUM(G118:G127) -> 0 | H128: 0 | I128: 11
A131: TOTAL DISITRITAL | D131: =SUM(D128,D116,D92,D70) -> 54036 | E131: =SUM(E128,E116,E92,E70) -> 115 | F131: =SUM(F128,F116,F92,F70) -> 29 | G131: =SUM(G128,G116,G92,G70) -> 0 | H131: 1 | I131: 145

Sheet 8
A1: PADRON Y LISTA NOMINAL
A2: CORTE: | B2: DEFINITIVO
A3: DISTRITO LOCAL VIII ZACUALTIPAN
A6: CLAVE | B6: NOMBRE | C6: Seccion | D6: L N | E6: Basicas | F6: Contiguas | G6: Extras | H6: Especiales | I6: TOTAL
A7: 081 | B7: ZACUALTIPAN DE ANGELES | C7: 1600 | D7: 3724 | E7: 1 | F7: 4 | I7: =SUM(E7:H7) -> 5
A8: 081 | B8: ZACUALTIPAN DE ANGELES | C8: 1601 | D8: 1826 | E8: 1 | F8: 2 | I8: =SUM(E8:H8) -> 3
A9: 081 | B9: ZACUALTIPAN DE ANGELES | C9: 1602 | D9: 2125 | E9: 1 | F9: 2 | I9: 3
A10: 081 | B10: ZACUALTIPAN DE ANGELES | C10: 1603 | D10: 1413 | E10: 1 | F10: 1 | I10: 2
A11: 081 | B11: ZACUALTIPAN DE ANGELES | C11: 1604 | D11: 1412 | E11: 1 | F11: 1 | I11: 2
A12: 081 | B12: ZACUALTIPAN DE ANGELES | C12: 1605 | D12: 1830 | E12: 1 | F12: 2 | I12: 3
A13: 081 | B13: ZACUALTIPAN DE ANGELES | C13: 1606 | D13: 2233 | E13: 1 | F13: 2 | I13: 3
A14: 081 | B14: ZACUALTIPAN DE ANGELES | C14: 1607 | D14: 1105 | E14: 1 | F14: 1 | H14: 1 | I14: 3
A15: 081 | B15: ZACUALTIPAN DE ANGELES | C15: 1608 | D15: 1845 | E15: 1 | F15: 2 | I15: 3
A16: 081 | B16: ZACUALTIPAN DE ANGELES | C16: 1609 | D16: 406 | E16: 1 | F16: 0 | I16: 1
A17: 081 | B17: ZACUALTIPAN DE ANGELES | C17: 1610 | D17: 597 | E17: 1 | F17: 0 | I17: 1
A18: 081 | B18: ZACUALTIPAN DE ANGELES | C18: 1611 | D18: 748 | E18: 1 | F18: 0 | I18: 1
A19: 081 | B19: ZACUALTIPAN DE ANGELES | C19: 1612 | D19: 246 | E19: 1 | F19: 0 | I19: 1
A20: 081 | B20: ZACUALTIPAN DE ANGELES | C20: 1613 | D20: 547 | E20: 1 | F20: 0 | I20: 1
A21: 081 | B21: ZACUALTIPAN DE ANGELES | C21: 1614 | D21: 826 | E21: 1 | F21: 1 | I21: 2
A22: 081 | B22: ZACUALTIPAN DE ANGELES | C22: 1615 | D22: 818 | E22: 1 | F22: 1 | I22: 2
A23: 081 | B23: ZACUALTIPAN DE ANGELES | C23: 1616 | D23: 650 | E23: 1 | F23: 0 | I23: 1
A24: 081 | B24: ZACUALTIPAN DE ANGELES | C24: 1617 | D24: 419 | E24: 1 | F24: 0 | I24: 1
A25: 081 | B25: ZACUALTIPAN DE ANGELES | C25: 1618 | D25: 701 | E25: 1 | F25: 0 | I25: 1
A26: ZACUALTIPAN DE ÁNGELES | D26: =SUM(D7:D25) -> 23471 | E26: =SUM(E7:E25) -> 19 | F26: =SUM(F7:F25) -> 19 | G26: =SUM(G7:G25) -> 0 | H26: 1 | I26: 39
A28: 067 | B28: TIANGUISTENGO | C28: 1333 | D28: 981 | E28: 1 | F28: 1 | I28: =SUM(E28:H28) -> 2
A29: 067 | B29: TIANGUISTENGO | C29: 1334 | D29: 957 | E29: 1 | F29: 1 | I29: =SUM(E29:H29) -> 2
A30: 067 | B30: TIANGUISTENGO | C30: 1335 | D30: 278 | E30: 1 | F30: 0 | I30: 1
A31: 067 | B31: TIANGUISTENGO | C31: 1336 | D31: 590 | E31: 1 | F31: 0 | I31: 1
A32: 067 | B32: TIANGUISTENGO | C32: 1337 | D32: 480 | E32: 1 | F32: 0 | I32: 1
A33: 067 | B33: TIANGUISTENGO | C33: 1338 | D33: 791 | E33: 1 | F33: 1 | I33: 2
A34: 067 | B34: TIANGUISTENGO | C34: 1339 | D34: 180 | E34: 1 | F34: 0 | I34: 1
A35: 067 | B35: TIANGUISTENGO | C35: 1340 | D35: 494 | E35: 1 | F35: 0 | I35: 1
A36: 067 | B36: TIANGUISTENGO | C36: 1341 | D36: 542 | E36: 1 | F36: 0 | I36: 1
A37: 067 | B37: TIANGUISTENGO | C37: 1342 | D37: 849 | E37: 1 | F37: 1 | I37: 2
A38: 067 | B38: TIANGUISTENGO | C38: 1343 | D38: 307 | E38: 1 | F38: 0 | I38: 1
A39: 067 | B39: TIANGUISTENGO | C39: 1344 | D39: 1143 | E39: 1 | F39: 1 | I39: 2
A40: 067 | B40: TIANGUISTENGO | C40: 1345 | D40: 473 | E40: 1 | F40: 0 | I40: 1
A41: 067 | B41: TIANGUISTENGO | C41: 1346 | D41: 753 | E41: 1 | F41: 1 | I41: 2
A42: 067 | B42: TIANGUISTENGO | C42: 1347 | D42: 754 | E42: 1 | F42: 1 | I42: 2
A43: 067 | B43: TIANGUISTENGO | C43: 1348 | D43: 549 | E43: 1 | F43: 0 | I43: 1
A44: TIANGUISTENGO | D44: =SUM(D28:D43) -> 10121 | E44: =SUM(E28:E43) -> 16 | F44: =SUM(F28:F43) -> 7 | G44: =SUM(G28:G43) -> 0 | H44: 0 | I44: 23
A46: 079 | B46: XOCHICOATLAN | C46: 1576 | D46: 743 | E46: 1 | F46: 0 | I46: =SUM(E46:H46) -> 1
A47: 079 | B47: XOCHICOATLAN | C47: 1577 | D47: 780 | E47: 1 | F47: 1 | I47: =SUM(E47:H47) -> 2
A48: 079 | B48: XOCHICOATLAN | C48: 1578 | D48: 699 | E48: 1 | F48: 0 | I48: 1
A49: 079 | B49: XOCHICOATLAN | C49: 1579 | D49: 663 | E49: 1 | F49: 0 | I49: 1
A50: 079 | B50: XOCHICOATLAN | C50: 1580 | D50: 135 | E50: 1 | F50: 0 | I50: 1
A51: 079 | B51: XOCHICOATLAN | C51: 1581 | D51: 470 | E51: 1 | F51: 0 | I51: 1
A52: 079 | B52: XOCHICOATLAN | C52: 1582 | D52: 378 | E52: 1 | F52: 0 | I52: 1
A53: 079 | B53: XOCHICOATLAN | C53: 1583 | D53: 966 | E53: 1 | F53: 1 | I53: 2
A54: 079 | B54: XOCHICOATLAN | C54: 1584 | D54: 706 | E54: 1 | F54: 0 | I54: 1
A55: XOCHICOATLAN | D55: =SUM(D46:D54) -> 5540 | E55: =SUM(E46:E54) -> 9 | F55: =SUM(F46:F54) -> 2 | G55: =SUM(G46:G54) -> 0 | H55: 0 | I55: 11
A58: TOTAL DISITRITAL | D58: =SUM(D55,D44,D26) -> 39132 | E58: =SUM(E55,E44,E26) -> 44 | F58: =SUM(F55,F44,F26) -> 28 | G58: =SUM(G55,G44,G26) -> 0 | H58: 1 | I58: 73

Sheet 9
A1: PADRON Y LISTA NOMINAL
A2: CORTE: | B2: DEFINITIVO
A3: DISTRITO LOCAL IX SAN A. METZQUITITLAN
A6: CLAVE | B6: NOMBRE | C6: Seccion | D6: L N | E6: Basicas | F6: Contiguas | G6: Extras | H6: Especiales | I6: TOTAL
A7: 050 | B7: SAN AGUSTIN METZQUITITLAN | C7: 994 | D7: 2047 | E7: 1 | F7: 2 | H7: 1 | I7: =SUM(E7:H7) -> 4
A8: 050 | B8: SAN AGUSTIN METZQUITITLAN | C8: 995 | D8: 266 | E8: 1 | F8: 0 | I8: =SUM(E8:H8) -> 1
A9: 050 | B9: SAN AGUSTIN METZQUITITLAN | C9: 996 | D9: 1119 | E9: 1 | F9: 1 | I9: 2
A10: 050 | B10: SAN AGUSTIN METZQUITITLAN | C10: 997 | D10: 739 | E10: 1 | F10: 0 | I10: 1
A11: 050 | B11: SAN AGUSTIN METZQUITITLAN | C11: 998 | D11: 172 | E11: 1 | F11: 0 | I11: 1
A12: 050 | B12: SAN AGUSTIN METZQUITITLAN | C12: 999 | D12: 391 | E12: 1 | F12: 0 | I12: 1
A13: 050 | B13: SAN AGUSTIN METZQUITITLAN | C13: 1000 | D13: 493 | E13: 1 | F13: 0 | I13: 1
A14: 050 | B14: SAN AGUSTIN METZQUITITLAN | C14: 1001 | D14: 545 | E14: 1 | F14: 0 | I14: 1
A15: 050 | B15: SAN AGUSTIN METZQUITITLAN | C15: 1002 | D15: 588 | E15: 1 | F15: 0 | I15: 1
A16: 050 | B16: SAN AGUSTIN METZQUITITLAN | C16: 1003 | D16: 135 | E16: 1 | F16: 0 | I16: 1
A17: 050 | B17: SAN AGUSTIN METZQUITITLAN | C17: 1004 | D17: 148 | E17: 1 | F17: 0 | I17: 1
A18: 050 | B18: SAN AGUSTIN METZQUITITLAN | C18: 1005 | D18: 488 | E18: 1 | F18: 0 | I18: 1
A19: 050 | B19: SAN AGUSTIN METZQUITITLAN | C19: 1006 | D19: 284 | E19: 1 | F19: 0 | I19: 1
A20: 050 | B20: SAN AGUSTIN METZQUITITLAN | C20: 1007 | D20: 124 | E20: 1 | F20: 0 | I20: 1
A21: SAN AGUSTIN METZQUITITLAN | D21: =SUM(D7:D20) -> 7539 | E21: =SUM(E7:E20) -> 14 | F21: =SUM(F7:F20) -> 3 | G21: =SUM(G7:G20) -> 0 | H21: 1 | I21: 18
A23: 037 | B23: METZTITLAN | C23: 674 | D23: 1159 | E23: 1 | F23: 1 | I23: =SUM(E23:H23) -> 2
A24: 037 | B24: METZTITLAN | C24: 675 | D24: 1402 | E24: 1 | F24: 1 | I24: =SUM(E24:H24) -> 2
A25: 037 | B25: METZTITLAN | C25: 676 | D25: 573 | E25: 1 | F25: 0 | I25: 1
A26: 037 | B26: METZTITLAN | C26: 677 | D26: 304 | E26: 1 | F26: 0 | I26: 1
A27: 037 | B27: METZTITLAN | C27: 678 | D27: 747 | E27: 1 | F27: 0 | G27: 1 | I27: 2
A28: 037 | B28: METZTITLAN | C28: 679 | D28: 695 | E28: 1 | F28: 0 | G28: 1 | I28: 2
A29: 037 | B29: METZTITLAN | C29: 680 | D29: 1330 | E29: 1 | F29: 1 | I29: 2
A30: 037 | B30: METZTITLAN | C30: 681 | D30: 1284 | E30: 1 | F30: 1 | G30: 1 | I30: 3
A31: 037 | B31: METZTITLAN | C31: 682 | D31: 124 | E31: 1 | F31: 0 | I31: 1
A32: 037 | B32: METZTITLAN | C32: 683 | D32: 292 | E32: 1 | F32: 0 | I32: 1
A33: 037 | B33: METZTITLAN | C33: 684 | D33: 587 | E33: 1 | F33: 0 | I33: 1
A34: 037 | B34: METZTITLAN | C34: 685 | D34: 332 | E34: 1 | F34: 0 | I34: 1
A35: 037 | B35: METZTITLAN | C35: 686 | D35: 711 | E35: 1 | F35: 0 | I35: 1
A36: 037 | B36: METZTITLAN | C36: 687 | D36: 444 | E36: 1 | F36: 0 | I36: 1
A37: 037 | B37: METZTITLAN | C37: 688 | D37: 415 | E37: 1 | F37: 0 | I37: 1
A38: 037 | B38: METZTITLAN | C38: 689 | D38: 754 | E38: 1 | F38: 1 | I38: 2
A39: 037 | B39: METZTITLAN | C39: 690 | D39: 257 | E39: 1 | F39: 0 | G39: 1 | I39: 2
A40: 037 | B40: METZTITLAN | C40: 691 | D40: 596 | E40: 1 | F40: 0 | I40: 1
A41: 037 | B41: METZTITLAN | C41: 692 | D41: 338 | E41: 1 | F41: 0 | I41: 1
A42: 037 | B42: METZTITLAN | C42: 693 | D42: 638 | E42: 1 | F42: 0 | I42: 1
A43: 037 | B43: METZTITLAN | C43: 694 | D43: 617 | E43: 1 | F43: 0 | I43: 1
A44: 037 | B44: METZTITLAN | C44: 695 | D44: 933 | E44: 1 | F44: 1 | I44: 2
A45: 037 | B45: METZTITLAN | C45: 696 | D45: 198 | E45: 1 | F45: 0 | I45: 1
A46: 037 | B46: METZTITLAN | C46: 697 | D46: 943 | E46: 1 | F46: 1 | I46: 2
A47: 037 | B47: METZTITLAN | C47: 698 | D47: 550 | E47: 1 | F47: 0 | I47: 1
A48: 037 | B48: METZTITLAN | C48: 699 | D48: 172 | E48: 1 | F48: 0 | I48: 1
A49: METZTITLAN | D49: =SUM(D23:D48) -> 16395 | E49: =SUM(E23:E48) -> 26 | F49: =SUM(F23:F48) -> 7 | G49: =SUM(G23:G48) -> 4 | H49: 0 | I49: 37
A51: 020 | B51: ELOXOCHITLAN | C51: 342 | D51: 640 | E51: 1 | F51: 0 | I51: =SUM(E51:H51) -> 1
A52: 020 | B52: ELOXOCHITLAN | C52: 343 | D52: 127 | E52: 1 | F52: 0 | I52: =SUM(E52:H52) -> 1
A53: 020 | B53: ELOXOCHITLAN | C53: 344 | D53: 77 | E53: 1 | F53: 0 | I53: 1
A54: 020 | B54: ELOXOCHITLAN | C54: 345 | D54: 915 | E54: 1 | F54: 1 | I54: 2
A55: 020 | B55: ELOXOCHITLAN | C55: 346 | D55: 236 | E55: 1 | F55: 0 | I55: 1
A56: 020 | B56: ELOXOCHITLAN | C56: 347 | D56: 101 | E56: 1 | F56: 0 | I56: 1
A57: 020 | B57: ELOXOCHITLAN | C57: 348 | D57: 261 | E57: 1 | F57: 0 | I57: 1
A58: 020 | B58: ELOXOCHITLAN | C58: 349 | D58: 196 | E58: 1 | F58: 0 | I58: 1
A59: ELOXOCHITLAN | D59: =SUM(D51:D58) -> 2553 | E59: =SUM(E51:E58) -> 8 | F59: =SUM(F51:F58) -> 1 | G59: 0 | H59: 0 | I59: =SUM(I51:I58) -> 9
A61: 033 | B61: JUAREZ HIDALGO | C61: 642 | D61: 664 | E61: 1 | F61: 0 | I61: =SUM(E61:H61) -> 1
A62: 033 | B62: JUAREZ HIDALGO | C62: 643 | D62: 360 | E62: 1 | F62: 0 | I62: =SUM(E62:H62) -> 1
A63: 033 | B63: JUAREZ HIDALGO | C63: 644 | D63: 616 | E63: 1 | F63: 0 | I63: 1
A64: 033 | B64: JUAREZ HIDALGO | C64: 645 | D64: 954 | E64: 1 | F64: 1 | I64: 2
A65: JUAREZ HIDALGO | D65: =SUM(D61:D64) -> 2594 | E65: =SUM(E61:E64) -> 4 | F65: =SUM(F61:F64) -> 1 | G65: =SUM(G61:G64) -> 0 | H65: 0 | I65: 5
A67: 070 | B67: TLAHUILTEPA | C67: 1378 | D67: 788 | E67: 1 | F67: 1 | I67: =SUM(E67:H67) -> 2
A68: 070 | B68: TLAHUILTEPA | C68: 1379 | D68: 617 | E68: 1 | F68: 0 | I68: =SUM(E68:H68) -> 1
A69: 070 | B69: TLAHUILTEPA | C69: 1380 | D69: 720 | E69: 1 | F69: 0 | I69: 1
A70: 070 | B70: TLAHUILTEPA | C70: 1381 | D70: 564 | E70: 1 | F70: 0 | I70: 1
A71: 070 | B71: TLAHUILTEPA | C71: 1382 | D71: 381 | E71: 1 | F71: 0 | G71: 1 | I71: 2
A72: 070 | B72: TLAHUILTEPA | C72: 1383 | D72: 380 | E72: 1 | F72: 0 | I72: 1
A73: 070 | B73: TLAHUILTEPA | C73: 1384 | D73: 201 | E73: 1 | F73: 0 | I73: 1
A74: 070 | B74: TLAHUILTEPA | C74: 1385 | D74: 274 | E74: 1 | F74: 0 | I74: 1
A75: 070 | B75: TLAHUILTEPA | C75: 1386 | D75: 479 | E75: 1 | F75: 0 | I75: 1
A76: 070 | B76: TLAHUILTEPA | C76: 1387 | D76: 132 | E76: 1 | F76: 0 | I76: 1
A77: 070 | B77: TLAHUILTEPA | C77: 1388 | D77: 827 | E77: 1 | F77: 1 | I77: 2
A78: 070 | B78: TLAHUILTEPA | C78: 1389 | D78: 233 | E78: 1 | F78: 0 | I78: 1
A79: 070 | B79: TLAHUILTEPA | C79: 1390 | D79: 283 | E79: 1 | F79: 0 | I79: 1
A80: 070 | B80: TLAHUILTEPA | C80: 1391 | D80: 626 | E80: 1 | F80: 0 | I80: 1
A81: 070 | B81: TLAHUILTEPA | C81: 1392 | D81: 443 | E81: 1 | F81: 0 | I81: 1
A82: 070 | B82: TLAHUILTEPA | C82: 1393 | D82: 357 | E82: 1 | F82: 0 | I82: 1
A83: 070 | B83: TLAHUILTEPA | C83: 1394 | D83: 206 | E83: 1 | F83: 0 | I83: 1
A84: TLAHUILTEPA | D84: =SUM(D67:D83) -> 7511 | E84: =SUM(E67:E83) -> 17 | F84: =SUM(F67:F83) -> 2 | G84: =SUM(G67:G83) -> 1 | H84: 0 | I84: 20
A87: TOTAL DISITRITAL | D87: =SUM(D84,D65,D59,D49,D21) -> 36592 | E87: =SUM(E84,E65,E59,E49,E21) -> 69 | F87: =SUM(F84,F65,F59,F49,F21) -> 14 | G87: =SUM(G84,G65,G59,G49,G21) -> 5 | H87: 1 | I87: 89

Sheet 10
A1: PADRON Y LISTA NOMINAL
A2: CORTE: | B2: DEFINITIVO
A3: DISTRITO LOCAL X TENANGO DE DORIA
A6: CLAVE | B6: NOMBRE | C6: Seccion | D6: L N | E6: Basicas | F6: Contiguas | G6: Extras | H6: Especiales | I6: TOTAL
A7: 060 | B7: TENANGO DE DORIA | C7: 1177 | D7: 1082 | E7: 1 | F7: 1 | I7: =SUM(E7:H7) -> 2
A8: 060 | B8: TENANGO DE DORIA | C8: 1178 | D8: 2060 | E8: 1 | F8: 2 | H8: 1 | I8: =SUM(E8:H8) -> 4
A9: 060 | B9: TENANGO DE DORIA | C9: 1179 | D9: 350 | E9: 1 | F9: 0 | I9: 1
A10: 060 | B10: TENANGO DE DORIA | C10: 1180 | D10: 1471 | E10: 1 | F10: 0 | G10: 2 | I10: 3
A11: 060 | B11: TENANGO DE DORIA | C11: 1181 | D11: 717 | E11: 1 | F11: 0 | G11: 1 | I11: 2
A12: 060 | B12: TENANGO DE DORIA | C12: 1182 | D12: 430 | E12: 1 | F12: 0 | I12: 1
A13: 060 | B13: TENANGO DE DORIA | C13: 1183 | D13: 979 | E13: 1 | F13: 1 | I13: 2
A14: 060 | B14: TENANGO DE DORIA | C14: 1184 | D14: 371 | E14: 1 | F14: 0 | I14: 1
A15: 060 | B15: TENANGO DE DORIA | C15: 1185 | D15: 507 | E15: 1 | F15: 0 | I15: 1
A16: 060 | B16: TENANGO DE DORIA | C16: 1186 | D16: 433 | E16: 1 | F16: 0 | I16: 1
A17: 060 | B17: TENANGO DE DORIA | C17: 1187 | D17: 556 | E17: 1 | F17: 0 | I17: 1
A18: 060 | B18: TENANGO DE DORIA | C18: 1188 | D18: 1121 | E18: 1 | F18: 1 | I18: 2
A19: 060 | B19: TENANGO DE DORIA | C19: 1189 | D19: 932 | E19: 1 | F19: 1 | I19: 2
A20: 060 | B20: TENANGO DE DORIA | C20: 1190 | D20: 834 | E20: 1 | F20: 1 | I20: 2
A21: TENANGO DE DORIA | D21: =SUM(D7:D20) -> 11843 | E21: =SUM(E7:E20) -> 14 | F21: =SUM(F7:F20) -> 7 | G21: =SUM(G7:G20) -> 3 | H21: 1 | I21: 25
A23: 002 | B23: ACAXOCHITLAN | C23: 13 | D23: 1969 | E23: 1 | F23: 2 | I23: =SUM(E23:H23) -> 3
A24: 002 | B24: ACAXOCHITLAN | C24: 14 | D24: 1593 | E24: 1 | F24: 2 | I24: =SUM(E24:H24) -> 3
A25: 002 | B25: ACAXOCHITLAN | C25: 15 | D25: 449 | E25: 1 | F25: 0 | I25: 1
A26: 002 | B26: ACAXOCHITLAN | C26: 16 | D26: 661 | E26: 1 | F26: 0 | I26: 1
A27: 002 | B27: ACAXOCHITLAN | C27: 17 | D27: 721 | E27: 1 | F27: 0 | I27: 1
A28: 002 | B28: ACAXOCHITLAN | C28: 18 | D28: 139 | E28: 1 | F28: 0 | I28: 1
A29: 002 | B29: ACAXOCHITLAN | C29: 19 | D29: 984 | E29: 1 | F29: 1 | I29: 2
A30: 002 | B30: ACAXOCHITLAN | C30: 20 | D30: 1053 | E30: 1 | F30: 1 | I30: 2
A31: 002 | B31: ACAXOCHITLAN | C31: 21 | D31: 1680 | E31: 1 | F31: 2 | I31: 3
A32: 002 | B32: ACAXOCHITLAN | C32: 22 | D32: 1399 | E32: 1 | F32: 1 | I32: 2
A33: 002 | B33: ACAXOCHITLAN | C33: 23 | D33: 1960 | E33: 1 | F33: 2 | I33: 3
A34: 002 | B34: ACAXOCHITLAN | C34: 24 | D34: 2125 | E34: 1 | F34: 2 | I34: 3
A35: 002 | B35: ACAXOCHITLAN | C35: 25 | D35: 1397 | E35: 1 | F35: 0 | G35: 2 | I35: 3
A36: 002 | B36: ACAXOCHITLAN | C36: 26 | D36: 732 | E36: 1 | F36: 0 | I36: 1
A37: 002 | B37: ACAXOCHITLAN | C37: 27 | D37: 2629 | E37: 1 | F37: 3 | I37: 4
A38: 002 | B38: ACAXOCHITLAN | C38: 28 | D38: 896 | E38: 1 | F38: 1 | I38: 2
A39: 002 | B39: ACAXOCHITLAN | C39: 29 | D39: 1584 | E39: 1 | F39: 2 | I39: 3
A40: 002 | B40: ACAXOCHITLAN | C40: 30 | D40: 2054 | E40: 1 | F40: 2 | I40: 3
A41: 002 | B41: ACAXOCHITLAN | C41: 31 | D41: 1107 | E41: 1 | F41: 1 | I41: 2
A42: 002 | B42: ACAXOCHITLAN | C42: 32 | D42: 1399 | E42: 1 | F42: 1 | I42: 2
A43: 002 | B43: ACAXOCHITLAN | C43: 33 | D43: 851 | E43: 1 | F43: 1 | I43: 2
A44: ACAXOCHITLAN | D44: =SUM(D23:D43) -> 27382 | E44: =SUM(E23:E43) -> 21 | F44: =SUM(F23:F43) -> 24 | G44: =SUM(G23:G43) -> 2 | H44: 0 | I44: 47
A46: 036 | B46: METEPEC | C46: 665 | D46: 2105 | E46: 1 | F46: 2 | I46: =SUM(E46:H46) -> 3
A47: 036 | B47: METEPEC | C47: 666 | D47: 201 | E47: 1 | F47: 0 | I47: =SUM(E47:H47) -> 1
A48: 036 | B48: METEPEC | C48: 667 | D48: 1229 | E48: 1 | F48: 1 | I48: 2
A49: 036 | B49: METEPEC | C49: 668 | D49: 2080 | E49: 1 | F49: 2 | I49: 3
A50: 036 | B50: METEPEC | C50: 669 | D50: 323 | E50: 1 | F50: 0 | I50: 1
A51: 036 | B51: METEPEC | C51: 670 | D51: 762 | E51: 1 | F51: 1 | I51: 2
A52: 036 | B52: METEPEC | C52: 671 | D52: 950 | E52: 1 | F52: 1 | I52: 2
A53: 036 | B53: METEPEC | C53: 672 | D53: 264 | E53: 1 | F53: 0 | I53: 1
A54: 036 | B54: METEPEC | C54: 673 | D54: 582 | E54: 1 | F54: 0 | I54: 1
A55: METEPEC | D55: =SUM(D46:D54) -> 8496 | E55: =SUM(E46:E54) -> 9 | F55: =SUM(F46:F54) -> 7 | G55: =SUM(G46:G54) -> 0 | H55: 0 | I55: 16
A57: 027 | B57: HUEHUETLA | C57: 441 | D57: 2512 | E57: 1 | F57: 3 | I57: =SUM(E57:H57) -> 4
A58: 027 | B58: HUEHUETLA | C58: 442 | D58: 287 | E58: 1 | F58: 0 | I58: =SUM(E58:H58) -> 1
A59: 027 | B59: HUEHUETLA | C59: 443 | D59: 658 | E59: 1 | F59: 0 | I59: 1
A60: 027 | B60: HUEHUETLA | C60: 444 | D60: 842 | E60: 1 | F60: 1 | I60: 2
A61: 027 | B61: HUEHUETLA | C61: 445 | D61: 188 | E61: 1 | F61: 0 | I61: 1
A62: 027 | B62: HUEHUETLA | C62: 446 | D62: 625 | E62: 1 | F62: 0 | I62: 1
A63: 027 | B63: HUEHUETLA | C63: 447 | D63: 1810 | E63: 1 | F63: 1 | G63: 1 | I63: 3
A64: 027 | B64: HUEHUETLA | C64: 448 | D64: 717 | E64: 1 | F64: 0 | I64: 1
A65: 027 | B65: HUEHUETLA | C65: 449 | D65: 856 | E65: 1 | F65: 1 | I65: 2
A66: 027 | B66: HUEHUETLA | C66: 450 | D66: 759 | E66: 1 | F66: 1 | I66: 2
A67: 027 | B67: HUEHUETLA | C67: 451 | D67: 1608 | E67: 1 | F67: 2 | I67: 3
A68: 027 | B68: HUEHUETLA | C68: 452 | D68: 1213 | E68: 1 | F68: 1 | I68: 2
A69: 027 | B69: HUEHUETLA | C69: 453 | D69: 1210 | E69: 1 | F69: 1 | I69: 2
A70: 027 | B70: HUEHUETLA | C70: 454 | D70: 1130 | E70: 1 | F70: 1 | I70: 2
A71: 027 | B71: HUEHUETLA | C71: 455 | D71: 665 | E71: 1 | F71: 0 | G71: 1 | I71: 2
A72: 027 | B72: HUEHUETLA | C72: 456 | D72: 663 | E72: 1 | F72: 0 | I72: 1
A73: HUEHUETLA | D73: =SUM(D57:D72) -> 15743 | E73: =SUM(E57:E72) -> 16 | F73: =SUM(F57:F72) -> 12 | G73: =SUM(G57:G72) -> 2 | H73: 0 | I73: 30
A75: 052 | B75: SAN BARTOLO TUTOTEPEC | C75: 1026 | D75: 1550 | E75: 1 | F75: 2 | I75: =SUM(E75:H75) -> 3
A76: 052 | B76: SAN BARTOLO TUTOTEPEC | C76: 1027 | D76: 2591 | E76: 1 | F76: 3 | I76: =SUM(E76:H76) -> 4
A77: 052 | B77: SAN BARTOLO TUTOTEPEC | C77: 1028 | D77: 315 | E77: 1 | F77: 0 | I77: 1
A78: 052 | B78: SAN BARTOLO TUTOTEPEC | C78: 1029 | D78: 238 | E78: 1 | F78: 0 | I78: 1
A79: 052 | B79: SAN BARTOLO TUTOTEPEC | C79: 1030 | D79: 798 | E79: 1 | F79: 1 | I79: 2
A80: 052 | B80: SAN BARTOLO TUTOTEPEC | C80: 1031 | D80: 863 | E80: 1 | F80: 0 | G80: 1 | I80: 2
A81: 052 | B81: SAN BARTOLO TUTOTEPEC | C81: 1032 | D81: 657 | E81: 1 | F81: 0 | I81: 1
A82: 052 | B82: SAN BARTOLO TUTOTEPEC | C82: 1033 | D82: 136 | E82: 1 | F82: 0 | I82: 1
A83: 052 | B83: SAN BARTOLO TUTOTEPEC | C83: 1034 | D83: 796 | E83: 1 | F83: 0 | G83: 1 | I83: 2
A84: 052 | B84: SAN BARTOLO TUTOTEPEC | C84: 1035 | D84: 333 | E84: 1 | F84: 0 | I84: 1
A85: 052 | B85: SAN BARTOLO TUTOTEPEC | C85: 1036 | D85: 1007 | E85: 1 | F85: 1 | I85: 2
A86: 052 | B86: SAN BARTOLO TUTOTEPEC | C86: 1037 | D86: 621 | E86: 1 | F86: 0 | I86: 1
A87: 052 | B87: SAN BARTOLO TUTOTEPEC | C87: 1038 | D87: 282 | E87: 1 | F87: 0 | I87: 1
A88: 052 | B88: SAN BARTOLO TUTOTEPEC | C88: 1039 | D88: 1047 | E88: 1 | F88: 1 | I88: 2
A89: 052 | B89: SAN BARTOLO TUTOTEPEC | C89: 1040 | D89: 224 | E89: 1 | F89: 0 | I89: 1
A90: 052 | B90: SAN BARTOLO TUTOTEPEC | C90: 1041 | D90: 199 | E90: 1 | F90: 0 | G90: 1 | I90: 2
A91: 052 | B91: SAN BARTOLO TUTOTEPEC | C91: 1042 | D91: 228 | E91: 1 | F91: 0 | I91: 1
A92: SAN BARTOLO TUTOTEPEC | D92: =SUM(D75:D91) -> 11885 | E92: =SUM(E75:E91) -> 17 | F92: =SUM(F75:F91) -> 8 | G92: =SUM(G75:G91) -> 3 | H92: 0 | I92: 28
A94: 004 | B94: AGUA BLANCA DE ITURBIDE | C94: 69 | D94: 2064 | E94: 1 | F94: 2 | I94: =SUM(E94:H94) -> 3
A95: 004 | B95: AGUA BLANCA DE ITURBIDE | C95: 70 | D95: 163 | E95: 1 | F95: 0 | I95: =SUM(E95:H95) -> 1
A96: 004 | B96: AGUA BLANCA DE ITURBIDE | C96: 71 | D96: 139 | E96: 1 | F96: 0 | I96: 1
A97: 004 | B97: AGUA BLANCA DE ITURBIDE | C97: 72 | D97: 472 | E97: 1 | F97: 0 | G97: 1 | I97: 2
A98: 004 | B98: AGUA BLANCA DE ITURBIDE | C98: 73 | D98: 265 | E98: 1 | F98: 0 | I98: 1
A99: 004 | B99: AGUA BLANCA DE ITURBIDE | C99: 74 | D99: 356 | E99: 1 | F99: 0 | I99: 1
A100: 004 | B100: AGUA BLANCA DE ITURBIDE | C100: 75 | D100: 161 | E100: 1 | F100: 0 | I100: 1
A101: 004 | B101: AGUA BLANCA DE ITURBIDE | C101: 76 | D101: 122 | E101: 1 | F101: 0 | I101: 1
A102: 004 | B102: AGUA BLANCA DE ITURBIDE | C102: 77 | D102: 745 | E102: 1 | F102: 0 | I102: 1
A103: 004 | B103: AGUA BLANCA DE ITURBIDE | C103: 78 | D103: 873 | E103: 1 | F103: 1 | I103: 2
A104: 004 | B104: AGUA BLANCA DE ITURBIDE | C104: 79 | D104: 666 | E104: 1 | F104: 0 | I104: 1
A105: 004 | B105: AGUA BLANCA DE ITURBIDE | C105: 80 | D105: 494 | E105: 1 | F105: 0 | I105: 1
A106: AGUA BLANCA | D106: =SUM(D94:D105) -> 6520 | E106: =SUM(E94:E105) -> 12 | F106: =SUM(F94:F105) -> 3 | G106: =SUM(G94:G105) -> 1 | H106: 0 | I106: 16
A109: TOTAL DISITRITAL | D109: =SUM(D106,D92,D73,D55,D44,D21) -> 81869 | E109: =SUM(E106,E92,E73,E55,E44,E21) -> 89 | F109: =SUM(F106,F92,F73,F55,F44,F21) -> 61 | G109: =SUM(G106,G92,G73,G55,G44,G21) -> 11 | H109: 1 | I109: 162

Sheet 11
A1: PADRON Y LISTA NOMINAL
A2: CORTE: | B2: DEFINITIVO
A3: DISTRITO LOCAL XI APAN
A6: CLAVE | B6: NOMBRE | C6: Seccion | D6: L N | E6: Basicas | F6: Contiguas | G6: Extras | H6: Especiales | I6: TOTAL
A7: 008 | B7: APAN | C7: 127 | D7: 2325 | E7: 1 | F7: 3 | I7: =SUM(E7:H7) -> 4
A8: 008 | B8: APAN | C8: 128 | D8: 2868 | E8: 1 | F8: 3 | I8: =SUM(E8:H8) -> 4
A9: 008 | B9: APAN | C9: 129 | D9: 2700 | E9: 1 | F9: 3 | I9: 4
A10: 008 | B10: APAN | C10: 130 | D10: 1997 | E10: 1 | F10: 2 | I10: 3
A11: 008 | B11: APAN | C11: 131 | D11: 1006 | E11: 1 | F11: 1 | I11: 2
A12: 008 | B12: APAN | C12: 132 | D12: 881 | E12: 1 | F12: 1 | I12: 2
A13: 008 | B13: APAN | C13: 133 | D13: 963 | E13: 1 | F13: 1 | H13: 1 | I13: 3
A14: 008 | B14: APAN | C14: 134 | D14: 1902 | E14: 1 | F14: 2 | I14: 3
A15: 008 | B15: APAN | C15: 135 | D15: 1756 | E15: 1 | F15: 2 | I15: 3
A16: 008 | B16: APAN | C16: 136 | D16: 1508 | E16: 1 | F16: 2 | I16: 3
A17: 008 | B17: APAN | C17: 137 | D17: 1746 | E17: 1 | F17: 2 | I17: 3
A18: 008 | B18: APAN | C18: 138 | D18: 830 | E18: 1 | F18: 1 | I18: 2
A19: 008 | B19: APAN | C19: 139 | D19: 569 | E19: 1 | F19: 0 | I19: 1
A20: 008 | B20: APAN | C20: 140 | D20: 273 | E20: 1 | F20: 0 | I20: 1
A21: 008 | B21: APAN | C21: 141 | D21: 288 | E21: 1 | F21: 0 | I21: 1
A22: 008 | B22: APAN | C22: 142 | D22: 557 | E22: 1 | F22: 0 | I22: 1
A23: 008 | B23: APAN | C23: 143 | D23: 1830 | E23: 1 | F23: 2 | I23: 3
A24: 008 | B24: APAN | C24: 144 | D24: 599 | E24: 1 | F24: 0 | I24: 1
A25: 008 | B25: APAN | C25: 145 | D25: 788 | E25: 1 | F25: 1 | I25: 2
A26: 008 | B26: APAN | C26: 146 | D26: 1376 | E26: 1 | F26: 0 | G26: 2 | I26: 3
A27: 008 | B27: APAN | C27: 147 | D27: 1294 | E27: 1 | F27: 1 | I27: 2
A28: 008 | B28: APAN | C28: 148 | D28: 1119 | E28: 1 | F28: 1 | I28: 2
A29: 008 | B29: APAN | C29: 149 | D29: 292 | E29: 1 | F29: 0 | I29: 1
A30: 008 | B30: APAN | C30: 150 | D30: 543 | E30: 1 | F30: 0 | I30: 1
A31: 008 | B31: APAN | C31: 151 | D31: 695 | E31: 1 | F31: 0 | I31: 1
A32: APAN | D32: =SUM(D7:D31) -> 30705 | E32: =SUM(E7:E31) -> 25 | F32: =SUM(F7:F31) -> 28 | G32: =SUM(G7:G31) -> 2 | H32: 1 | I32: 56
A34: 021 | B34: EMILIANO ZAPATA | C34: 350 | D34: 915 | E34: 1 | F34: 1 | I34: =SUM(E34:H34) -> 2
A35: 021 | B35: EMILIANO ZAPATA | C35: 351 | D35: 1409 | E35: 1 | F35: 1 | I35: =SUM(E35:H35) -> 2
A36: 021 | B36: EMILIANO ZAPATA | C36: 352 | D36: 1532 | E36: 1 | F36: 2 | I36: 3
A37: 021 | B37: EMILIANO ZAPATA | C37: 353 | D37: 1390 | E37: 1 | F37: 1 | I37: 2
A38: 021 | B38: EMILIANO ZAPATA | C38: 354 | D38: 1414 | E38: 1 | F38: 1 | I38: 2
A39: 021 | B39: EMILIANO ZAPATA | C39: 355 | D39: 1272 | E39: 1 | F39: 1 | I39: 2
A40: 021 | B40: EMILIANO ZAPATA | C40: 356 | D40: 947 | E40: 1 | F40: 1 | I40: 2
A41: 021 | B41: EMILIANO ZAPATA | C41: 357 | D41: 1185 | E41: 1 | F41: 1 | I41: 2
A42: EMILIANO ZAPATA | D42: =SUM(D34:D41) -> 10064 | E42: =SUM(E34:E41) -> 8 | F42: =SUM(F34:F41) -> 9 | G42: =SUM(G34:G41) -> 0 | H42: 0 | I42: 17
A44: 007 | B44: ALMOLOYA | C44: 114 | D44: 2270 | E44: 1 | F44: 3 | I44: =SUM(E44:H44) -> 4
A45: 007 | B45: ALMOLOYA | C45: 115 | D45: 1327 | E45: 1 | F45: 1 | I45: =SUM(E45:H45) -> 2
A46: 007 | B46: ALMOLOYA | C46: 116 | D46: 197 | E46: 1 | F46: 0 | I46: 1
A47: 007 | B47: ALMOLOYA | C47: 117 | D47: 393 | E47: 1 | F47: 0 | I47: 1
A48: 007 | B48: ALMOLOYA | C48: 118 | D48: 281 | E48: 1 | F48: 0 | I48: 1
A49: 007 | B49: ALMOLOYA | C49: 119 | D49: 419 | E49: 1 | F49: 0 | I49: 1
A50: 007 | B50: ALMOLOYA | C50: 120 | D50: 165 | E50: 1 | F50: 0 | I50: 1
A51: 007 | B51: ALMOLOYA | C51: 121 | D51: 792 | E51: 1 | F51: 1 | I51: 2
A52: 007 | B52: ALMOLOYA | C52: 122 | D52: 664 | E52: 1 | F52: 0 | I52: 1
A53: 007 | B53: ALMOLOYA | C53: 123 | D53: 343 | E53: 1 | F53: 0 | I53: 1
A54: 007 | B54: ALMOLOYA | C54: 124 | D54: 323 | E54: 1 | F54: 0 | I54: 1
A55: 007 | B55: ALMOLOYA | C55: 125 | D55: 380 | E55: 1 | F55: 0 | I55: 1
A56: 007 | B56: ALMOLOYA | C56: 126 | D56: 642 | E56: 1 | F56: 0 | I56: 1
A57: ALMOLOYA | D57: =SUM(D44:D56) -> 8196 | E57: =SUM(E44:E56) -> 13 | F57: =SUM(F44:F56) -> 5 | G57: =SUM(G44:G56) -> 0 | H57: 0 | I57: 18
A59: 061 | B59: TEPEAPULCO | C59: 1191 | D59: 1966 | E59: 1 | F59: 2 | I59: =SUM(E59:H59) -> 3
A60: 061 | B60: TEPEAPULCO | C60: 1192 | D60: 1710 | E60: 1 | F60: 2 | I60: =SUM(E60:H60) -> 3
A61: 061 | B61: TEPEAPULCO | C61: 1193 | D61: 1444 | E61: 1 | F61: 1 | I61: 2
A62: 061 | B62: TEPEAPULCO | C62: 1194 | D62: 666 | E62: 1 | F62: 0 | I62: 1
A63: 061 | B63: TEPEAPULCO | C63: 1195 | D63: 927 | E63: 1 | F63: 1 | I63: 2
A64: 061 | B64: TEPEAPULCO | C64: 1196 | D64: 1217 | E64: 1 | F64: 1 | I64: 2
A65: 061 | B65: TEPEAPULCO | C65: 1197 | D65: 1976 | E65: 1 | F65: 2 | I65: 3
A66: 061 | B66: TEPEAPULCO | C66: 1198 | D66: 809 | E66: 1 | F66: 1 | I66: 2
A67: 061 | B67: TEPEAPULCO | C67: 1199 | D67: 1549 | E67: 1 | F67: 2 | I67: 3
A68: 061 | B68: TEPEAPULCO | C68: 1200 | D68: 285 | E68: 1 | F68: 0 | I68: 1
A69: 061 | B69: TEPEAPULCO | C69: 1201 | D69: 505 | E69: 1 | F69: 0 | I69: 1
A70: 061 | B70: TEPEAPULCO | C70: 1202 | D70: 585 | E70: 1 | F70: 0 | I70: 1
A71: 061 | B71: TEPEAPULCO | C71: 1203 | D71: 112 | E71: 1 | F71: 0 | I71: 1
A72: 061 | B72: TEPEAPULCO | C72: 1204 | D72: 483 | E72: 1 | F72: 0 | I72: 1
A73: 061 | B73: TEPEAPULCO | C73: 1205 | D73: 879 | E73: 1 | F73: 1 | I73: 2
A74: 061 | B74: TEPEAPULCO | C74: 1206 | D74: 628 | E74: 1 | F74: 0 | I74: 1
A75: 061 | B75: TEPEAPULCO | C75: 1207 | D75: 621 | E75: 1 | F75: 0 | I75: 1
A76: 061 | B76: TEPEAPULCO | C76: 1208 | D76: 1079 | E76: 1 | F76: 1 | I76: 2
A77: 061 | B77: TEPEAPULCO | C77: 1209 | D77: 1344 | E77: 1 | F77: 1 | I77: 2
A78: 061 | B78: TEPEAPULCO | C78: 1210 | D78: 1132 | E78: 1 | F78: 1 | I78: 2
A79: 061 | B79: TEPEAPULCO | C79: 1211 | D79: 777 | E79: 1 | F79: 1 | I79: 2
A80: 061 | B80: TEPEAPULCO | C80: 1212 | D80: 1332 | E80: 1 | F80: 1 | I80: 2
A81: 061 | B81: TEPEAPULCO | C81: 1213 | D81: 1063 | E81: 1 | F81: 1 | I81: 2
A82: 061 | B82: TEPEAPULCO | C82: 1214 | D82: 1082 | E82: 1 | F82: 1 | I82: 2
A83: 061 | B83: TEPEAPULCO | C83: 1215 | D83: 1360 | E83: 1 | F83: 1 | I83: 2
A84: 061 | B84: TEPEAPULCO | C84: 1216 | D84: 785 | E84: 1 | F84: 1 | I84: 2
A85: 061 | B85: TEPEAPULCO | C85: 1217 | D85: 1085 | E85: 1 | F85: 1 | I85: 2
A86: 061 | B86: TEPEAPULCO | C86: 1218 | D86: 934 | E86: 1 | F86: 1 | I86: 2
A87: 061 | B87: TEPEAPULCO | C87: 1219 | D87: 929 | E87: 1 | F87: 1 | I87: 2
A88: 061 | B88: TEPEAPULCO | C88: 1220 | D88: 1359 | E88: 1 | F88: 1 | I88: 2
A89: 061 | B89: TEPEAPULCO | C89: 1221 | D89: 1093 | E89: 1 | F89: 1 | I89: 2
A90: 061 | B90: TEPEAPULCO | C90: 1222 | D90: 1517 | E90: 1 | F90: 2 | I90: 3
A91: 061 | B91: TEPEAPULCO | C91: 1223 | D91: 962 | E91: 1 | F91: 1 | I91: 2
A92: 061 | B92: TEPEAPULCO | C92: 1224 | D92: 2977 | E92: 1 | F92: 3 | I92: 4
A93: 061 | B93: TEPEAPULCO | C93: 1225 | D93: 871 | E93: 1 | F93: 1 | I93: 2
A94: 061 | B94: TEPEAPULCO | C94: 1226 | D94: 855 | E94: 1 | F94: 1 | I94: 2
A95: 061 | B95: TEPEAPULCO | C95: 1227 | D95: 721 | E95: 1 | F95: 0 | I95: 1
A96: 061 | B96: TEPEAPULCO | C96: 1228 | D96: 1371 | E96: 1 | F96: 1 | I96: 2
A97: TEPEAPULCO | D97: =SUM(D59:D96) -> 40990 | E97: =SUM(E59:E96) -> 38 | F97: =SUM(F59:F96) -> 36 | G97: =SUM(G59:G96) -> 0 | H97: 0 | I97: 74
A100: 071 | B100: TLANALAPA | C100: 1395 | D100: 1245 | E100: 1 | F100: 1 | I100: =SUM(E100:H100) -> 2
A101: 071 | B101: TLANALAPA | C101: 1396 | D101: 1116 | E101: 1 | F101: 1 | I101: =SUM(E101:H101) -> 2
A102: 071 | B102: TLANALAPA | C102: 1397 | D102: 1091 | E102: 1 | F102: 1 | I102: 2
A103: 071 | B103: TLANALAPA | C103: 1398 | D103: 1393 | E103: 1 | F103: 1 | I103: 2
A104: 071 | B104: TLANALAPA | C104: 1399 | D104: 1433 | E104: 1 | F104: 1 | I104: 2
A105: 071 | B105: TLANALAPA | C105: 1400 | D105: 355 | E105: 1 | F105: 0 | I105: 1
A106: 071 | B106: TLANALAPA | C106: 1401 | D106: 601 | E106: 1 | F106: 0 | I106: 1
A107: 071 | B107: TLANALAPA | C107: 1402 | D107: 882 | E107: 1 | F107: 1 | I107: 2
A108: TLANALAPA | D108: =SUM(D100:D107) -> 8116 | E108: =SUM(E100:E107) -> 8 | F108: =SUM(F100:F107) -> 6 | G108: =SUM(G100:G107) -> 0 | H108: 0 | I108: 14
A111: TOTAL DISITRITAL | D111: =SUM(D108,D97,D57,D42,D32) -> 98071 | E111: =SUM(E108,E97,E57,E42,E32) -> 92 | F111: =SUM(F108,F97,F57,F42,F32) -> 84 | G111: =SUM(G108,G97,G57,G42,G32) -> 2 | H111: 1 | I111: 179

Sheet 12
A1: PADRON Y LISTA NOMINAL
A2: CORTE: | B2: DEFINITIVO
A3: DISTRITO LOCAL XII TIZAYUCA
A6: CLAVE | B6: NOMBRE | C6: Seccion | D6: L N | E6: Basicas | F6: Contiguas | G6: Extras | H6: Especiales | I6: TOTAL
A7: 068 | B7: TIZAYUCA | C7: 1349 | D7: 13519 | E7: 1 | F7: 6 | G7: 12 | I7: =SUM(E7:H7) -> 19
A8: 068 | B8: TIZAYUCA | C8: 1350 | D8: 2183 | E8: 1 | F8: 2 | I8: =SUM(E8:H8) -> 3
A9: 068 | B9: TIZAYUCA | C9: 1351 | D9: 1848 | E9: 1 | F9: 2 | I9: 3
A10: 068 | B10: TIZAYUCA | C10: 1352 | D10: 3068 | E10: 1 | F10: 4 | I10: 5
A11: 068 | B11: TIZAYUCA | C11: 1353 | D11: 2420 | E11: 1 | F11: 3 | I11: 4
A12: 068 | B12: TIZAYUCA | C12: 1354 | D12: 1272 | E12: 1 | F12: 1 | H12: 1 | I12: 3
A13: 068 | B13: TIZAYUCA | C13: 1355 | D13: 1713 | E13: 1 | F13: 2 | I13: 3
A14: 068 | B14: TIZAYUCA | C14: 1356 | D14: 1480 | E14: 1 | F14: 1 | I14: 2
A15: 068 | B15: TIZAYUCA | C15: 1357 | D15: 2045 | E15: 1 | F15: 2 | I15: 3
A16: 068 | B16: TIZAYUCA | C16: 1358 | D16: 3658 | E16: 1 | F16: 4 | I16: 5
A17: 068 | B17: TIZAYUCA | C17: 1359 | D17: 1044 | E17: 1 | F17: 1 | I17: 2
A18: 068 | B18: TIZAYUCA | C18: 1360 | D18: 1354 | E18: 1 | F18: 1 | I18: 2
A19: 068 | B19: TIZAYUCA | C19: 1361 | D19: 985 | E19: 1 | F19: 1 | I19: 2
A20: 068 | B20: TIZAYUCA | C20: 1362 | D20: 5020 | E20: 1 | F20: 6 | I20: 7
A21: 068 | B21: TIZAYUCA | C21: 1363 | D21: 9206 | E21: 1 | F21: 0 | G21: 12 | I21: 13
A22: 068 | B22: TIZAYUCA | C22: 1364 | D22: 3754 | E22: 1 | F22: 1 | G22: 4 | I22: 6
A23: 068 | B23: TIZAYUCA | C23: 1365 | D23: 1667 | E23: 1 | F23: 2 | I23: 3
A24: 068 | B24: TIZAYUCA | C24: 1366 | D24: 1947 | E24: 1 | F24: 2 | I24: 3
A25: 068 | B25: TIZAYUCA | C25: 1367 | D25: 3681 | E25: 1 | F25: 4 | I25: 5
A26: 068 | B26: TIZAYUCA | C26: 1368 | D26: 5102 | E26: 1 | F26: 2 | G26: 4 | I26: 7
A27: TIZAYUCA | D27: =SUM(D7:D26) -> 66966 | E27: =SUM(E7:E26) -> 20 | F27: =SUM(F7:F26) -> 47 | G27: =SUM(G7:G26) -> 32 | H27: 1 | I27: 100
A29: 082 | B29: ZAPOTLAN DE JUAREZ | C29: 1619 | D29: 1980 | E29: 1 | F29: 2 | I29: =SUM(E29:H29) -> 3
A30: 082 | B30: ZAPOTLAN DE JUAREZ | C30: 1620 | D30: 1846 | E30: 1 | F30: 2 | I30: =SUM(E30:H30) -> 3
A31: 082 | B31: ZAPOTLAN DE JUAREZ | C31: 1621 | D31: 2272 | E31: 1 | F31: 3 | I31: 4
A32: 082 | B32: ZAPOTLAN DE JUAREZ | C32: 1622 | D32: 1501 | E32: 1 | F32: 2 | I32: 3
A33: 082 | B33: ZAPOTLAN DE JUAREZ | C33: 1623 | D33: 1268 | E33: 1 | F33: 1 | I33: 2
A34: 082 | B34: ZAPOTLAN DE JUAREZ | C34: 1624 | D34: 983 | E34: 1 | F34: 1 | I34: 2
A35: 082 | B35: ZAPOTLAN DE JUAREZ | C35: 1625 | D35: 2103 | E35: 1 | F35: 2 | I35: 3
A36: 082 | B36: ZAPOTLAN DE JUAREZ | C36: 1626 | D36: 1106 | E36: 1 | F36: 1 | I36: 2
A37: ZAPOTLAN DE JUAREZ | D37: =SUM(D29:D36) -> 13059 | E37: =SUM(E29:E36) -> 8 | F37: =SUM(F29:F36) -> 14 | G37: =SUM(G29:G36) -> 0 | H37: 0 | I37: 22
A39: 074 | B39: TOLCAYUCA | C39: 1441 | D39: 1222 | E39: 1 | F39: 1 | I39: =SUM(E39:H39) -> 2
A40: 074 | B40: TOLCAYUCA | C40: 1442 | D40: 1538 | E40: 1 | F40: 2 | I40: =SUM(E40:H40) -> 3
A41: 074 | B41: TOLCAYUCA | C41: 1443 | D41: 723 | E41: 1 | F41: 0 | I41: 1
A42: 074 | B42: TOLCAYUCA | C42: 1444 | D42: 1579 | E42: 1 | F42: 2 | I42: 3
A43: 074 | B43: TOLCAYUCA | C43: 1445 | D43: 926 | E43: 1 | F43: 1 | I43: 2
A44: 074 | B44: TOLCAYUCA | C44: 1446 | D44: 797 | E44: 1 | F44: 1 | I44: 2
A45: 074 | B45: TOLCAYUCA | C45: 1447 | D45: 2557 | E45: 1 | F45: 3 | I45: 4
A46: 074 | B46: TOLCAYUCA | C46: 1448 | D46: 353 | E46: 1 | F46: 0 | I46: 1
A47: TOLCAYUCA | D47: =SUM(D39:D46) -> 9695 | E47: =SUM(E39:E46) -> 8 | F47: =SUM(F39:F46) -> 10 | G47: =SUM(G39:G46) -> 0 | H47: 0 | I47: 18
A49: 077 | B49: VILLA DE TEZONTEPEC | C49: 1556 | D49: 1577 | E49: 1 | F49: 2 | I49: =SUM(E49:H49) -> 3
A50: 077 | B50: VILLA DE TEZONTEPEC | C50: 1557 | D50: 1298 | E50: 1 | F50: 1 | I50: =SUM(E50:H50) -> 2
A51: 077 | B51: VILLA DE TEZONTEPEC | C51: 1558 | D51: 1032 | E51: 1 | F51: 1 | I51: 2
A52: 077 | B52: VILLA DE TEZONTEPEC | C52: 1559 | D52: 1097 | E52: 1 | F52: 1 | I52: 2
A53: 077 | B53: VILLA DE TEZONTEPEC | C53: 1560 | D53: 965 | E53: 1 | F53: 1 | I53: 2
A54: 077 | B54: VILLA DE TEZONTEPEC | C54: 1561 | D54: 1706 | E54: 1 | F54: 2 | I54: 3
A55: 077 | B55: VILLA DE TEZONTEPEC | C55: 1562 | D55: 289 | E55: 1 | F55: 0 | I55: 1
A56: VILLA DE TEZONTEPEC | D56: =SUM(D49:D55) -> 7964 | E56: =SUM(E49:E55) -> 7 | F56: =SUM(F49:F55) -> 8 | G56: =SUM(G49:G55) -> 0 | H56: 0 | I56: 15
A58: 083 | B58: ZEMPOALA | C58: 1627 | D58: 1431 | E58: 1 | F58: 1 | I58: =SUM(E58:H58) -> 2
A59: 083 | B59: ZEMPOALA | C59: 1628 | D59: 1685 | E59: 1 | F59: 2 | I59: =SUM(E59:H59) -> 3
A60: 083 | B60: ZEMPOALA | C60: 1629 | D60: 1941 | E60: 1 | F60: 2 | I60: 3
A61: 083 | B61: ZEMPOALA | C61: 1630 | D61: 5011 | E61: 1 | F61: 6 | I61: 7
A62: 083 | B62: ZEMPOALA | C62: 1631 | D62: 2599 | E62: 1 | F62: 3 | I62: 4
A63: 083 | B63: ZEMPOALA | C63: 1632 | D63: 1611 | E63: 1 | F63: 2 | I63: 3
A64: 083 | B64: ZEMPOALA | C64: 1633 | D64: 1768 | E64: 1 | F64: 1 | G64: 1 | I64: 3
A65: 083 | B65: ZEMPOALA | C65: 1634 | D65: 744 | E65: 1 | F65: 0 | I65: 1
A66: 083 | B66: ZEMPOALA | C66: 1635 | D66: 1121 | E66: 1 | F66: 1 | I66: 2
A67: 083 | B67: ZEMPOALA | C67: 1636 | D67: 628 | E67: 1 | F67: 0 | I67: 1
A68: 083 | B68: ZEMPOALA | C68: 1637 | D68: 2243 | E68: 1 | F68: 2 | I68: 3
A69: 083 | B69: ZEMPOALA | C69: 1638 | D69: 1304 | E69: 1 | F69: 1 | I69: 2
A70: 083 | B70: ZEMPOALA | C70: 1639 | D70: 842 | E70: 1 | F70: 1 | I70: 2
A71: 083 | B71: ZEMPOALA | C71: 1640 | D71: 297 | E71: 1 | F71: 0 | I71: 1
A72: 083 | B72: ZEMPOALA | C72: 1641 | D72: 940 | E72: 1 | F72: 1 | I72: 2
A73: 083 | B73: ZEMPOALA | C73: 1642 | D73: 1481 | E73: 1 | F73: 1 | I73: 2
A74: 083 | B74: ZEMPOALA | C74: 1643 | D74: 580 | E74: 1 | F74: 0 | I74: 1
A75: ZEMPOALA | D75: =SUM(D58:D74) -> 26226 | E75: =SUM(E58:E74) -> 17 | F75: =SUM(F58:F74) -> 24 | G75: =SUM(G58:G74) -> 1 | H75: 0 | I75: 42
A78: TOTAL DISITRITAL | D78: =SUM(D75,D56,D47,D37,D27) -> 123910 | E78: =SUM(E75,E56,E47,E37,E27) -> 60 | F78: =SUM(F75,F56,F47,F37,F27) -> 103 | G78: =SUM(G75,G56,G47,G37,G27) -> 33 | H78: 1 | I78: 197

Sheet 13
A1: PADRON Y LISTA NOMINAL
A2: CORTE: | B2: DEFINITIVO
A3: DISTRITO LOCAL XIII HUEJUTLA
A6: CLAVE | B6: NOMBRE | C6: Seccion | D6: L N | E6: Basicas | F6: Contiguas | G6: Extras | H6: Especiales | I6: TOTAL
A7: 028 | B7: HUEJUTLA DE REYES | C7: 457 | D7: 3767 | E7: 1 | F7: 3 | G7: 2 | I7: =SUM(E7:H7) -> 6
A8: 028 | B8: HUEJUTLA DE REYES | C8: 458 | D8: 1218 | E8: 1 | F8: 1 | I8: =SUM(E8:H8) -> 2
A9: 028 | B9: HUEJUTLA DE REYES | C9: 459 | D9: 2728 | E9: 1 | F9: 3 | I9: 4
A10: 028 | B10: HUEJUTLA DE REYES | C10: 460 | D10: 4947 | E10: 1 | F10: 3 | G10: 3 | I10: 7
A11: 028 | B11: HUEJUTLA DE REYES | C11: 461 | D11: 1800 | E11: 1 | F11: 2 | H11: 1 | I11: 4
A12: 028 | B12: HUEJUTLA DE REYES | C12: 462 | D12: 1167 | E12: 1 | F12: 1 | I12: 2
A13: 028 | B13: HUEJUTLA DE REYES | C13: 463 | D13: 1481 | E13: 1 | F13: 1 | I13: 2
A14: 028 | B14: HUEJUTLA DE REYES | C14: 464 | D14: 2651 | E14: 1 | F14: 3 | I14: 4
A15: 028 | B15: HUEJUTLA DE REYES | C15: 465 | D15: 692 | E15: 1 | F15: 0 | I15: 1
A16: 028 | B16: HUEJUTLA DE REYES | C16: 466 | D16: 978 | E16: 1 | F16: 1 | I16: 2
A17: 028 | B17: HUEJUTLA DE REYES | C17: 467 | D17: 3196 | E17: 1 | F17: 4 | I17: 5
A18: 028 | B18: HUEJUTLA DE REYES | C18: 468 | D18: 2286 | E18: 1 | F18: 3 | I18: 4
A19: 028 | B19: HUEJUTLA DE REYES | C19: 469 | D19: 1778 | E19: 1 | F19: 2 | I19: 3
A20: 028 | B20: HUEJUTLA DE REYES | C20: 470 | D20: 3745 | E20: 1 | F20: 4 | I20: 5
A21: 028 | B21: HUEJUTLA DE REYES | C21: 471 | D21: 1674 | E21: 1 | F21: 0 | G21: 2 | I21: 3
A22: 028 | B22: HUEJUTLA DE REYES | C22: 472 | D22: 725 | E22: 1 | F22: 0 | G22: 1 | I22: 2
A23: 028 | B23: HUEJUTLA DE REYES | C23: 473 | D23: 1980 | E23: 1 | F23: 2 | I23: 3
A24: 028 | B24: HUEJUTLA DE REYES | C24: 474 | D24: 839 | E24: 1 | F24: 1 | I24: 2
A25: 028 | B25: HUEJUTLA DE REYES | C25: 475 | D25: 590 | E25: 1 | F25: 0 | I25: 1
A26: 028 | B26: HUEJUTLA DE REYES | C26: 476 | D26: 1378 | E26: 1 | F26: 1 | I26: 2
A27: 028 | B27: HUEJUTLA DE REYES | C27: 477 | D27: 923 | E27: 1 | F27: 1 | I27: 2
A28: 028 | B28: HUEJUTLA DE REYES | C28: 478 | D28: 937 | E28: 1 | F28: 1 | I28: 2
A29: 028 | B29: HUEJUTLA DE REYES | C29: 479 | D29: 1089 | E29: 1 | F29: 1 | I29: 2
A30: 028 | B30: HUEJUTLA DE REYES | C30: 480 | D30: 1375 | E30: 1 | F30: 1 | I30: 2
A31: 028 | B31: HUEJUTLA DE REYES | C31: 481 | D31: 899 | E31: 1 | F31: 0 | G31: 1 | I31: 2
A32: 028 | B32: HUEJUTLA DE REYES | C32: 482 | D32: 2395 | E32: 1 | F32: 3 | I32: 4
A33: 028 | B33: HUEJUTLA DE REYES | C33: 483 | D33: 1604 | E33: 1 | F33: 2 | I33: 3
A34: 028 | B34: HUEJUTLA DE REYES | C34: 484 | D34: 1586 | E34: 1 | F34: 2 | I34: 3
A35: 028 | B35: HUEJUTLA DE REYES | C35: 485 | D35: 1066 | E35: 1 | F35: 1 | I35: 2
A36: 028 | B36: HUEJUTLA DE REYES | C36: 486 | D36: 1893 | E36: 1 | F36: 2 | I36: 3
A37: 028 | B37: HUEJUTLA DE REYES | C37: 487 | D37: 1654 | E37: 1 | F37: 1 | G37: 1 | I37: 3
A38: 028 | B38: HUEJUTLA DE REYES | C38: 488 | D38: 1115 | E38: 1 | F38: 1 | I38: 2
A39: 028 | B39: HUEJUTLA DE REYES | C39: 489 | D39: 898 | E39: 1 | F39: 1 | I39: 2
A40: 028 | B40: HUEJUTLA DE REYES | C40: 490 | D40: 1272 | E40: 1 | F40: 1 | I40: 2
A41: 028 | B41: HUEJUTLA DE REYES | C41: 491 | D41: 1310 | E41: 1 | F41: 1 | I41: 2
A42: 028 | B42: HUEJUTLA DE REYES | C42: 492 | D42: 784 | E42: 1 | F42: 1 | I42: 2
A43: 028 | B43: HUEJUTLA DE REYES | C43: 493 | D43: 700 | E43: 1 | F43: 0 | I43: 1
A44: 028 | B44: HUEJUTLA DE REYES | C44: 494 | D44: 1019 | E44: 1 | F44: 0 | G44: 1 | I44: 2
A45: 028 | B45: HUEJUTLA DE REYES | C45: 495 | D45: 2479 | E45: 1 | F45: 3 | I45: 4
A46: 028 | B46: HUEJUTLA DE REYES | C46: 496 | D46: 279 | E46: 1 | F46: 0 | I46: 1
A47: 028 | B47: HUEJUTLA DE REYES | C47: 497 | D47: 788 | E47: 1 | F47: 1 | I47: 2
A48: 028 | B48: HUEJUTLA DE REYES | C48: 498 | D48: 84 | E48: 1 | F48: 0 | I48: 1
A49: 028 | B49: HUEJUTLA DE REYES | C49: 499 | D49: 1739 | E49: 1 | F49: 2 | I49: 3
A50: 028 | B50: HUEJUTLA DE REYES | C50: 500 | D50: 1622 | E50: 1 | F50: 2 | I50: 3
A51: 028 | B51: HUEJUTLA DE REYES | C51: 501 | D51: 1267 | E51: 1 | F51: 1 | I51: 2
A52: 028 | B52: HUEJUTLA DE REYES | C52: 502 | D52: 2333 | E52: 1 | F52: 3 | I52: 4
A53: 028 | B53: HUEJUTLA DE REYES | C53: 503 | D53: 949 | E53: 1 | F53: 0 | G53: 1 | I53: 2
A54: 028 | B54: HUEJUTLA DE REYES | C54: 504 | D54: 1950 | E54: 1 | F54: 2 | I54: 3
A55: 028 | B55: HUEJUTLA DE REYES | C55: 505 | D55: 1350 | E55: 1 | F55: 1 | I55: 2
A56: 028 | B56: HUEJUTLA DE REYES | C56: 506 | D56: 787 | E56: 1 | F56: 1 | I56: 2
A57: 028 | B57: HUEJUTLA DE REYES | C57: 507 | D57: 1348 | E57: 1 | F57: 1 | I57: 2
A58: 028 | B58: HUEJUTLA DE REYES | C58: 508 | D58: 2162 | E58: 1 | F58: 2 | I58: 3
A59: 028 | B59: HUEJUTLA DE REYES | C59: 509 | D59: 640 | E59: 1 | F59: 0 | I59: 1
A60: HUEJUTLA DE REYES | D60: =SUM(D7:D59) -> 81916 | E60: =SUM(E7:E59) -> 53 | F60: =SUM(F7:F59) -> 74 | G60: =SUM(G7:G59) -> 12 | H60: 1 | I60: 140
A62: 025 | B62: HUAUTLA | C62: 405 | D62: 1592 | E62: 1 | F62: 2 | I62: =SUM(E62:H62) -> 3
A63: 025 | B63: HUAUTLA | C63: 406 | D63: 1247 | E63: 1 | F63: 1 | I63: =SUM(E63:H63) -> 2
A64: 025 | B64: HUAUTLA | C64: 407 | D64: 327 | E64: 1 | F64: 0 | I64: 1
A65: 025 | B65: HUAUTLA | C65: 408 | D65: 383 | E65: 1 | F65: 0 | I65: 1
A66: 025 | B66: HUAUTLA | C66: 409 | D66: 548 | E66: 1 | F66: 0 | I66: 1
A67: 025 | B67: HUAUTLA | C67: 410 | D67: 300 | E67: 1 | F67: 0 | I67: 1
A68: 025 | B68: HUAUTLA | C68: 411 | D68: 511 | E68: 1 | F68: 0 | I68: 1
A69: 025 | B69: HUAUTLA | C69: 412 | D69: 348 | E69: 1 | F69: 0 | I69: 1
A70: 025 | B70: HUAUTLA | C70: 413 | D70: 607 | E70: 1 | F70: 0 | I70: 1
A71: 025 | B71: HUAUTLA | C71: 414 | D71: 466 | E71: 1 | F71: 0 | I71: 1
A72: 025 | B72: HUAUTLA | C72: 415 | D72: 559 | E72: 1 | F72: 0 | I72: 1
A73: 025 | B73: HUAUTLA | C73: 416 | D73: 366 | E73: 1 | F73: 0 | I73: 1
A74: 025 | B74: HUAUTLA | C74: 417 | D74: 1254 | E74: 1 | F74: 1 | I74: 2
A75: 025 | B75: HUAUTLA | C75: 418 | D75: 434 | E75: 1 | F75: 0 | I75: 1
A76: 025 | B76: HUAUTLA | C76: 419 | D76: 1322 | E76: 1 | F76: 1 | I76: 2
A77: 025 | B77: HUAUTLA | C77: 420 | D77: 365 | E77: 1 | F77: 0 | I77: 1
A78: 025 | B78: HUAUTLA | C78: 421 | D78: 207 | E78: 1 | F78: 0 | I78: 1
A79: 025 | B79: HUAUTLA | C79: 422 | D79: 928 | E79: 1 | F79: 1 | I79: 2
A80: 025 | B80: HUAUTLA | C80: 423 | D80: 157 | E80: 1 | F80: 0 | I80: 1
A81: 025 | B81: HUAUTLA | C81: 424 | D81: 473 | E81: 1 | F81: 0 | I81: 1
A82: 025 | B82: HUAUTLA | C82: 425 | D82: 571 | E82: 1 | F82: 0 | I82: 1
A83: 025 | B83: HUAUTLA | C83: 426 | D83: 445 | E83: 1 | F83: 0 | I83: 1
A84: 025 | B84: HUAUTLA | C84: 427 | D84: 278 | E84: 1 | F84: 0 | I84: 1
A85: 025 | B85: HUAUTLA | C85: 428 | D85: 629 | E85: 1 | F85: 0 | I85: 1
A86: 025 | B86: HUAUTLA | C86: 429 | D86: 912 | E86: 1 | F86: 1 | I86: 2
A87: 025 | B87: HUAUTLA | C87: 430 | D87: 507 | E87: 1 | F87: 0 | I87: 1
A88: HUAUTLA | D88: =SUM(D62:D87) -> 15736 | E88: =SUM(E62:E87) -> 26 | F88: =SUM(F62:F87) -> 7 | G88: =SUM(G62:G87) -> 0 | H88: 0 | I88: 33
A90: 080 | B90: YAHUALICA | C90: 1585 | D90: 2008 | E90: 1 | F90: 2 | I90: =SUM(E90:H90) -> 3
A91: 080 | B91: YAHUALICA | C91: 1586 | D91: 1728 | E91: 1 | F91: 2 | I91: =SUM(E91:H91) -> 3
A92: 080 | B92: YAHUALICA | C92: 1587 | D92: 1639 | E92: 1 | F92: 2 | I92: 3
A93: 080 | B93: YAHUALICA | C93: 1588 | D93: 990 | E93: 1 | F93: 0 | G93: 1 | I93: 2
A94: 080 | B94: YAHUALICA | C94: 1589 | D94: 459 | E94: 1 | F94: 0 | I94: 1
A95: 080 | B95: YAHUALICA | C95: 1590 | D95: 823 | E95: 1 | F95: 1 | I95: 2
A96: 080 | B96: YAHUALICA | C96: 1591 | D96: 337 | E96: 1 | F96: 0 | I96: 1
A97: 080 | B97: YAHUALICA | C97: 1592 | D97: 690 | E97: 1 | F97: 0 | I97: 1
A98: 080 | B98: YAHUALICA | C98: 1593 | D98: 1190 | E98: 1 | F98: 1 | I98: 2
A99: 080 | B99: YAHUALICA | C99: 1594 | D99: 318 | E99: 1 | F99: 0 | I99: 1
A100: 080 | B100: YAHUALICA | C100: 1595 | D100: 332 | E100: 1 | F100: 0 | I100: 1
A101: 080 | B101: YAHUALICA | C101: 1596 | D101: 321 | E101: 1 | F101: 0 | I101: 1
A102: 080 | B102: YAHUALICA | C102: 1597 | D102: 343 | E102: 1 | F102: 0 | I102: 1
A103: 080 | B103: YAHUALICA | C103: 1598 | D103: 2760 | E103: 1 | F103: 2 | G103: 1 | I103: 4
A104: 080 | B104: YAHUALICA | C104: 1599 | D104: 1063 | E104: 1 | F104: 0 | G104: 1 | I104: 2
A105: YAHUALICA | D105: =SUM(D90:D104) -> 15001 | E105: =SUM(E90:E104) -> 15 | F105: =SUM(F90:F104) -> 10 | G105: =SUM(G90:G104) -> 3 | H105: 0 | I105: 28
A107: 010 | B107: ATLAPEXCO | C107: 162 | D107: 2027 | E107: 1 | F107: 2 | I107: =SUM(E107:H107) -> 3
A108: 010 | B108: ATLAPEXCO | C108: 163 | D108: 946 | E108: 1 | F108: 1 | I108: =SUM(E108:H108) -> 2
A109: 010 | B109: ATLAPEXCO | C109: 164 | D109: 345 | E109: 1 | F109: 0 | I109: 1
A110: 010 | B110: ATLAPEXCO | C110: 165 | D110: 1170 | E110: 1 | F110: 1 | I110: 2
A111: 010 | B111: ATLAPEXCO | C111: 166 | D111: 892 | E111: 1 | F111: 1 | I111: 2
A112: 010 | B112: ATLAPEXCO | C112: 167 | D112: 449 | E112: 1 | F112: 0 | I112: 1
A113: 010 | B113: ATLAPEXCO | C113: 168 | D113: 489 | E113: 1 | F113: 0 | I113: 1
A114: 010 | B114: ATLAPEXCO | C114: 169 | D114: 1078 | E114: 1 | F114: 1 | I114: 2
A115: 010 | B115: ATLAPEXCO | C115: 170 | D115: 803 | E115: 1 | F115: 1 | I115: 2
A116: 010 | B116: ATLAPEXCO | C116: 171 | D116: 1322 | E116: 1 | F116: 1 | I116: 2
A117: 010 | B117: ATLAPEXCO | C117: 172 | D117: 415 | E117: 1 | F117: 0 | I117: 1
A118: 010 | B118: ATLAPEXCO | C118: 173 | D118: 437 | E118: 1 | F118: 0 | I118: 1
A119: 010 | B119: ATLAPEXCO | C119: 174 | D119: 589 | E119: 1 | F119: 0 | I119: 1
A120: 010 | B120: ATLAPEXCO | C120: 175 | D120: 638 | E120: 1 | F120: 0 | I120: 1
A121: 010 | B121: ATLAPEXCO | C121: 176 | D121: 959 | E121: 1 | F121: 1 | I121: 2
A122: 010 | B122: ATLAPEXCO | C122: 177 | D122: 900 | E122: 1 | F122: 1 | I122: 2
A123: ATLAPEXCO | D123: =SUM(D107:D122) -> 13459 | E123: =SUM(E107:E122) -> 16 | F123: =SUM(F107:F122) -> 10 | G123: =SUM(G107:G122) -> 0 | H123: 0 | I123: 26
A125: 078 | B125: XOCHIATIPAN | C125: 1563 | D125: 1881 | E125: 1 | F125: 2 | I125: =SUM(E125:H125) -> 3
A126: 078 | B126: XOCHIATIPAN | C126: 1564 | D126: 617 | E126: 1 | F126: 0 | I126: =SUM(E126:H126) -> 1
A127: 078 | B127: XOCHIATIPAN | C127: 1565 | D127: 617 | E127: 1 | F127: 0 | I127: 1
A128: 078 | B128: XOCHIATIPAN | C128: 1566 | D128: 410 | E128: 1 | F128: 0 | I128: 1
A129: 078 | B129: XOCHIATIPAN | C129: 1567 | D129: 1445 | E129: 1 | F129: 1 | I129: 2
A130: 078 | B130: XOCHIATIPAN | C130: 1568 | D130: 1360 | E130: 1 | F130: 1 | I130: 2
A131: 078 | B131: XOCHIATIPAN | C131: 1569 | D131: 716 | E131: 1 | F131: 0 | I131: 1
A132: 078 | B132: XOCHIATIPAN | C132: 1570 | D132: 1106 | E132: 1 | F132: 1 | I132: 2
A133: 078 | B133: XOCHIATIPAN | C133: 1571 | D133: 753 | E133: 1 | F133: 1 | I133: 2
A134: 078 | B134: XOCHIATIPAN | C134: 1572 | D134: 930 | E134: 1 | F134: 1 | I134: 2
A135: 078 | B135: XOCHIATIPAN | C135: 1573 | D135: 330 | E135: 1 | F135: 0 | I135: 1
A136: 078 | B136: XOCHIATIPAN | C136: 1574 | D136: 419 | E136: 1 | F136: 0 | I136: 1
A137: 078 | B137: XOCHIATIPAN | C137: 1575 | D137: 798 | E137: 1 | F137: 1 | I137: 2
A138: XOCHIATIPAN | D138: =SUM(D125:D137) -> 11382 | E138: =SUM(E125:E137) -> 13 | F138: =SUM(F125:F137) -> 8 | G138: =SUM(G125:G137) -> 0 | H138: 0 | I138: 21
A140: 053 | B140: SAN FELIPE ORIZATLAN | C140: 1043 | D140: 942 | E140: 1 | F140: 1 | I140: =SUM(E140:H140) -> 2
A141: 053 | B141: SAN FELIPE ORIZATLAN | C141: 1044 | D141: 2485 | E141: 1 | F141: 3 | I141: =SUM(E141:H141) -> 4
A142: 053 | B142: SAN FELIPE ORIZATLAN | C142: 1045 | D142: 2130 | E142: 1 | F142: 2 | I142: 3
A143: 053 | B143: SAN FELIPE ORIZATLAN | C143: 1046 | D143: 883 | E143: 1 | F143: 1 | I143: 2
A144: 053 | B144: SAN FELIPE ORIZATLAN | C144: 1047 | D144: 636 | E144: 1 | F144: 0 | I144: 1
A145: 053 | B145: SAN FELIPE ORIZATLAN | C145: 1048 | D145: 1380 | E145: 1 | F145: 1 | I145: 2
A146: 053 | B146: SAN FELIPE ORIZATLAN | C146: 1049 | D146: 765 | E146: 1 | F146: 1 | I146: 2
A147: 053 | B147: SAN FELIPE ORIZATLAN | C147: 1050 | D147: 985 | E147: 1 | F147: 1 | I147: 2
A148: 053 | B148: SAN FELIPE ORIZATLAN | C148: 1051 | D148: 573 | E148: 1 | F148: 0 | I148: 1
A149: 053 | B149: SAN FELIPE ORIZATLAN | C149: 1052 | D149: 473 | E149: 1 | F149: 0 | I149: 1
A150: 053 | B150: SAN FELIPE ORIZATLAN | C150: 1053 | D150: 784 | E150: 1 | F150: 1 | I150: 2
A151: 053 | B151: SAN FELIPE ORIZATLAN | C151: 1054 | D151: 308 | E151: 1 | F151: 0 | I151: 1
A152: 053 | B152: SAN FELIPE ORIZATLAN | C152: 1055 | D152: 1236 | E152: 1 | F152: 1 | I152: 2
A153: 053 | B153: SAN FELIPE ORIZATLAN | C153: 1056 | D153: 911 | E153: 1 | F153: 1 | I153: 2
A154: 053 | B154: SAN FELIPE ORIZATLAN | C154: 1057 | D154: 895 | E154: 1 | F154: 1 | I154: 2
A155: 053 | B155: SAN FELIPE ORIZATLAN | C155: 1058 | D155: 558 | E155: 1 | F155: 0 | I155: 1
A156: 053 | B156: SAN FELIPE ORIZATLAN | C156: 1059 | D156: 1350 | E156: 1 | F156: 1 | I156: 2
A157: 053 | B157: SAN FELIPE ORIZATLAN | C157: 1060 | D157: 1707 | E157: 1 | F157: 2 | I157: 3
A158: 053 | B158: SAN FELIPE ORIZATLAN | C158: 1061 | D158: 2725 | E158: 1 | F158: 3 | I158: 4
A159: 053 | B159: SAN FELIPE ORIZATLAN | C159: 1062 | D159: 2113 | E159: 1 | F159: 0 | G159: 2 | I159: 3
A160: 053 | B160: SAN FELIPE ORIZATLAN | C160: 1063 | D160: 1010 | E160: 1 | F160: 1 | I160: 2
A161: 053 | B161: SAN FELIPE ORIZATLAN | C161: 1064 | D161: 390 | E161: 1 | F161: 0 | G161: 1 | I161: 2
A162: 053 | B162: SAN FELIPE ORIZATLAN | C162: 1065 | D162: 395 | E162: 1 | F162: 0 | I162: 1
A163: 053 | B163: SAN FELIPE ORIZATLAN | C163: 1066 | D163: 822 | E163: 1 | F163: 1 | I163: 2
A164: SAN FELIPE ORIZATLAN | D164: =SUM(D140:D163) -> 26456 | E164: =SUM(E140:E163) -> 24 | F164: =SUM(F140:F163) -> 22 | G164: =SUM(G140:G163) -> 3 | H164: 0 | I164: 49
A166: 032 | B166: JALTOCAN | C166: 630 | D166: 708 | E166: 1 | F166: 0 | I166: =SUM(E166:H166) -> 1
A167: 032 | B167: JALTOCAN | C167: 631 | D167: 1861 | E167: 1 | F167: 2 | I167: =SUM(E167:H167) -> 3
A168: 032 | B168: JALTOCAN | C168: 632 | D168: 1862 | E168: 1 | F168: 2 | I168: 3
A169: 032 | B169: JALTOCAN | C169: 633 | D169: 438 | E169: 1 | F169: 0 | I169: 1
A170: 032 | B170: JALTOCAN | C170: 634 | D170: 364 | E170: 1 | F170: 0 | I170: 1
A171: 032 | B171: JALTOCAN | C171: 635 | D171: 203 | E171: 1 | F171: 0 | I171: 1
A172: 032 | B172: JALTOCAN | C172: 636 | D172: 223 | E172: 1 | F172: 0 | I172: 1
A173: 032 | B173: JALTOCAN | C173: 637 | D173: 207 | E173: 1 | F173: 0 | I173: 1
A174: 032 | B174: JALTOCAN | C174: 638 | D174: 274 | E174: 1 | F174: 0 | I174: 1
A175: 032 | B175: JALTOCAN | C175: 639 | D175: 372 | E175: 1 | F175: 0 | I175: 1
A176: 032 | B176: JALTOCAN | C176: 640 | D176: 665 | E176: 1 | F176: 0 | I176: 1
A177: 032 | B177: JALTOCAN | C177: 641 | D177: 558 | E177: 1 | F177: 0 | I177: 1
A178: JALTOCAN | D178: =SUM(D166:D177) -> 7735 | E178: =SUM(E166:E177) -> 12 | F178: =SUM(F166:F177) -> 4 | G178: =SUM(G166:G177) -> 0 | H178: 0 | I178: 16
A181: TOTAL DISITRITAL | D181: =SUM(D178,D164,D138,D123,D105,D88,D60) -> 171685 | E181: =SUM(E178,E164,E138,E123,E105,E88,E60) -> 159 | F181: =SUM(F178,F164,F138,F123,F105,F88,F60) -> 135 | G181: =SUM(G178,G164,G138,G123,G105,G88,G60) -> 18 | H181: 1 | I181: 313

Sheet 14
A1: PADRON Y LISTA NOMINAL
A2: CORTE: | B2: DEFINITIVO
A3: DISTRITO LOCAL XIV ACTOPAN
A6: CLAVE | B6: NOMBRE | C6: Seccion | D6: L N | E6: Basicas | F6: Contiguas | G6: Extras | H6: Especiales | I6: TOTAL
A7: 003 | B7: ACTOPAN | C7: 34 | D7: 3680 | E7: 1 | F7: 4 | I7: =SUM(E7:H7) -> 5
A8: 003 | B8: ACTOPAN | C8: 35 | D8: 2053 | E8: 1 | F8: 2 | I8: =SUM(E8:H8) -> 3
A9: 003 | B9: ACTOPAN | C9: 36 | D9: 1207 | E9: 1 | F9: 1 | I9: 2
A10: 003 | B10: ACTOPAN | C10: 37 | D10: 1902 | E10: 1 | F10: 2 | I10: 3
A11: 003 | B11: ACTOPAN | C11: 38 | D11: 1353 | E11: 1 | F11: 1 | I11: 2
A12: 003 | B12: ACTOPAN | C12: 39 | D12: 1743 | E12: 1 | F12: 2 | I12: 3
A13: 003 | B13: ACTOPAN | C13: 40 | D13: 1965 | E13: 1 | F13: 2 | I13: 3
A14: 003 | B14: ACTOPAN | C14: 41 | D14: 1311 | E14: 1 | F14: 1 | I14: 2
A15: 003 | B15: ACTOPAN | C15: 42 | D15: 1096 | E15: 1 | F15: 1 | I15: 2
A16: 003 | B16: ACTOPAN | C16: 43 | D16: 1280 | E16: 1 | F16: 1 | I16: 2
A17: 003 | B17: ACTOPAN | C17: 44 | D17: 1765 | E17: 1 | F17: 2 | I17: 3
A18: 003 | B18: ACTOPAN | C18: 45 | D18: 1300 | E18: 1 | F18: 1 | I18: 2
A19: 003 | B19: ACTOPAN | C19: 46 | D19: 1638 | E19: 1 | F19: 2 | H19: 1 | I19: 4
A20: 003 | B20: ACTOPAN | C20: 47 | D20: 1125 | E20: 1 | F20: 1 | I20: 2
A21: 003 | B21: ACTOPAN | C21: 48 | D21: 238 | E21: 1 | F21: 0 | I21: 1
A22: 003 | B22: ACTOPAN | C22: 49 | D22: 245 | E22: 1 | F22: 0 | I22: 1
A23: 003 | B23: ACTOPAN | C23: 50 | D23: 85 | E23: 1 | F23: 0 | I23: 1
A24: 003 | B24: ACTOPAN | C24: 51 | D24: 203 | E24: 1 | F24: 0 | I24: 1
A25: 003 | B25: ACTOPAN | C25: 52 | D25: 902 | E25: 1 | F25: 1 | I25: 2
A26: 003 | B26: ACTOPAN | C26: 53 | D26: 483 | E26: 1 | F26: 0 | I26: 1
A27: 003 | B27: ACTOPAN | C27: 54 | D27: 1380 | E27: 1 | F27: 1 | I27: 2
A28: 003 | B28: ACTOPAN | C28: 55 | D28: 1204 | E28: 1 | F28: 1 | I28: 2
A29: 003 | B29: ACTOPAN | C29: 56 | D29: 320 | E29: 1 | F29: 0 | I29: 1
A30: 003 | B30: ACTOPAN | C30: 57 | D30: 743 | E30: 1 | F30: 0 | I30: 1
A31: 003 | B31: ACTOPAN | C31: 58 | D31: 503 | E31: 1 | F31: 0 | I31: 1
A32: 003 | B32: ACTOPAN | C32: 59 | D32: 703 | E32: 1 | F32: 0 | I32: 1
A33: 003 | B33: ACTOPAN | C33: 60 | D33: 1927 | E33: 1 | F33: 2 | I33: 3
A34: 003 | B34: ACTOPAN | C34: 61 | D34: 672 | E34: 1 | F34: 0 | I34: 1
A35: 003 | B35: ACTOPAN | C35: 62 | D35: 2002 | E35: 1 | F35: 2 | I35: 3
A36: 003 | B36: ACTOPAN | C36: 63 | D36: 355 | E36: 1 | F36: 0 | I36: 1
A37: 003 | B37: ACTOPAN | C37: 64 | D37: 581 | E37: 1 | F37: 0 | I37: 1
A38: 003 | B38: ACTOPAN | C38: 65 | D38: 2016 | E38: 1 | F38: 2 | I38: 3
A39: 003 | B39: ACTOPAN | C39: 66 | D39: 1236 | E39: 1 | F39: 1 | I39: 2
A40: 003 | B40: ACTOPAN | C40: 67 | D40: 1357 | E40: 1 | F40: 1 | I40: 2
A41: 003 | B41: ACTOPAN | C41: 68 | D41: 1321 | E41: 1 | F41: 1 | I41: 2
A42: ACTOPAN | D42: =SUM(D7:D41) -> 41894 | E42: =SUM(E7:E41) -> 35 | F42: =SUM(F7:F41) -> 35 | G42: =SUM(G7:G41) -> 0 | H42: 1 | I42: 71
A44: 054 | B44: SAN SALVADOR | C44: 1067 | D44: 1420 | E44: 1 | F44: 1 | I44: =SUM(E44:H44) -> 2
A45: 054 | B45: SAN SALVADOR | C45: 1068 | D45: 1466 | E45: 1 | F45: 1 | I45: =SUM(E45:H45) -> 2
A46: 054 | B46: SAN SALVADOR | C46: 1069 | D46: 552 | E46: 1 | F46: 0 | I46: 1
A47: 054 | B47: SAN SALVADOR | C47: 1070 | D47: 1243 | E47: 1 | F47: 1 | I47: 2
A48: 054 | B48: SAN SALVADOR | C48: 1071 | D48: 504 | E48: 1 | F48: 0 | I48: 1
A49: 054 | B49: SAN SALVADOR | C49: 1072 | D49: 995 | E49: 1 | F49: 1 | I49: 2
A50: 054 | B50: SAN SALVADOR | C50: 1073 | D50: 1022 | E50: 1 | F50: 1 | I50: 2
A51: 054 | B51: SAN SALVADOR | C51: 1074 | D51: 919 | E51: 1 | F51: 1 | I51: 2
A52: 054 | B52: SAN SALVADOR | C52: 1075 | D52: 518 | E52: 1 | F52: 0 | I52: 1
A53: 054 | B53: SAN SALVADOR | C53: 1076 | D53: 744 | E53: 1 | F53: 0 | I53: 1
A54: 054 | B54: SAN SALVADOR | C54: 1077 | D54: 583 | E54: 1 | F54: 0 | I54: 1
A55: 054 | B55: SAN SALVADOR | C55: 1078 | D55: 1306 | E55: 1 | F55: 1 | I55: 2
A56: 054 | B56: SAN SALVADOR | C56: 1079 | D56: 2094 | E56: 1 | F56: 2 | I56: 3
A57: 054 | B57: SAN SALVADOR | C57: 1080 | D57: 606 | E57: 1 | F57: 0 | I57: 1
A58: 054 | B58: SAN SALVADOR | C58: 1081 | D58: 784 | E58: 1 | F58: 1 | I58: 2
A59: 054 | B59: SAN SALVADOR | C59: 1082 | D59: 442 | E59: 1 | F59: 0 | I59: 1
A60: 054 | B60: SAN SALVADOR | C60: 1083 | D60: 338 | E60: 1 | F60: 0 | I60: 1
A61: 054 | B61: SAN SALVADOR | C61: 1084 | D61: 829 | E61: 1 | F61: 1 | I61: 2
A62: 054 | B62: SAN SALVADOR | C62: 1085 | D62: 2302 | E62: 1 | F62: 3 | I62: 4
A63: 054 | B63: SAN SALVADOR | C63: 1086 | D63: 802 | E63: 1 | F63: 0 | G63: 1 | I63: 2
A64: 054 | B64: SAN SALVADOR | C64: 1087 | D64: 1663 | E64: 1 | F64: 2 | I64: 3
A65: 054 | B65: SAN SALVADOR | C65: 1088 | D65: 1237 | E65: 1 | F65: 0 | G65: 1 | I65: 2
A66: 054 | B66: SAN SALVADOR | C66: 1089 | D66: 691 | E66: 1 | F66: 0 | I66: 1
A67: 054 | B67: SAN SALVADOR | C67: 1090 | D67: 1027 | E67: 1 | F67: 1 | I67: 2
A68: SAN SALVADOR | D68: =SUM(D44:D67) -> 24087 | E68: =SUM(E44:E67) -> 24 | F68: =SUM(F44:F67) -> 17 | G68: =SUM(G44:G67) -> 2 | H68: 0 | I68: 43
A70: 019 | B70: EL ARENAL | C70: 331 | D70: 2149 | E70: 1 | F70: 2 | I70: =SUM(E70:H70) -> 3
A71: 019 | B71: EL ARENAL | C71: 332 | D71: 1123 | E71: 1 | F71: 1 | I71: =SUM(E71:H71) -> 2
A72: 019 | B72: EL ARENAL | C72: 333 | D72: 934 | E72: 1 | F72: 1 | I72: 2
A73: 019 | B73: EL ARENAL | C73: 334 | D73: 307 | E73: 1 | F73: 0 | I73: 1
A74: 019 | B74: EL ARENAL | C74: 335 | D74: 862 | E74: 1 | F74: 1 | I74: 2
A75: 019 | B75: EL ARENAL | C75: 336 | D75: 1661 | E75: 1 | F75: 2 | I75: 3
A76: 019 | B76: EL ARENAL | C76: 337 | D76: 451 | E76: 1 | F76: 0 | I76: 1
A77: 019 | B77: EL ARENAL | C77: 338 | D77: 466 | E77: 1 | F77: 0 | I77: 1
A78: 019 | B78: EL ARENAL | C78: 339 | D78: 629 | E78: 1 | F78: 0 | I78: 1
A79: 019 | B79: EL ARENAL | C79: 340 | D79: 2819 | E79: 1 | F79: 3 | I79: 4
A80: 019 | B80: EL ARENAL | C80: 341 | D80: 1163 | E80: 1 | F80: 1 | I80: 2
A81: ARENAL | D81: =SUM(D70:D80) -> 12564 | E81: =SUM(E70:E80) -> 11 | F81: =SUM(F70:F80) -> 11 | G81: =SUM(G70:G80) -> 0 | H81: 0 | I81: 22
A83: 055 | B83: SANTIAGO DE ANAYA | C83: 1091 | D83: 1778 | E83: 1 | F83: 2 | I83: =SUM(E83:H83) -> 3
A84: 055 | B84: SANTIAGO DE ANAYA | C84: 1092 | D84: 155 | E84: 1 | F84: 0 | I84: =SUM(E84:H84) -> 1
A85: 055 | B85: SANTIAGO DE ANAYA | C85: 1093 | D85: 123 | E85: 1 | F85: 0 | I85: 1
A86: 055 | B86: SANTIAGO DE ANAYA | C86: 1094 | D86: 242 | E86: 1 | F86: 0 | I86: 1
A87: 055 | B87: SANTIAGO DE ANAYA | C87: 1095 | D87: 136 | E87: 1 | F87: 0 | I87: 1
A88: 055 | B88: SANTIAGO DE ANAYA | C88: 1096 | D88: 799 | E88: 1 | F88: 1 | I88: 2
A89: 055 | B89: SANTIAGO DE ANAYA | C89: 1097 | D89: 401 | E89: 1 | F89: 0 | I89: 1
A90: 055 | B90: SANTIAGO DE ANAYA | C90: 1098 | D90: 420 | E90: 1 | F90: 0 | I90: 1
A91: 055 | B91: SANTIAGO DE ANAYA | C91: 1099 | D91: 1988 | E91: 1 | F91: 2 | I91: 3
A92: 055 | B92: SANTIAGO DE ANAYA | C92: 1100 | D92: 1299 | E92: 1 | F92: 1 | I92: 2
A93: 055 | B93: SANTIAGO DE ANAYA | C93: 1101 | D93: 636 | E93: 1 | F93: 0 | I93: 1
A94: 055 | B94: SANTIAGO DE ANAYA | C94: 1102 | D94: 448 | E94: 1 | F94: 0 | I94: 1
A95: 055 | B95: SANTIAGO DE ANAYA | C95: 1103 | D95: 305 | E95: 1 | F95: 0 | I95: 1
A96: 055 | B96: SANTIAGO DE ANAYA | C96: 1104 | D96: 291 | E96: 1 | F96: 0 | I96: 1
A97: 055 | B97: SANTIAGO DE ANAYA | C97: 1105 | D97: 722 | E97: 1 | F97: 0 | I97: 1
A98: 055 | B98: SANTIAGO DE ANAYA | C98: 1106 | D98: 522 | E98: 1 | F98: 0 | I98: 1
A99: 055 | B99: SANTIAGO DE ANAYA | C99: 1107 | D99: 528 | E99: 1 | F99: 0 | I99: 1
A100: 055 | B100: SANTIAGO DE ANAYA | C100: 1108 | D100: 485 | E100: 1 | F100: 0 | I100: 1
A101: 055 | B101: SANTIAGO DE ANAYA | C101: 1109 | D101: 913 | E101: 1 | F101: 1 | I101: 2
A102: SANTIAGO DE ANAYA | D102: =SUM(D83:D101) -> 12191 | E102: =SUM(E83:E101) -> 19 | F102: =SUM(F83:F101) -> 7 | G102: =SUM(G83:G101) -> 0 | H102: 0 | I102: 26
A104: 041 | B104: MIXQUIAHUALA DE JUAREZ | C104: 743 | D104: 1807 | E104: 1 | F104: 2 | I104: =SUM(E104:H104) -> 3
A105: 041 | B105: MIXQUIAHUALA DE JUAREZ | C105: 744 | D105: 1654 | E105: 1 | F105: 2 | I105: =SUM(E105:H105) -> 3
A106: 041 | B106: MIXQUIAHUALA DE JUAREZ | C106: 745 | D106: 1433 | E106: 1 | F106: 1 | I106: 2
A107: 041 | B107: MIXQUIAHUALA DE JUAREZ | C107: 746 | D107: 1655 | E107: 1 | F107: 2 | I107: 3
A108: 041 | B108: MIXQUIAHUALA DE JUAREZ | C108: 747 | D108: 1115 | E108: 1 | F108: 1 | I108: 2
A109: 041 | B109: MIXQUIAHUALA DE JUAREZ | C109: 748 | D109: 1720 | E109: 1 | F109: 2 | I109: 3
A110: 041 | B110: MIXQUIAHUALA DE JUAREZ | C110: 749 | D110: 1504 | E110: 1 | F110: 2 | I110: 3
A111: 041 | B111: MIXQUIAHUALA DE JUAREZ | C111: 750 | D111: 2167 | E111: 1 | F111: 2 | I111: 3
A112: 041 | B112: MIXQUIAHUALA DE JUAREZ | C112: 751 | D112: 2318 | E112: 1 | F112: 3 | I112: 4
A113: 041 | B113: MIXQUIAHUALA DE JUAREZ | C113: 752 | D113: 1363 | E113: 1 | F113: 1 | I113: 2
A114: 041 | B114: MIXQUIAHUALA DE JUAREZ | C114: 753 | D114: 1595 | E114: 1 | F114: 2 | I114: 3
A115: 041 | B115: MIXQUIAHUALA DE JUAREZ | C115: 754 | D115: 712 | E115: 1 | F115: 0 | I115: 1
A116: 041 | B116: MIXQUIAHUALA DE JUAREZ | C116: 755 | D116: 841 | E116: 1 | F116: 1 | I116: 2
A117: 041 | B117: MIXQUIAHUALA DE JUAREZ | C117: 756 | D117: 1545 | E117: 1 | F117: 2 | I117: 3
A118: 041 | B118: MIXQUIAHUALA DE JUAREZ | C118: 757 | D118: 1153 | E118: 1 | F118: 1 | I118: 2
A119: 041 | B119: MIXQUIAHUALA DE JUAREZ | C119: 758 | D119: 1255 | E119: 1 | F119: 1 | I119: 2
A120: 041 | B120: MIXQUIAHUALA DE JUAREZ | C120: 759 | D120: 1554 | E120: 1 | F120: 2 | I120: 3
A121: 041 | B121: MIXQUIAHUALA DE JUAREZ | C121: 760 | D121: 575 | E121: 1 | F121: 0 | I121: 1
A122: 041 | B122: MIXQUIAHUALA DE JUAREZ | C122: 761 | D122: 2097 | E122: 1 | F122: 2 | I122: 3
A123: 041 | B123: MIXQUIAHUALA DE JUAREZ | C123: 762 | D123: 794 | E123: 1 | F123: 1 | I123: 2
A124: 041 | B124: MIXQUIAHUALA DE JUAREZ | C124: 763 | D124: 835 | E124: 1 | F124: 1 | I124: 2
A125: 041 | B125: MIXQUIAHUALA DE JUAREZ | C125: 764 | D125: 379 | E125: 1 | F125: 0 | I125: 1
A126: MIXQUIAHUALA DE JUAREZ | D126: =SUM(D104:D125) -> 30071 | E126: =SUM(E104:E125) -> 22 | F126: =SUM(F104:F125) -> 31 | G126: =SUM(G104:G125) -> 0 | H126: 0 | I126: 53
A128: 023 | B128: FRANCISCO I. MADERO | C128: 369 | D128: 2024 | E128: 1 | F128: 2 | I128: =SUM(E128:H128) -> 3
A129: 023 | B129: FRANCISCO I. MADERO | C129: 370 | D129: 1406 | E129: 1 | F129: 1 | I129: =SUM(E129:H129) -> 2
A130: 023 | B130: FRANCISCO I. MADERO | C130: 371 | D130: 2325 | E130: 1 | F130: 2 | G130: 1 | I130: 4
A131: 023 | B131: FRANCISCO I. MADERO | C131: 372 | D131: 1007 | E131: 1 | F131: 1 | I131: 2
A132: 023 | B132: FRANCISCO I. MADERO | C132: 373 | D132: 1630 | E132: 1 | F132: 2 | I132: 3
A133: 023 | B133: FRANCISCO I. MADERO | C133: 374 | D133: 1431 | E133: 1 | F133: 1 | I133: 2
A134: 023 | B134: FRANCISCO I. MADERO | C134: 375 | D134: 1109 | E134: 1 | F134: 1 | I134: 2
A135: 023 | B135: FRANCISCO I. MADERO | C135: 376 | D135: 747 | E135: 1 | F135: 0 | I135: 1
A136: 023 | B136: FRANCISCO I. MADERO | C136: 377 | D136: 758 | E136: 1 | F136: 1 | I136: 2
A137: 023 | B137: FRANCISCO I. MADERO | C137: 378 | D137: 1519 | E137: 1 | F137: 2 | I137: 3
A138: 023 | B138: FRANCISCO I. MADERO | C138: 379 | D138: 1402 | E138: 1 | F138: 1 | I138: 2
A139: 023 | B139: FRANCISCO I. MADERO | C139: 380 | D139: 1073 | E139: 1 | F139: 1 | I139: 2
A140: 023 | B140: FRANCISCO I. MADERO | C140: 381 | D140: 1245 | E140: 1 | F140: 1 | I140: 2
A141: 023 | B141: FRANCISCO I. MADERO | C141: 382 | D141: 1107 | E141: 1 | F141: 1 | I141: 2
A142: 023 | B142: FRANCISCO I. MADERO | C142: 383 | D142: 2064 | E142: 1 | F142: 2 | I142: 3
A143: 023 | B143: FRANCISCO I. MADERO | C143: 384 | D143: 2286 | E143: 1 | F143: 3 | I143: 4
A144: 023 | B144: FRANCISCO I. MADERO | C144: 385 | D144: 2467 | E144: 1 | F144: 3 | I144: =SUM(E144:F144) -> 4
A145: FRANCISCO I. MADERO | D145: =SUM(D128:D144) -> 25600 | E145: =SUM(E128:E144) -> 17 | F145: =SUM(F128:F144) -> 25 | G145: =SUM(G128:G144) -> 1 | H145: 0 | I145: 43
A147: 049 | B147: PROGRESO DE OBREGON | C147: 982 | D147: 1648 | E147: 1 | F147: 2 | I147: =SUM(E147:H147) -> 3
A148: 049 | B148: PROGRESO DE OBREGON | C148: 983 | D148: 2091 | E148: 1 | F148: 2 | I148: =SUM(E148:H148) -> 3
A149: 049 | B149: PROGRESO DE OBREGON | C149: 984 | D149: 1292 | E149: 1 | F149: 1 | I149: 2
A150: 049 | B150: PROGRESO DE OBREGON | C150: 985 | D150: 1150 | E150: 1 | F150: 1 | I150: 2
A151: 049 | B151: PROGRESO DE OBREGON | C151: 986 | D151: 1672 | E151: 1 | F151: 2 | I151: 3
A152: 049 | B152: PROGRESO DE OBREGON | C152: 987 | D152: 1866 | E152: 1 | F152: 2 | I152: 3
A153: 049 | B153: PROGRESO DE OBREGON | C153: 988 | D153: 2104 | E153: 1 | F153: 2 | I153: 3
A154: 049 | B154: PROGRESO DE OBREGON | C154: 989 | D154: 185 | E154: 1 | F154: 0 | I154: 1
A155: 049 | B155: PROGRESO DE OBREGON | C155: 990 | D155: 664 | E155: 1 | F155: 0 | I155: 1
A156: 049 | B156: PROGRESO DE OBREGON | C156: 991 | D156: 2408 | E156: 1 | F156: 3 | I156: 4
A157: 049 | B157: PROGRESO DE OBREGON | C157: 992 | D157: 1364 | E157: 1 | F157: 1 | I157: 2
A158: 049 | B158: PROGRESO DE OBREGON | C158: 993 | D158: 678 | E158: 1 | F158: 0 | I158: 1
A159: PROGRESO DE OBREGON | D159: =SUM(D147:D158) -> 17122 | E159: =SUM(E147:E158) -> 12 | F159: =SUM(F147:F158) -> 16 | G159: =SUM(G147:G158) -> 0 | H159: 0 | I159: 28
A161: TOTAL DISITRITAL | D161: =SUM(D159,D145,D126,D102,D81,D68,D42) -> 163529 | E161: =SUM(E159,E145,E126,E102,E81,E68,E42) -> 140 | F161: =SUM(F159,F145,F126,F102,F81,F68,F42) -> 142 | G161: =SUM(G159,G145,G126,G102,G81,G68,G42) -> 3 | H161: 1 | I161: 286

Sheet 15
A1: PADRON Y LISTA NOMINAL
A2: CORTE: | B2: DEFINITIVO
A3: DISTRITO LOCAL XV MOLANGO DE ESCAMILLA
A6: CLAVE | B6: NOMBRE | C6: Seccion | D6: L N | E6: Basicas | F6: Contiguas | G6: Extras | H6: Especiales | I6: TOTAL
A7: 042 | B7: MOLANGO DE ESCAMILA | C7: 765 | D7: 1609 | E7: 1 | F7: 2 | I7: =SUM(E7:H7) -> 3
A8: 042 | B8: MOLANGO DE ESCAMILA | C8: 766 | D8: 1802 | E8: 1 | F8: 2 | H8: 1 | I8: =SUM(E8:H8) -> 4
A9: 042 | B9: MOLANGO DE ESCAMILA | C9: 767 | D9: 340 | E9: 1 | F9: 0 | I9: 1
A10: 042 | B10: MOLANGO DE ESCAMILA | C10: 768 | D10: 419 | E10: 1 | F10: 0 | I10: 1
A11: 042 | B11: MOLANGO DE ESCAMILA | C11: 769 | D11: 494 | E11: 1 | F11: 0 | I11: 1
A12: 042 | B12: MOLANGO DE ESCAMILA | C12: 770 | D12: 174 | E12: 1 | F12: 0 | I12: 1
A13: 042 | B13: MOLANGO DE ESCAMILA | C13: 771 | D13: 409 | E13: 1 | F13: 0 | I13: 1
A14: 042 | B14: MOLANGO DE ESCAMILA | C14: 772 | D14: 482 | E14: 1 | F14: 0 | I14: 1
A15: 042 | B15: MOLANGO DE ESCAMILA | C15: 773 | D15: 428 | E15: 1 | F15: 0 | I15: 1
A16: 042 | B16: MOLANGO DE ESCAMILA | C16: 774 | D16: 166 | E16: 1 | F16: 0 | I16: 1
A17: 042 | B17: MOLANGO DE ESCAMILA | C17: 775 | D17: 250 | E17: 1 | F17: 0 | I17: 1
A18: 042 | B18: MOLANGO DE ESCAMILA | C18: 776 | D18: 226 | E18: 1 | F18: 0 | I18: 1
A19: 042 | B19: MOLANGO DE ESCAMILA | C19: 777 | D19: 222 | E19: 1 | F19: 0 | I19: 1
A20: 042 | B20: MOLANGO DE ESCAMILA | C20: 778 | D20: 267 | E20: 1 | F20: 0 | I20: 1
A21: 042 | B21: MOLANGO DE ESCAMILA | C21: 779 | D21: 518 | E21: 1 | F21: 0 | I21: 1
A22: MOLANGO DE ESCAMILLA | D22: =SUM(D7:D21) -> 7806 | E22: =SUM(E7:E21) -> 15 | F22: =SUM(F7:F21) -> 4 | G22: =SUM(G7:G21) -> 0 | H22: 1 | I22: 20
A24: 062 | B24: TEPEHUACAN DE GUERRERO | C24: 1229 | D24: 802 | E24: 1 | F24: 1 | I24: =SUM(E24:H24) -> 2
A25: 062 | B25: TEPEHUACAN DE GUERRERO | C25: 1230 | D25: 482 | E25: 1 | F25: 0 | I25: =SUM(E25:H25) -> 1
A26: 062 | B26: TEPEHUACAN DE GUERRERO | C26: 1231 | D26: 167 | E26: 1 | F26: 0 | I26: 1
A27: 062 | B27: TEPEHUACAN DE GUERRERO | C27: 1232 | D27: 822 | E27: 1 | F27: 1 | I27: 2
A28: 062 | B28: TEPEHUACAN DE GUERRERO | C28: 1233 | D28: 404 | E28: 1 | F28: 0 | I28: 1
A29: 062 | B29: TEPEHUACAN DE GUERRERO | C29: 1234 | D29: 386 | E29: 1 | F29: 0 | I29: 1
A30: 062 | B30: TEPEHUACAN DE GUERRERO | C30: 1235 | D30: 424 | E30: 1 | F30: 0 | I30: 1
A31: 062 | B31: TEPEHUACAN DE GUERRERO | C31: 1236 | D31: 1039 | E31: 1 | F31: 1 | I31: 2
A32: 062 | B32: TEPEHUACAN DE GUERRERO | C32: 1237 | D32: 1171 | E32: 1 | F32: 1 | I32: 2
A33: 062 | B33: TEPEHUACAN DE GUERRERO | C33: 1238 | D33: 141 | E33: 1 | F33: 0 | I33: 1
A34: 062 | B34: TEPEHUACAN DE GUERRERO | C34: 1239 | D34: 128 | E34: 1 | F34: 0 | I34: 1
A35: 062 | B35: TEPEHUACAN DE GUERRERO | C35: 1240 | D35: 1058 | E35: 1 | F35: 1 | I35: 2
A36: 062 | B36: TEPEHUACAN DE GUERRERO | C36: 1241 | D36: 378 | E36: 1 | F36: 0 | I36: 1
A37: 062 | B37: TEPEHUACAN DE GUERRERO | C37: 1242 | D37: 640 | E37: 1 | F37: 0 | G37: 1 | I37: 2
A38: 062 | B38: TEPEHUACAN DE GUERRERO | C38: 1243 | D38: 810 | E38: 1 | F38: 1 | I38: 2
A39: 062 | B39: TEPEHUACAN DE GUERRERO | C39: 1244 | D39: 456 | E39: 1 | F39: 0 | I39: 1
A40: 062 | B40: TEPEHUACAN DE GUERRERO | C40: 1245 | D40: 561 | E40: 1 | F40: 0 | I40: 1
A41: 062 | B41: TEPEHUACAN DE GUERRERO | C41: 1246 | D41: 816 | E41: 1 | F41: 1 | I41: 2
A42: 062 | B42: TEPEHUACAN DE GUERRERO | C42: 1247 | D42: 251 | E42: 1 | F42: 0 | I42: 1
A43: 062 | B43: TEPEHUACAN DE GUERRERO | C43: 1248 | D43: 333 | E43: 1 | F43: 0 | I43: 1
A44: 062 | B44: TEPEHUACAN DE GUERRERO | C44: 1249 | D44: 1168 | E44: 1 | F44: 1 | I44: 2
A45: 062 | B45: TEPEHUACAN DE GUERRERO | C45: 1250 | D45: 480 | E45: 1 | F45: 0 | I45: 1
A46: 062 | B46: TEPEHUACAN DE GUERRERO | C46: 1251 | D46: 437 | E46: 1 | F46: 0 | I46: 1
A47: 062 | B47: TEPEHUACAN DE GUERRERO | C47: 1252 | D47: 270 | E47: 1 | F47: 0 | I47: 1
A48: 062 | B48: TEPEHUACAN DE GUERRERO | C48: 1253 | D48: 584 | E48: 1 | F48: 0 | I48: 1
A49: 062 | B49: TEPEHUACAN DE GUERRERO | C49: 1254 | D49: 627 | E49: 1 | F49: 0 | I49: 1
A50: 062 | B50: TEPEHUACAN DE GUERRERO | C50: 1255 | D50: 203 | E50: 1 | F50: 0 | I50: 1
A51: 062 | B51: TEPEHUACAN DE GUERRERO | C51: 1256 | D51: 144 | E51: 1 | F51: 0 | I51: 1
A52: 062 | B52: TEPEHUACAN DE GUERRERO | C52: 1257 | D52: 183 | E52: 1 | F52: 0 | I52: 1
A53: 062 | B53: TEPEHUACAN DE GUERRERO | C53: 1258 | D53: 506 | E53: 1 | F53: 0 | I53: 1
A54: 062 | B54: TEPEHUACAN DE GUERRERO | C54: 1259 | D54: 347 | E54: 1 | F54: 0 | I54: 1
A55: 062 | B55: TEPEHUACAN DE GUERRERO | C55: 1260 | D55: 764 | E55: 1 | F55: 1 | I55: 2
A56: 062 | B56: TEPEHUACAN DE GUERRERO | C56: 1261 | D56: 183 | E56: 1 | F56: 0 | I56: 1
A57: TEPEHUACAN DE GUERRERO | D57: =SUM(D24:D56) -> 17165 | E57: =SUM(E24:E56) -> 33 | F57: =SUM(F24:F56) -> 9 | G57: =SUM(G24:G56) -> 1 | H57: 0 | I57: 43
A59: 013 | B59: CALNALI | C59: 224 | D59: 2213 | E59: 1 | F59: 2 | I59: =SUM(E59:H59) -> 3
A60: 013 | B60: CALNALI | C60: 225 | D60: 1098 | E60: 1 | F60: 1 | I60: =SUM(E60:H60) -> 2
A61: 013 | B61: CALNALI | C61: 226 | D61: 348 | E61: 1 | F61: 0 | G61: 1 | I61: 2
A62: 013 | B62: CALNALI | C62: 227 | D62: 368 | E62: 1 | F62: 0 | I62: 1
A63: 013 | B63: CALNALI | C63: 228 | D63: 1221 | E63: 1 | F63: 1 | I63: 2
A64: 013 | B64: CALNALI | C64: 229 | D64: 458 | E64: 1 | F64: 0 | I64: 1
A65: 013 | B65: CALNALI | C65: 230 | D65: 594 | E65: 1 | F65: 0 | I65: 1
A66: 013 | B66: CALNALI | C66: 231 | D66: 436 | E66: 1 | F66: 0 | I66: 1
A67: 013 | B67: CALNALI | C67: 232 | D67: 1843 | E67: 1 | F67: 2 | I67: 3
A68: 013 | B68: CALNALI | C68: 233 | D68: 439 | E68: 1 | F68: 0 | I68: 1
A69: 013 | B69: CALNALI | C69: 234 | D69: 474 | E69: 1 | F69: 0 | I69: 1
A70: 013 | B70: CALNALI | C70: 235 | D70: 584 | E70: 1 | F70: 0 | I70: 1
A71: 013 | B71: CALNALI | C71: 236 | D71: 770 | E71: 1 | F71: 1 | I71: 2
A72: 013 | B72: CALNALI | C72: 237 | D72: 251 | E72: 1 | F72: 0 | I72: 1
A73: 013 | B73: CALNALI | C73: 238 | D73: 540 | E73: 1 | F73: 0 | I73: 1
A74: 013 | B74: CALNALI | C74: 239 | D74: 78 | E74: 1 | F74: 0 | I74: 1
A75: CALNALI | D75: =SUM(D59:D74) -> 11715 | E75: =SUM(E59:E74) -> 16 | F75: =SUM(F59:F74) -> 7 | G75: =SUM(G59:G74) -> 1 | H75: 0 | I75: 24
A77: 035 | B77: LOLOTLA | C77: 657 | D77: 709 | E77: 1 | F77: 0 | I77: =SUM(E77:H77) -> 1
A78: 035 | B78: LOLOTLA | C78: 658 | D78: 394 | E78: 1 | F78: 0 | I78: =SUM(E78:H78) -> 1
A79: 035 | B79: LOLOTLA | C79: 659 | D79: 1113 | E79: 1 | F79: 1 | I79: 2
A80: 035 | B80: LOLOTLA | C80: 660 | D80: 1106 | E80: 1 | F80: 1 | I80: 2
A81: 035 | B81: LOLOTLA | C81: 661 | D81: 887 | E81: 1 | F81: 1 | I81: 2
A82: 035 | B82: LOLOTLA | C82: 662 | D82: 785 | E82: 1 | F82: 1 | I82: 2
A83: 035 | B83: LOLOTLA | C83: 663 | D83: 955 | E83: 1 | F83: 1 | I83: 2
A84: 035 | B84: LOLOTLA | C84: 664 | D84: 825 | E84: 1 | F84: 0 | G84: 1 | I84: 2
A85: LOLOTLA | D85: =SUM(D77:D84) -> 6774 | E85: =SUM(E77:E84) -> 8 | F85: =SUM(F77:F84) -> 5 | G85: =SUM(G77:G84) -> 1 | H85: 0 | I85: 14
A87: 026 | B87: HUAZALINGO | C87: 431 | D87: 1274 | E87: 1 | F87: 1 | I87: =SUM(E87:H87) -> 2
A88: 026 | B88: HUAZALINGO | C88: 432 | D88: 612 | E88: 1 | F88: 0 | G88: 1 | I88: =SUM(E88:H88) -> 2
A89: 026 | B89: HUAZALINGO | C89: 433 | D89: 637 | E89: 1 | F89: 0 | I89: 1
A90: 026 | B90: HUAZALINGO | C90: 434 | D90: 1541 | E90: 1 | F90: 2 | I90: 3
A91: 026 | B91: HUAZALINGO | C91: 435 | D91: 1282 | E91: 1 | F91: 1 | I91: 2
A92: 026 | B92: HUAZALINGO | C92: 436 | D92: 300 | E92: 1 | F92: 0 | I92: 1
A93: 026 | B93: HUAZALINGO | C93: 437 | D93: 464 | E93: 1 | F93: 0 | I93: 1
A94: 026 | B94: HUAZALINGO | C94: 438 | D94: 762 | E94: 1 | F94: 1 | I94: 2
A95: 026 | B95: HUAZALINGO | C95: 439 | D95: 540 | E95: 1 | F95: 0 | I95: 1
A96: 026 | B96: HUAZALINGO | C96: 440 | D96: 747 | E96: 1 | F96: 0 | I96: 1
A97: HUAZALINGO | D97: =SUM(D87:D96) -> 8159 | E97: =SUM(E87:E96) -> 10 | F97: =SUM(F87:F96) -> 5 | G97: =SUM(G87:G96) -> 1 | H97: 0 | I97: 16
A99: 072 | B99: TLANCHINOL | C99: 1403 | D99: 1950 | E99: 1 | F99: 2 | I99: =SUM(E99:H99) -> 3
A100: 072 | B100: TLANCHINOL | C100: 1404 | D100: 360 | E100: 1 | F100: 0 | I100: =SUM(E100:H100) -> 1
A101: 072 | B101: TLANCHINOL | C101: 1405 | D101: 498 | E101: 1 | F101: 0 | I101: 1
A102: 072 | B102: TLANCHINOL | C102: 1406 | D102: 766 | E102: 1 | F102: 1 | I102: 2
A103: 072 | B103: TLANCHINOL | C103: 1407 | D103: 700 | E103: 1 | F103: 0 | I103: 1
A104: 072 | B104: TLANCHINOL | C104: 1408 | D104: 754 | E104: 1 | F104: 1 | I104: 2
A105: 072 | B105: TLANCHINOL | C105: 1409 | D105: 680 | E105: 1 | F105: 0 | I105: 1
A106: 072 | B106: TLANCHINOL | C106: 1410 | D106: 1790 | E106: 1 | F106: 0 | G106: 2 | I106: 3
A107: 072 | B107: TLANCHINOL | C107: 1411 | D107: 721 | E107: 1 | F107: 0 | I107: 1
A108: 072 | B108: TLANCHINOL | C108: 1412 | D108: 838 | E108: 1 | F108: 1 | I108: 2
A109: 072 | B109: TLANCHINOL | C109: 1413 | D109: 644 | E109: 1 | F109: 0 | I109: 1
A110: 072 | B110: TLANCHINOL | C110: 1414 | D110: 1347 | E110: 1 | F110: 1 | I110: 2
A111: 072 | B111: TLANCHINOL | C111: 1415 | D111: 1205 | E111: 1 | F111: 1 | I111: 2
A112: 072 | B112: TLANCHINOL | C112: 1416 | D112: 345 | E112: 1 | F112: 0 | I112: 1
A113: 072 | B113: TLANCHINOL | C113: 1417 | D113: 826 | E113: 1 | F113: 1 | I113: 2
A114: 072 | B114: TLANCHINOL | C114: 1418 | D114: 512 | E114: 1 | F114: 0 | I114: 1
A115: 072 | B115: TLANCHINOL | C115: 1419 | D115: 952 | E115: 1 | F115: 1 | I115: 2
A116: 072 | B116: TLANCHINOL | C116: 1420 | D116: 310 | E116: 1 | F116: 0 | I116: 1
A117: 072 | B117: TLANCHINOL | C117: 1421 | D117: 450 | E117: 1 | F117: 0 | I117: 1
A118: 072 | B118: TLANCHINOL | C118: 1422 | D118: 1176 | E118: 1 | F118: 0 | G118: 1 | I118: 2
A119: 072 | B119: TLANCHINOL | C119: 1423 | D119: 1247 | E119: 1 | F119: 0 | G119: 1 | I119: 2
A120: 072 | B120: TLANCHINOL | C120: 1424 | D120: 736 | E120: 1 | F120: 0 | I120: 1
A121: 072 | B121: TLANCHINOL | C121: 1425 | D121: 763 | E121: 1 | F121: 1 | I121: 2
A122: 072 | B122: TLANCHINOL | C122: 1426 | D122: 717 | E122: 1 | F122: 0 | I122: 1
A123: 072 | B123: TLANCHINOL | C123: 1427 | D123: 585 | E123: 1 | F123: 0 | I123: 1
A124: 072 | B124: TLANCHINOL | C124: 1428 | D124: 1891 | E124: 1 | F124: 2 | I124: 3
A125: TLANCHINOL | D125: =SUM(D99:D124) -> 22763 | E125: =SUM(E99:E124) -> 26 | F125: =SUM(F99:F124) -> 12 | G125: =SUM(G99:G124) -> 4 | H125: 0 | I125: 42
A128: TOTAL DISITRITAL | D128: =SUM(D125,D97,D85,D75,D57,D22) -> 74382 | E128: =SUM(E125,E97,E85,E75,E57,E22) -> 108 | F128: =SUM(F125,F97,F85,F75,F57,F22) -> 42 | G128: =SUM(G125,G97,G85,G75,G57,G22) -> 8 | H128: 1 | I128: 159

Sheet 16
A1: PADRON Y LISTA NOMINAL
A2: CORTE: | B2: DEFINITIVO
A3: DISTRITO LOCAL XVI IXMIQUILPAN
A6: CLAVE | B6: NOMBRE | C6: Seccion | D6: L N | E6: Basicas | F6: Contiguas | G6: Extras | H6: Especiales | I6: TOTAL
A7: 030 | B7: IXMIQUILPAN | C7: 547 | D7: 1706 | E7: 1 | F7: 2 | I7: =SUM(E7:H7) -> 3
A8: 030 | B8: IXMIQUILPAN | C8: 548 | D8: 1600 | E8: 1 | F8: 2 | I8: =SUM(E8:H8) -> 3
A9: 030 | B9: IXMIQUILPAN | C9: 549 | D9: 1582 | E9: 1 | F9: 2 | I9: 3
A10: 030 | B10: IXMIQUILPAN | C10: 550 | D10: 2869 | E10: 1 | F10: 3 | I10: 4
A11: 030 | B11: IXMIQUILPAN | C11: 551 | D11: 1684 | E11: 1 | F11: 2 | I11: 3
A12: 030 | B12: IXMIQUILPAN | C12: 552 | D12: 1682 | E12: 1 | F12: 2 | H12: 1 | I12: 4
A13: 030 | B13: IXMIQUILPAN | C13: 553 | D13: 3184 | E13: 1 | F13: 4 | I13: 5
A14: 030 | B14: IXMIQUILPAN | C14: 554 | D14: 1122 | E14: 1 | F14: 1 | I14: 2
A15: 030 | B15: IXMIQUILPAN | C15: 555 | D15: 1666 | E15: 1 | F15: 2 | I15: 3
A16: 030 | B16: IXMIQUILPAN | C16: 556 | D16: 1353 | E16: 1 | F16: 1 | I16: 2
A17: 030 | B17: IXMIQUILPAN | C17: 557 | D17: 1436 | E17: 1 | F17: 1 | I17: 2
A18: 030 | B18: IXMIQUILPAN | C18: 558 | D18: 820 | E18: 1 | F18: 1 | I18: 2
A19: 030 | B19: IXMIQUILPAN | C19: 559 | D19: 1134 | E19: 1 | F19: 1 | I19: 2
A20: 030 | B20: IXMIQUILPAN | C20: 560 | D20: 1624 | E20: 1 | F20: 2 | I20: 3
A21: 030 | B21: IXMIQUILPAN | C21: 561 | D21: 1564 | E21: 1 | F21: 2 | I21: 3
A22: 030 | B22: IXMIQUILPAN | C22: 562 | D22: 1375 | E22: 1 | F22: 1 | I22: 2
A23: 030 | B23: IXMIQUILPAN | C23: 563 | D23: 1519 | E23: 1 | F23: 2 | I23: 3
A24: 030 | B24: IXMIQUILPAN | C24: 564 | D24: 333 | E24: 1 | F24: 0 | I24: 1
A25: 030 | B25: IXMIQUILPAN | C25: 565 | D25: 382 | E25: 1 | F25: 0 | I25: 1
A26: 030 | B26: IXMIQUILPAN | C26: 566 | D26: 321 | E26: 1 | F26: 0 | I26: 1
A27: 030 | B27: IXMIQUILPAN | C27: 567 | D27: 168 | E27: 1 | F27: 0 | I27: 1
A28: 030 | B28: IXMIQUILPAN | C28: 568 | D28: 894 | E28: 1 | F28: 1 | I28: 2
A29: 030 | B29: IXMIQUILPAN | C29: 569 | D29: 685 | E29: 1 | F29: 0 | I29: 1
A30: 030 | B30: IXMIQUILPAN | C30: 570 | D30: 271 | E30: 1 | F30: 0 | I30: 1
A31: 030 | B31: IXMIQUILPAN | C31: 571 | D31: 170 | E31: 1 | F31: 0 | I31: 1
A32: 030 | B32: IXMIQUILPAN | C32: 572 | D32: 322 | E32: 1 | F32: 0 | I32: 1
A33: 030 | B33: IXMIQUILPAN | C33: 573 | D33: 102 | E33: 1 | F33: 0 | I33: 1
A34: 030 | B34: IXMIQUILPAN | C34: 574 | D34: 676 | E34: 1 | F34: 0 | I34: 1
A35: 030 | B35: IXMIQUILPAN | C35: 575 | D35: 1650 | E35: 1 | F35: 2 | I35: 3
A36: 030 | B36: IXMIQUILPAN | C36: 576 | D36: 458 | E36: 1 | F36: 0 | I36: 1
A37: 030 | B37: IXMIQUILPAN | C37: 577 | D37: 692 | E37: 1 | F37: 0 | I37: 1
A38: 030 | B38: IXMIQUILPAN | C38: 578 | D38: 418 | E38: 1 | F38: 0 | I38: 1
A39: 030 | B39: IXMIQUILPAN | C39: 579 | D39: 881 | E39: 1 | F39: 1 | I39: 2
A40: 030 | B40: IXMIQUILPAN | C40: 580 | D40: 1268 | E40: 1 | F40: 1 | I40: 2
A41: 030 | B41: IXMIQUILPAN | C41: 581 | D41: 1922 | E41: 1 | F41: 2 | I41: 3
A42: 030 | B42: IXMIQUILPAN | C42: 582 | D42: 682 | E42: 1 | F42: 0 | I42: 1
A43: 030 | B43: IXMIQUILPAN | C43: 583 | D43: 744 | E43: 1 | F43: 0 | I43: 1
A44: 030 | B44: IXMIQUILPAN | C44: 584 | D44: 287 | E44: 1 | F44: 0 | I44: 1
A45: 030 | B45: IXMIQUILPAN | C45: 585 | D45: 653 | E45: 1 | F45: 0 | I45: 1
A46: 030 | B46: IXMIQUILPAN | C46: 586 | D46: 952 | E46: 1 | F46: 1 | I46: 2
A47: 030 | B47: IXMIQUILPAN | C47: 587 | D47: 563 | E47: 1 | F47: 0 | I47: 1
A48: 030 | B48: IXMIQUILPAN | C48: 588 | D48: 680 | E48: 1 | F48: 0 | I48: 1
A49: 030 | B49: IXMIQUILPAN | C49: 589 | D49: 490 | E49: 1 | F49: 0 | I49: 1
A50: 030 | B50: IXMIQUILPAN | C50: 590 | D50: 957 | E50: 1 | F50: 1 | I50: 2
A51: 030 | B51: IXMIQUILPAN | C51: 591 | D51: 632 | E51: 1 | F51: 0 | I51: 1
A52: 030 | B52: IXMIQUILPAN | C52: 592 | D52: 457 | E52: 1 | F52: 0 | I52: 1
A53: 030 | B53: IXMIQUILPAN | C53: 593 | D53: 2513 | E53: 1 | F53: 3 | I53: 4
A54: 030 | B54: IXMIQUILPAN | C54: 594 | D54: 2200 | E54: 1 | F54: 2 | I54: 3
A55: 030 | B55: IXMIQUILPAN | C55: 595 | D55: 2933 | E55: 1 | F55: 1 | G55: 2 | I55: 4
A56: 030 | B56: IXMIQUILPAN | C56: 596 | D56: 1471 | E56: 1 | F56: 1 | I56: 2
A57: 030 | B57: IXMIQUILPAN | C57: 597 | D57: 2309 | E57: 1 | F57: 3 | I57: 4
A58: 030 | B58: IXMIQUILPAN | C58: 598 | D58: 791 | E58: 1 | F58: 1 | I58: 2
A59: 030 | B59: IXMIQUILPAN | C59: 599 | D59: 259 | E59: 1 | F59: 0 | I59: 1
A60: 030 | B60: IXMIQUILPAN | C60: 600 | D60: 1037 | E60: 1 | F60: 1 | I60: 2
A61: 030 | B61: IXMIQUILPAN | C61: 601 | D61: 2071 | E61: 1 | F61: 2 | I61: 3
A62: 030 | B62: IXMIQUILPAN | C62: 602 | D62: 819 | E62: 1 | F62: 1 | I62: 2
A63: 030 | B63: IXMIQUILPAN | C63: 603 | D63: 1043 | E63: 1 | F63: 1 | I63: 2
A64: 030 | B64: IXMIQUILPAN | C64: 604 | D64: 159 | E64: 1 | F64: 0 | I64: 1
A65: 030 | B65: IXMIQUILPAN | C65: 605 | D65: 1018 | E65: 1 | F65: 1 | I65: 2
A66: 030 | B66: IXMIQUILPAN | C66: 606 | D66: 491 | E66: 1 | F66: 0 | I66: 1
A67: 030 | B67: IXMIQUILPAN | C67: 607 | D67: 2041 | E67: 1 | F67: 1 | G67: 1 | I67: 3
A68: IXMIQUILPAN | D68: =SUM(D7:D67) -> 67785 | E68: =SUM(E7:E67) -> 61 | F68: =SUM(F7:F67) -> 58 | G68: =SUM(G7:G67) -> 3 | H68: 1 | I68: 123
A70: 006 | B70: ALFAJAYUCAN | C70: 92 | D70: 1661 | E70: 1 | F70: 2 | I70: =SUM(E70:H70) -> 3
A71: 006 | B71: ALFAJAYUCAN | C71: 93 | D71: 653 | E71: 1 | F71: 0 | I71: =SUM(E71:H71) -> 1
A72: 006 | B72: ALFAJAYUCAN | C72: 94 | D72: 359 | E72: 1 | F72: 0 | I72: 1
A73: 006 | B73: ALFAJAYUCAN | C73: 95 | D73: 944 | E73: 1 | F73: 1 | I73: 2
A74: 006 | B74: ALFAJAYUCAN | C74: 96 | D74: 504 | E74: 1 | F74: 0 | I74: 1
A75: 006 | B75: ALFAJAYUCAN | C75: 97 | D75: 768 | E75: 1 | F75: 1 | I75: 2
A76: 006 | B76: ALFAJAYUCAN | C76: 98 | D76: 340 | E76: 1 | F76: 0 | I76: 1
A77: 006 | B77: ALFAJAYUCAN | C77: 99 | D77: 1329 | E77: 1 | F77: 1 | I77: 2
A78: 006 | B78: ALFAJAYUCAN | C78: 100 | D78: 796 | E78: 1 | F78: 1 | I78: 2
A79: 006 | B79: ALFAJAYUCAN | C79: 101 | D79: 956 | E79: 1 | F79: 1 | I79: 2
A80: 006 | B80: ALFAJAYUCAN | C80: 102 | D80: 236 | E80: 1 | F80: 0 | I80: 1
A81: 006 | B81: ALFAJAYUCAN | C81: 103 | D81: 1284 | E81: 1 | F81: 0 | G81: 1 | I81: 2
A82: 006 | B82: ALFAJAYUCAN | C82: 104 | D82: 734 | E82: 1 | F82: 0 | I82: 1
A83: 006 | B83: ALFAJAYUCAN | C83: 105 | D83: 523 | E83: 1 | F83: 0 | I83: 1
A84: 006 | B84: ALFAJAYUCAN | C84: 106 | D84: 804 | E84: 1 | F84: 1 | I84: 2
A85: 006 | B85: ALFAJAYUCAN | C85: 107 | D85: 521 | E85: 1 | F85: 0 | I85: 1
A86: 006 | B86: ALFAJAYUCAN | C86: 108 | D86: 344 | E86: 1 | F86: 0 | I86: 1
A87: 006 | B87: ALFAJAYUCAN | C87: 109 | D87: 392 | E87: 1 | F87: 0 | I87: 1
A88: 006 | B88: ALFAJAYUCAN | C88: 110 | D88: 256 | E88: 1 | F88: 0 | I88: 1
A89: 006 | B89: ALFAJAYUCAN | C89: 111 | D89: 838 | E89: 1 | F89: 1 | I89: 2
A90: 006 | B90: ALFAJAYUCAN | C90: 112 | D90: 171 | E90: 1 | F90: 0 | I90: 1
A91: 006 | B91: ALFAJAYUCAN | C91: 113 | D91: 299 | E91: 1 | F91: 0 | I91: 1
A92: ALFAJAYUCAN | D92: =SUM(D70:D91) -> 14712 | E92: =SUM(E70:E91) -> 22 | F92: =SUM(F70:F91) -> 9 | G92: =SUM(G70:G91) -> 1 | H92: 0 | I92: 32
A94: 014 | B94: CARDONAL | C94: 240 | D94: 1034 | E94: 1 | F94: 1 | I94: =SUM(E94:H94) -> 2
A95: 014 | B95: CARDONAL | C95: 241 | D95: 987 | E95: 1 | F95: 1 | I95: =SUM(E95:H95) -> 2
A96: 014 | B96: CARDONAL | C96: 242 | D96: 283 | E96: 1 | F96: 0 | I96: 1
A97: 014 | B97: CARDONAL | C97: 243 | D97: 607 | E97: 1 | F97: 0 | I97: 1
A98: 014 | B98: CARDONAL | C98: 244 | D98: 275 | E98: 1 | F98: 0 | I98: 1
A99: 014 | B99: CARDONAL | C99: 245 | D99: 1139 | E99: 1 | F99: 1 | I99: 2
A100: 014 | B100: CARDONAL | C100: 246 | D100: 1446 | E100: 1 | F100: 1 | I100: 2
A101: 014 | B101: CARDONAL | C101: 247 | D101: 699 | E101: 1 | F101: 0 | I101: 1
A102: 014 | B102: CARDONAL | C102: 248 | D102: 609 | E102: 1 | F102: 0 | I102: 1
A103: 014 | B103: CARDONAL | C103: 249 | D103: 1248 | E103: 1 | F103: 1 | I103: 2
A104: 014 | B104: CARDONAL | C104: 250 | D104: 1910 | E104: 1 | F104: 1 | G104: 1 | I104: 3
A105: 014 | B105: CARDONAL | C105: 251 | D105: 641 | E105: 1 | F105: 0 | I105: 1
A106: 014 | B106: CARDONAL | C106: 252 | D106: 485 | E106: 1 | F106: 0 | I106: 1
A107: 014 | B107: CARDONAL | C107: 253 | D107: 604 | E107: 1 | F107: 0 | I107: 1
A108: 014 | B108: CARDONAL | C108: 254 | D108: 389 | E108: 1 | F108: 0 | I108: 1
A109: 014 | B109: CARDONAL | C109: 255 | D109: 1057 | E109: 1 | F109: 1 | I109: 2
A110: 014 | B110: CARDONAL | C110: 256 | D110: 842 | E110: 1 | F110: 1 | I110: 2
A111: CARDONAL | D111: =SUM(D94:D110) -> 14255 | E111: =SUM(E94:E110) -> 17 | F111: =SUM(F94:F110) -> 8 | G111: =SUM(G94:G110) -> 1 | H111: 0 | I111: 26
A113: 018 | B113: CHILCUAUTLA | C113: 316 | D113: 2045 | E113: 1 | F113: 2 | I113: =SUM(E113:H113) -> 3
A114: 018 | B114: CHILCUAUTLA | C114: 317 | D114: 636 | E114: 1 | F114: 0 | I114: =SUM(E114:H114) -> 1
A115: 018 | B115: CHILCUAUTLA | C115: 318 | D115: 582 | E115: 1 | F115: 0 | I115: 1
A116: 018 | B116: CHILCUAUTLA | C116: 319 | D116: 548 | E116: 1 | F116: 0 | I116: 1
A117: 018 | B117: CHILCUAUTLA | C117: 320 | D117: 952 | E117: 1 | F117: 1 | I117: 2
A118: 018 | B118: CHILCUAUTLA | C118: 321 | D118: 627 | E118: 1 | F118: 0 | I118: 1
A119: 018 | B119: CHILCUAUTLA | C119: 322 | D119: 924 | E119: 1 | F119: 1 | I119: 2
A120: 018 | B120: CHILCUAUTLA | C120: 323 | D120: 1426 | E120: 1 | F120: 1 | I120: 2
A121: 018 | B121: CHILCUAUTLA | C121: 324 | D121: 360 | E121: 1 | F121: 0 | I121: 1
A122: 018 | B122: CHILCUAUTLA | C122: 325 | D122: 296 | E122: 1 | F122: 0 | I122: 1
A123: 018 | B123: CHILCUAUTLA | C123: 326 | D123: 148 | E123: 1 | F123: 0 | I123: 1
A124: 018 | B124: CHILCUAUTLA | C124: 327 | D124: 1317 | E124: 1 | F124: 1 | I124: 2
A125: 018 | B125: CHILCUAUTLA | C125: 328 | D125: 1128 | E125: 1 | F125: 1 | I125: 2
A126: 018 | B126: CHILCUAUTLA | C126: 329 | D126: 1621 | E126: 1 | F126: 2 | I126: 3
A127: 018 | B127: CHILCUAUTLA | C127: 330 | D127: 119 | E127: 1 | F127: 0 | I127: 1
A128: CHILCUAUTLA | D128: =SUM(D113:D127) -> 12729 | E128: =SUM(E113:E127) -> 15 | F128: =SUM(F113:F127) -> 9 | G128: =SUM(G113:G127) -> 0 | H128: 0 | I128: 24
A131: TOTAL DISITRITAL | D131: =SUM(D128,D111,D92,D68) -> 109481 | E131: =SUM(E128,E111,E92,E68) -> 115 | F131: =SUM(F128,F111,F92,F68) -> 84 | G131: =SUM(G128,G111,G92,G68) -> 5 | H131: 1 | I131: 205

Sheet 17
A1: PADRON Y LISTA NOMINAL
A2: CORTE: | B2: DEFINITIVO
A3: DISTRITO LOCAL XVII JACALA DE LEDEZMA
A6: CLAVE | B6: NOMBRE | C6: Seccion | D6: L N | E6: Basicas | F6: Contiguas | G6: Extras | H6: Especiales | I6: TOTAL
A7: 031 | B7: JACALA DE LEDEZMA | C7: 608 | D7: 1863 | E7: 1 | F7: 2 | H7: 1 | I7: =SUM(E7:H7) -> 4
A8: 031 | B8: JACALA DE LEDEZMA | C8: 609 | D8: 1371 | E8: 1 | F8: 1 | I8: =SUM(E8:H8) -> 2
A9: 031 | B9: JACALA DE LEDEZMA | C9: 610 | D9: 448 | E9: 1 | F9: 0 | I9: 1
A10: 031 | B10: JACALA DE LEDEZMA | C10: 611 | D10: 474 | E10: 1 | F10: 0 | I10: 1
A11: 031 | B11: JACALA DE LEDEZMA | C11: 612 | D11: 474 | E11: 1 | F11: 0 | I11: 1
A12: 031 | B12: JACALA DE LEDEZMA | C12: 613 | D12: 549 | E12: 1 | F12: 0 | I12: 1
A13: 031 | B13: JACALA DE LEDEZMA | C13: 614 | D13: 731 | E13: 1 | F13: 0 | I13: 1
A14: 031 | B14: JACALA DE LEDEZMA | C14: 615 | D14: 116 | E14: 1 | F14: 0 | I14: 1
A15: 031 | B15: JACALA DE LEDEZMA | C15: 616 | D15: 166 | E15: 1 | F15: 0 | I15: 1
A16: 031 | B16: JACALA DE LEDEZMA | C16: 617 | D16: 120 | E16: 1 | F16: 0 | I16: 1
A17: 031 | B17: JACALA DE LEDEZMA | C17: 618 | D17: 325 | E17: 1 | F17: 0 | I17: 1
A18: 031 | B18: JACALA DE LEDEZMA | C18: 619 | D18: 98 | E18: 1 | F18: 0 | I18: 1
A19: 031 | B19: JACALA DE LEDEZMA | C19: 620 | D19: 849 | E19: 1 | F19: 1 | I19: 2
A20: 031 | B20: JACALA DE LEDEZMA | C20: 621 | D20: 135 | E20: 1 | F20: 0 | I20: 1
A21: 031 | B21: JACALA DE LEDEZMA | C21: 622 | D21: 366 | E21: 1 | F21: 0 | I21: 1
A22: 031 | B22: JACALA DE LEDEZMA | C22: 623 | D22: 80 | E22: 1 | F22: 0 | I22: 1
A23: 031 | B23: JACALA DE LEDEZMA | C23: 624 | D23: 69 | E23: 1 | F23: 0 | I23: 1
A24: 031 | B24: JACALA DE LEDEZMA | C24: 625 | D24: 143 | E24: 1 | F24: 0 | I24: 1
A25: 031 | B25: JACALA DE LEDEZMA | C25: 626 | D25: 156 | E25: 1 | F25: 0 | I25: 1
A26: 031 | B26: JACALA DE LEDEZMA | C26: 627 | D26: 440 | E26: 1 | F26: 0 | I26: 1
A27: 031 | B27: JACALA DE LEDEZMA | C27: 628 | D27: 294 | E27: 1 | F27: 0 | I27: 1
A28: 031 | B28: JACALA DE LEDEZMA | C28: 629 | D28: 501 | E28: 1 | F28: 0 | I28: 1
A29: JACALA DE LEDEZMA | D29: =SUM(D7:D28) -> 9768 | E29: =SUM(E7:E28) -> 22 | F29: =SUM(F7:F28) -> 4 | G29: =SUM(G7:G28) -> 0 | H29: 1 | I29: 27
A31: 017 | B31: CHAPULHUACAN | C31: 291 | D31: 1747 | E31: 1 | F31: 2 | I31: =SUM(E31:H31) -> 3
A32: 017 | B32: CHAPULHUACAN | C32: 292 | D32: 1449 | E32: 1 | F32: 1 | I32: =SUM(E32:H32) -> 2
A33: 017 | B33: CHAPULHUACAN | C33: 293 | D33: 373 | E33: 1 | F33: 0 | I33: 1
A34: 017 | B34: CHAPULHUACAN | C34: 294 | D34: 547 | E34: 1 | F34: 0 | I34: 1
A35: 017 | B35: CHAPULHUACAN | C35: 295 | D35: 278 | E35: 1 | F35: 0 | I35: 1
A36: 017 | B36: CHAPULHUACAN | C36: 296 | D36: 589 | E36: 1 | F36: 0 | I36: 1
A37: 017 | B37: CHAPULHUACAN | C37: 297 | D37: 564 | E37: 1 | F37: 0 | I37: 1
A38: 017 | B38: CHAPULHUACAN | C38: 298 | D38: 720 | E38: 1 | F38: 0 | I38: 1
A39: 017 | B39: CHAPULHUACAN | C39: 299 | D39: 205 | E39: 1 | F39: 0 | I39: 1
A40: 017 | B40: CHAPULHUACAN | C40: 300 | D40: 287 | E40: 1 | F40: 0 | I40: 1
A41: 017 | B41: CHAPULHUACAN | C41: 301 | D41: 351 | E41: 1 | F41: 0 | I41: 1
A42: 017 | B42: CHAPULHUACAN | C42: 302 | D42: 551 | E42: 1 | F42: 0 | I42: 1
A43: 017 | B43: CHAPULHUACAN | C43: 303 | D43: 237 | E43: 1 | F43: 0 | I43: 1
A44: 017 | B44: CHAPULHUACAN | C44: 304 | D44: 418 | E44: 1 | F44: 0 | I44: 1
A45: 017 | B45: CHAPULHUACAN | C45: 305 | D45: 633 | E45: 1 | F45: 0 | I45: 1
A46: 017 | B46: CHAPULHUACAN | C46: 306 | D46: 217 | E46: 1 | F46: 0 | I46: 1
A47: 017 | B47: CHAPULHUACAN | C47: 307 | D47: 675 | E47: 1 | F47: 0 | I47: 1
A48: 017 | B48: CHAPULHUACAN | C48: 308 | D48: 681 | E48: 1 | F48: 0 | I48: 1
A49: 017 | B49: CHAPULHUACAN | C49: 309 | D49: 1240 | E49: 1 | F49: 1 | I49: 2
A50: 017 | B50: CHAPULHUACAN | C50: 310 | D50: 695 | E50: 1 | F50: 0 | I50: 1
A51: 017 | B51: CHAPULHUACAN | C51: 311 | D51: 655 | E51: 1 | F51: 0 | I51: 1
A52: 017 | B52: CHAPULHUACAN | C52: 312 | D52: 943 | E52: 1 | F52: 0 | G52: 1 | I52: 2
A53: 017 | B53: CHAPULHUACAN | C53: 313 | D53: 262 | E53: 1 | F53: 0 | I53: 1
A54: 017 | B54: CHAPULHUACAN | C54: 314 | D54: 333 | E54: 1 | F54: 0 | I54: 1
A55: 017 | B55: CHAPULHUACAN | C55: 315 | D55: 870 | E55: 1 | F55: 0 | G55: 1 | I55: 2
A56: CHAPULHUACAN | D56: =SUM(D31:D55) -> 15520 | E56: =SUM(E31:E55) -> 25 | F56: =SUM(F31:F55) -> 4 | G56: =SUM(G31:G55) -> 2 | H56: 0 | I56: 31
A58: 048 | B58: PISAFLORES | C58: 962 | D58: 2342 | E58: 1 | F58: 3 | I58: =SUM(E58:H58) -> 4
A59: 048 | B59: PISAFLORES | C59: 963 | D59: 600 | E59: 1 | F59: 0 | I59: =SUM(E59:H59) -> 1
A60: 048 | B60: PISAFLORES | C60: 964 | D60: 361 | E60: 1 | F60: 0 | I60: 1
A61: 048 | B61: PISAFLORES | C61: 965 | D61: 312 | E61: 1 | F61: 0 | I61: 1
A62: 048 | B62: PISAFLORES | C62: 966 | D62: 417 | E62: 1 | F62: 0 | I62: 1
A63: 048 | B63: PISAFLORES | C63: 967 | D63: 1137 | E63: 1 | F63: 0 | G63: 1 | I63: 2
A64: 048 | B64: PISAFLORES | C64: 968 | D64: 140 | E64: 1 | F64: 0 | I64: 1
A65: 048 | B65: PISAFLORES | C65: 969 | D65: 285 | E65: 1 | F65: 0 | I65: 1
A66: 048 | B66: PISAFLORES | C66: 970 | D66: 964 | E66: 1 | F66: 0 | G66: 1 | I66: 2
A67: 048 | B67: PISAFLORES | C67: 971 | D67: 387 | E67: 1 | F67: 0 | I67: 1
A68: 048 | B68: PISAFLORES | C68: 972 | D68: 1461 | E68: 1 | F68: 0 | G68: 1 | I68: 2
A69: 048 | B69: PISAFLORES | C69: 973 | D69: 431 | E69: 1 | F69: 0 | I69: 1
A70: 048 | B70: PISAFLORES | C70: 974 | D70: 467 | E70: 1 | F70: 0 | I70: 1
A71: 048 | B71: PISAFLORES | C71: 975 | D71: 389 | E71: 1 | F71: 0 | I71: 1
A72: 048 | B72: PISAFLORES | C72: 976 | D72: 382 | E72: 1 | F72: 0 | I72: 1
A73: 048 | B73: PISAFLORES | C73: 977 | D73: 244 | E73: 1 | F73: 0 | I73: 1
A74: 048 | B74: PISAFLORES | C74: 978 | D74: 593 | E74: 1 | F74: 0 | I74: 1
A75: 048 | B75: PISAFLORES | C75: 979 | D75: 224 | E75: 1 | F75: 0 | I75: 1
A76: 048 | B76: PISAFLORES | C76: 980 | D76: 200 | E76: 1 | F76: 0 | I76: 1
A77: 048 | B77: PISAFLORES | C77: 981 | D77: 401 | E77: 1 | F77: 0 | I77: 1
A78: PISAFLORES | D78: =SUM(D58:D77) -> 11737 | E78: =SUM(E58:E77) -> 20 | F78: =SUM(F58:F77) -> 3 | G78: =SUM(G58:G77) -> 3 | H78: 0 | I78: 26
A80: 034 | B80: LA MISION | C80: 646 | D80: 930 | E80: 1 | F80: 1 | I80: =SUM(E80:H80) -> 2
A81: 034 | B81: LA MISION | C81: 647 | D81: 746 | E81: 1 | F81: 0 | I81: =SUM(E81:H81) -> 1
A82: 034 | B82: LA MISION | C82: 648 | D82: 483 | E82: 1 | F82: 0 | I82: 1
A83: 034 | B83: LA MISION | C83: 649 | D83: 729 | E83: 1 | F83: 0 | I83: 1
A84: 034 | B84: LA MISION | C84: 650 | D84: 1234 | E84: 1 | F84: 1 | I84: 2
A85: 034 | B85: LA MISION | C85: 651 | D85: 360 | E85: 1 | F85: 0 | I85: 1
A86: 034 | B86: LA MISION | C86: 652 | D86: 336 | E86: 1 | F86: 0 | I86: 1
A87: 034 | B87: LA MISION | C87: 653 | D87: 480 | E87: 1 | F87: 0 | I87: 1
A88: 034 | B88: LA MISION | C88: 654 | D88: 901 | E88: 1 | F88: 1 | I88: 2
A89: 034 | B89: LA MISION | C89: 655 | D89: 1215 | E89: 1 | F89: 0 | G89: 2 | I89: 3
A90: 034 | B90: LA MISION | C90: 656 | D90: 441 | E90: 1 | F90: 0 | I90: 1
A91: LA MISION | D91: =SUM(D80:D90) -> 7855 | E91: =SUM(E80:E90) -> 11 | F91: =SUM(F80:F90) -> 3 | G91: =SUM(G80:G90) -> 2 | H91: 0 | I91: 16
A94: TOTAL DISITRITAL | D94: =SUM(D91,D78,D56,D29) -> 44880 | E94: =SUM(E91,E78,E56,E29) -> 78 | F94: =SUM(F91,F78,F56,F29) -> 14 | G94: =SUM(G91,G78,G56,G29) -> 7 | H94: 1 | I94: 100

Sheet 18
A1: PADRON Y LISTA NOMINAL
A2: CORTE: | B2: DEFINITIVO
A3: DISTRITO LOCAL XVIII ATOTONILCO EL GRANDE
A5: CLAVE | B5: NOMBRE | C5: Seccion | D5: L N | E5: Basicas | F5: Contiguas | G5: Extras | H5: Especiales | I5: TOTAL
A6: 011 | B6: ATOTONILCO EL GRANDE | C6: 178 | D6: 2132 | E6: 1 | F6: 2 | I6: =SUM(E6:H6) -> 3
A7: 011 | B7: ATOTONILCO EL GRANDE | C7: 179 | D7: 1550 | E7: 1 | F7: 2 | H7: 1 | I7: =SUM(E7:H7) -> 4
A8: 011 | B8: ATOTONILCO EL GRANDE | C8: 180 | D8: 1442 | E8: 1 | F8: 1 | I8: 2
A9: 011 | B9: ATOTONILCO EL GRANDE | C9: 181 | D9: 1145 | E9: 1 | F9: 1 | I9: 2
A10: 011 | B10: ATOTONILCO EL GRANDE | C10: 182 | D10: 196 | E10: 1 | F10: 0 | I10: 1
A11: 011 | B11: ATOTONILCO EL GRANDE | C11: 183 | D11: 347 | E11: 1 | F11: 0 | I11: 1
A12: 011 | B12: ATOTONILCO EL GRANDE | C12: 184 | D12: 580 | E12: 1 | F12: 0 | I12: 1
A13: 011 | B13: ATOTONILCO EL GRANDE | C13: 185 | D13: 195 | E13: 1 | F13: 0 | I13: 1
A14: 011 | B14: ATOTONILCO EL GRANDE | C14: 186 | D14: 531 | E14: 1 | F14: 0 | I14: 1
A15: 011 | B15: ATOTONILCO EL GRANDE | C15: 187 | D15: 1033 | E15: 1 | F15: 1 | I15: 2
A16: 011 | B16: ATOTONILCO EL GRANDE | C16: 188 | D16: 561 | E16: 1 | F16: 0 | I16: 1
A17: 011 | B17: ATOTONILCO EL GRANDE | C17: 189 | D17: 466 | E17: 1 | F17: 0 | I17: 1
A18: 011 | B18: ATOTONILCO EL GRANDE | C18: 190 | D18: 421 | E18: 1 | F18: 0 | I18: 1
A19: 011 | B19: ATOTONILCO EL GRANDE | C19: 191 | D19: 872 | E19: 1 | F19: 0 | G19: 1 | I19: 2
A20: 011 | B20: ATOTONILCO EL GRANDE | C20: 192 | D20: 564 | E20: 1 | F20: 0 | I20: 1
A21: 011 | B21: ATOTONILCO EL GRANDE | C21: 193 | D21: 911 | E21: 1 | F21: 0 | G21: 1 | I21: 2
A22: 011 | B22: ATOTONILCO EL GRANDE | C22: 194 | D22: 1124 | E22: 1 | F22: 1 | I22: 2
A23: 011 | B23: ATOTONILCO EL GRANDE | C23: 195 | D23: 853 | E23: 1 | F23: 1 | I23: 2
A24: 011 | B24: ATOTONILCO EL GRANDE | C24: 196 | D24: 609 | E24: 1 | F24: 0 | I24: 1
A25: 011 | B25: ATOTONILCO EL GRANDE | C25: 197 | D25: 1287 | E25: 1 | F25: 1 | I25: 2
A26: 011 | B26: ATOTONILCO EL GRANDE | C26: 198 | D26: 194 | E26: 1 | F26: 0 | I26: 1
A27: 011 | B27: ATOTONILCO EL GRANDE | C27: 199 | D27: 394 | E27: 1 | F27: 0 | G27: 1 | I27: 2
A28: 011 | B28: ATOTONILCO EL GRANDE | C28: 200 | D28: 882 | E28: 1 | F28: 1 | I28: 2
A29: 011 | B29: ATOTONILCO EL GRANDE | C29: 201 | D29: 1161 | E29: 1 | F29: 1 | I29: 2
A30: 011 | B30: ATOTONILCO EL GRANDE | C30: 202 | D30: 586 | E30: 1 | F30: 0 | I30: 1
A31: 011 | B31: ATOTONILCO EL GRANDE | C31: 203 | D31: 1080 | E31: 1 | F31: 1 | I31: 2
A32: 011 | B32: ATOTONILCO EL GRANDE | C32: 204 | D32: 1289 | E32: 1 | F32: 1 | I32: 2
A33: 011 | B33: ATOTONILCO EL GRANDE | C33: 205 | D33: 171 | E33: 1 | F33: 0 | I33: 1
A34: ATOTONILCO EL GRANDE | D34: =SUM(D6:D33) -> 22576 | E34: =SUM(E6:E33) -> 28 | F34: =SUM(F6:F33) -> 14 | G34: =SUM(G6:G33) -> 3 | H34: 1 | I34: 46
A39: 024 | B39: HUASCA DE OCAMPO | C39: 386 | D39: 1200 | E39: 1 | F39: 1 | I39: =SUM(E39:H39) -> 2
A40: 024 | B40: HUASCA DE OCAMPO | C40: 387 | D40: 858 | E40: 1 | F40: 1 | I40: =SUM(E40:H40) -> 2
A41: 024 | B41: HUASCA DE OCAMPO | C41: 388 | D41: 340 | E41: 1 | F41: 0 | I41: 1
A42: 024 | B42: HUASCA DE OCAMPO | C42: 389 | D42: 245 | E42: 1 | F42: 0 | I42: 1
A43: 024 | B43: HUASCA DE OCAMPO | C43: 390 | D43: 201 | E43: 1 | F43: 0 | I43: 1
A44: 024 | B44: HUASCA DE OCAMPO | C44: 391 | D44: 639 | E44: 1 | F44: 0 | I44: 1
A45: 024 | B45: HUASCA DE OCAMPO | C45: 392 | D45: 1210 | E45: 1 | F45: 1 | I45: 2
A46: 024 | B46: HUASCA DE OCAMPO | C46: 393 | D46: 383 | E46: 1 | F46: 0 | I46: 1
A47: 024 | B47: HUASCA DE OCAMPO | C47: 394 | D47: 284 | E47: 1 | F47: 0 | I47: 1
A48: 024 | B48: HUASCA DE OCAMPO | C48: 395 | D48: 1196 | E48: 1 | F48: 1 | I48: 2
A49: 024 | B49: HUASCA DE OCAMPO | C49: 396 | D49: 670 | E49: 1 | F49: 0 | I49: 1
A50: 024 | B50: HUASCA DE OCAMPO | C50: 397 | D50: 912 | E50: 1 | F50: 1 | I50: 2
A51: 024 | B51: HUASCA DE OCAMPO | C51: 398 | D51: 880 | E51: 1 | F51: 1 | I51: 2
A52: 024 | B52: HUASCA DE OCAMPO | C52: 399 | D52: 1075 | E52: 1 | F52: 1 | I52: 2
A53: 024 | B53: HUASCA DE OCAMPO | C53: 400 | D53: 1576 | E53: 1 | F53: 2 | I53: 3
A54: 024 | B54: HUASCA DE OCAMPO | C54: 401 | D54: 315 | E54: 1 | F54: 0 | I54: 1
A55: 024 | B55: HUASCA DE OCAMPO | C55: 402 | D55: 416 | E55: 1 | F55: 0 | I55: 1
A56: 024 | B56: HUASCA DE OCAMPO | C56: 403 | D56: 603 | E56: 1 | F56: 0 | I56: 1
A57: 024 | B57: HUASCA DE OCAMPO | C57: 404 | D57: 241 | E57: 1 | F57: 0 | I57: 1
A58: HUASCA DE OCAMPO | D58: =SUM(D39:D57) -> 13244 | E58: =SUM(E39:E57) -> 19 | F58: =SUM(F39:F57) -> 9 | G58: =SUM(G39:G57) -> 0 | H58: 0 | I58: 28
A63: 045 | B63: OMITLAN DE JUAREZ | C63: 812 | D63: 1609 | E63: 1 | F63: 2 | I63: =SUM(E63:H63) -> 3
A64: 045 | B64: OMITLAN DE JUAREZ | C64: 813 | D64: 1033 | E64: 1 | F64: 1 | I64: =SUM(E64:H64) -> 2
A65: 045 | B65: OMITLAN DE JUAREZ | C65: 814 | D65: 396 | E65: 1 | F65: 0 | I65: 1
A66: 045 | B66: OMITLAN DE JUAREZ | C66: 815 | D66: 493 | E66: 1 | F66: 0 | I66: 1
A67: 045 | B67: OMITLAN DE JUAREZ | C67: 816 | D67: 520 | E67: 1 | F67: 0 | I67: 1
A68: 045 | B68: OMITLAN DE JUAREZ | C68: 817 | D68: 643 | E68: 1 | F68: 0 | I68: 1
A69: 045 | B69: OMITLAN DE JUAREZ | C69: 818 | D69: 921 | E69: 1 | F69: 1 | I69: 2
A70: 045 | B70: OMITLAN DE JUAREZ | C70: 819 | D70: 528 | E70: 1 | F70: 0 | I70: 1
A71: 045 | B71: OMITLAN DE JUAREZ | C71: 820 | D71: 338 | E71: 1 | F71: 0 | I71: 1
A72: 045 | B72: OMITLAN DE JUAREZ | C72: 821 | D72: 245 | E72: 1 | F72: 0 | I72: 1
A73: OMITLAN DE JUAREZ | D73: =SUM(D63:D72) -> 6726 | E73: =SUM(E63:E72) -> 10 | F73: =SUM(F63:F72) -> 4 | G73: =SUM(G63:G72) -> 0 | H73: 0 | I73: 14
A78: 038 | B78: MINERAL DEL CHICO | C78: 700 | D78: 676 | E78: 1 | F78: 0 | I78: =SUM(E78:H78) -> 1
A79: 038 | B79: MINERAL DEL CHICO | C79: 701 | D79: 80 | E79: 1 | F79: 0 | I79: =SUM(E79:H79) -> 1
A80: 038 | B80: MINERAL DEL CHICO | C80: 702 | D80: 299 | E80: 1 | F80: 0 | I80: 1
A81: 038 | B81: MINERAL DEL CHICO | C81: 703 | D81: 85 | E81: 1 | F81: 0 | I81: 1
A82: 038 | B82: MINERAL DEL CHICO | C82: 704 | D82: 1388 | E82: 1 | F82: 1 | I82: 2
A83: 038 | B83: MINERAL DEL CHICO | C83: 705 | D83: 107 | E83: 1 | F83: 0 | I83: 1
A84: 038 | B84: MINERAL DEL CHICO | C84: 706 | D84: 85 | E84: 1 | F84: 0 | I84: 1
A85: 038 | B85: MINERAL DEL CHICO | C85: 707 | D85: 231 | E85: 1 | F85: 0 | I85: 1
A86: 038 | B86: MINERAL DEL CHICO | C86: 708 | D86: 432 | E86: 1 | F86: 0 | I86: 1
A87: 038 | B87: MINERAL DEL CHICO | C87: 709 | D87: 152 | E87: 1 | F87: 0 | I87: 1
A88: 038 | B88: MINERAL DEL CHICO | C88: 710 | D88: 1501 | E88: 1 | F88: 2 | I88: 3
A89: 038 | B89: MINERAL DEL CHICO | C89: 711 | D89: 227 | E89: 1 | F89: 0 | I89: 1
A90: 038 | B90: MINERAL DEL CHICO | C90: 712 | D90: 853 | E90: 1 | F90: 1 | I90: 2
A91: MINERAL DEL CHICO | D91: =SUM(D78:D90) -> 6116 | E91: =SUM(E78:E90) -> 13 | F91: =SUM(F78:F90) -> 4 | G91: =SUM(G78:G90) -> 0 | H91: 0 | I91: 17
A96: 001 | B96: ACATLAN | C96: 1 | D96: 1521 | E96: 1 | F96: 2 | I96: =SUM(E96:H96) -> 3
A97: 001 | B97: ACATLAN | C97: 2 | D97: 886 | E97: 1 | F97: 1 | I97: =SUM(E97:H97) -> 2
A98: 001 | B98: ACATLAN | C98: 3 | D98: 268 | E98: 1 | F98: 0 | I98: 1
A99: 001 | B99: ACATLAN | C99: 4 | D99: 249 | E99: 1 | F99: 0 | I99: 1
A100: 001 | B100: ACATLAN | C100: 5 | D100: 937 | E100: 1 | F100: 0 | G100: 1 | I100: 2
A101: 001 | B101: ACATLAN | C101: 6 | D101: 1270 | E101: 1 | F101: 0 | G101: 2 | I101: 3
A102: 001 | B102: ACATLAN | C102: 7 | D102: 1297 | E102: 1 | F102: 1 | I102: 2
A103: 001 | B103: ACATLAN | C103: 8 | D103: 1864 | E103: 1 | F103: 2 | I103: 3
A104: 001 | B104: ACATLAN | C104: 9 | D104: 2580 | E104: 1 | F104: 3 | I104: 4
A105: 001 | B105: ACATLAN | C105: 10 | D105: 1658 | E105: 1 | F105: 1 | G105: 1 | I105: 3
A106: 001 | B106: ACATLAN | C106: 11 | D106: 1941 | E106: 1 | F106: 2 | I106: 3
A107: 001 | B107: ACATLAN | C107: 12 | D107: 1380 | E107: 1 | F107: 0 | G107: 1 | I107: 2
A108: ACATLAN | D108: =SUM(D96:D107) -> 15851 | E108: =SUM(E96:E107) -> 12 | F108: =SUM(F96:F107) -> 12 | G108: =SUM(G96:G107) -> 5 | H108: 0 | I108: 29
A110: TOTAL DISITRITAL | D110: =SUM(D108,D91,D73,D58,D34) -> 64513 | E110: =SUM(E108,E91,E73,E58,E34) -> 82 | F110: =SUM(F108,F91,F73,F58,F34) -> 43 | G110: =SUM(G108,G91,G73,G58,G34) -> 8 | H110: 1 | I110: 134

Sheet CONCENTRADO
A1: ESTADISTICO DE PADRON Y LISTA NOMINAL DE ELECTORES CON CIUDADANOS INSACULADOS DEFINITIVO DE 2013.
A4: CONCENTRADO ESTATAL POR DISTRITO
A8: DISTRITO | C8: LISTADO NOMINAL | D8: Casillas | H8: TOTAL
D9: B | E9: CC | F9: EXTRAS | G9: ESP
A10: DISTRITO I | C10: 150810 | D10: 102 | E10: 125 | F10: 20 | G10: 1 | H10: =SUM(D10:G10) -> 248
A11: PACHUCA PONIENTE
A12: DISTRITO II | C12: 182298 | D12: 128 | E12: 147 | F12: 28 | G12: 1 | H12: =SUM(D12:G12) -> 304
A13: PACUCA ORIENTE
A14: DISTRITO III | C14: 185565 | D14: 100 | E14: 183 | F14: 14 | G14: 1 | H14: =SUM(D14:G14) -> 298
A15: TULANCINGO
A16: DISTRITO IV | C16: 129837 | D16: 93 | E16: 126 | F16: 0 | G16: 1 | H16: =SUM(D16:G16) -> 220
A17: TULA
A18: DISTRITO V | C18: 136724 | D18: 91 | E18: 136 | F18: 0 | G18: 1 | H18: =SUM(D18:G18) -> 228
A19: TEPEJI
A20: DISTRITO VI | C20: 77054 | D20: 82 | E20: 60 | F20: 0 | G20: 1 | H20: =SUM(D20:G20) -> 143
A21: HUICHAPAN
A22: DISTRITO VII | C22: 54036 | D22: 115 | E22: 29 | F22: 0 | G22: 1 | H22: =SUM(D22:G22) -> 145
A23: ZIMAPAN
A24: DISTRITO VIII | C24: 39132 | D24: 44 | E24: 28 | F24: 0 | G24: 1 | H24: =SUM(D24:G24) -> 73
A25: ZACUALTIPAN
A26: DISTRITO IX | C26: 36592 | D26: 69 | E26: 14 | F26: 5 | G26: 1 | H26: =SUM(D26:G26) -> 89
A27: S.A. METZQUITITLAN
A28: DISTRITO X | C28: 81869 | D28: 89 | E28: 61 | F28: 11 | G28: 1 | H28: =SUM(D28:G28) -> 162
A29: TENANGO
A30: DISTRITO XI | C30: 98071 | D30: 92 | E30: 84 | F30: 2 | G30: 1 | H30: =SUM(D30:G30) -> 179
A31: APAN
A32: DISTRITO XII | C32: 123910 | D32: 60 | E32: 103 | F32: 33 | G32: 1 | H32: =SUM(D32:G32) -> 197
A33: TIZAYUCA
A34: DISTRITO XIII | C34: 171685 | D34: 159 | E34: 135 | F34: 18 | G34: 1 | H34: =SUM(D34:G34) -> 313
A35: HUEJUTLA
A36: DISTRITO XIV | C36: 163529 | D36: 140 | E36: 142 | F36: 3 | G36: 1 | H36: =SUM(D36:G36) -> 286
A37: ACTOPAN
A38: DISTRITO XV | C38: 74382 | D38: 108 | E38: 42 | F38: 8 | G38: 1 | H38: =SUM(D38:G38) -> 159
A39: MOLANGO
A40: DISTRITO XVI | C40: 109481 | D40: 115 | E40: 84 | F40: 5 | G40: 1 | H40: =SUM(D40:G40) -> 205
A41: IXMIQUILPAN
A42: DISTRITO XVII | C42: 44880 | D42: 78 | E42: 14 | F42: 7 | G42: 1 | H42: =SUM(D42:G42) -> 100
A43: JACALA
A44: DISTRITO XVIII | C44: 64513 | D44: 82 | E44: 43 | F44: 8 | G44: 1 | H44: =SUM(D44:G44) -> 134
A45: ATOTONILCO
A46: TOTAL ESTATAL | C46: =SUM(C10:C44) -> 1924368 | D46: =SUM(D10:D45) -> 1747 | E46: =SUM(E10:E45) -> 1556 | F46: =SUM(F10:F45) -> 162 | G46: =SUM(G10:G45) -> 18 | H46: 3483
